Workbook

Sheet 小修繕履歴
A1: 小修繕履歴 | AK1: 作成日／ 年 月 日 集会（管理組合総会）で議決された日／ 年 月 日 | AU1: （単位：千円）
A2: 区分 | B2: 推定修繕工事項目 | C2: 暦年 | E2: 2012 11期 | G2: 2013 12期 | I2: 2014 13期 | K2: 2015 14期 | M2: 2016 15期 | O2: 2017 16期 | Q2: 2018 17期 | S2: 2019 18期 | U2: 2020 19期 | W2: 2021 20期 | Y2: 2022 21期 | AA2: 2023 22期 | AC2: 2024 23期 | AE2: 2025 | AF2: 2026 | AG2: 2027 | AH2: 2028 | AI2: 2029 | AJ2: 2030 | AK2: 2031 | AL2: 2032 | AM2: 2033 | AN2: 2034 | AO2: 2035 | AP2: 2036 | AQ2: 2037 | AR2: 2038 | AS2: 2039 | AT2: 2040 | AV2: 合計
C3: 経年 | E3: 項目 | F3: 費用 | AE3: 24 | AF3: 25 | AG3: 26 | AH3: 27 | AI3: 28 | AJ3: 29 | AK3: 30 | AL3: 31 | AM3: 32 | AN3: 33 | AO3: 34 | AP3: 35 | AQ3: 36 | AR3: 37 | AS3: 38 | AT3: 39
A4: Ⅱ | Q4: 防災センター移設 送排風機 | S4: 大雨被害 | U4: コロナ
A5: 建築 | E5: 駐車場ゲートリモコン修理 | F5: 14280 | G5: シリンダー修理 | H5: 12600 | I5: 誘導灯ランプ交換 | J5: 6615 | L5: 16200 | M5: シャッター点検修理 | N5: 32400 | O5: 漏水調査 | P5: 17064 | Q5: 店舗雨樋化粧カバー復旧 | R5: 24408 | S5: シャッター修理 | T5: 27000 | U5: 防火扉補修 | V5: 8800 | W5: 排水槽フロートスイッチ取替 | X5: 108900 | Z5: 16280 | AA5: 光電式感知器取替 | AB5: 92400 | AC5: エヤコン取替 | AD5: 228800
E6: 植栽改修 | F6: 103647 | G6: 地下防災センター鍵制御盤修理 | H6: 15750 | I6: シャッター点検・修理 | J6: 10500 | K6: 電気錠修理 | L6: 19980 | M6: 室外機架台柱移設・植栽工事 | N6: 370872 | P6: 19440 | Q6: 駐輪場スライドドアー補修 | R6: 29808 | S6: 共用灯自動点滅器交換 | T6: 35640 | U6: 駐輪場照明器具取替 | V6: 27000 | W6: 水漏れ調査費 | X6: 116600 | Y6: 電子錠補修 | Z6: 29700 | AA6: 漏水調査費 | AB6: 123310 | AC6: 防災シャッター修繕 | AD6: 330000
F7: 37800 | G7: 鉄扉電気錠補修 | H7: 19320 | I7: 同上 補修工事 | J7: 10500 | K7: シリンダー取替 | L7: 27000 | M7: ゴミ庫シャッター修理 | N7: 12960 | O7: CS放送受信調査 | P7: 27000 | Q7: 植栽補填 | R7: 35640 | S7: 排水槽フロートスイッチ交換 | T7: 46440 | U7: ポストダイヤル交換 | V7: 45840 | W7: インバーター取替 | X7: 121000 | Y7: 店舗シャッター修理 | Z7: 38830 | AA7: 受水槽内感知器取替 | AB7: 132000 | AD7: 495440
E8: センサーライト取付け | F8: 38500 | G8: 駐車場リモコン補修 | H8: 19530 | I8: 同上 スイッチＢOX補修 | J8: 11550 | L8: 41040 | M8: 誘導灯取替 | N8: 114480 | O8: 階段踊り場漏水補修 | P8: 37800 | Q8: 照明不点灯調査改修 | R8: 43200 | S8: 緊急ガス遮断弁保守点検 | T8: 147548 | U8: 防犯カメラ交換 | V8: 50000 | X8: 125730 | Y8: 宅配BOX修理 | Z8: 44000 | AA8: 電子錠・タイマー取替 | AB8: 134200 | AD8: 177870
A9: Ⅲ | E9: 路盤改修 | F9: 54000 | G9: 無線信号装置取付け | H9: 21000 | J9: 36750 | K9: 照明器具交換 | L9: 41040 | N9: 8640 | O9: 消火器取替 | P9: 38800 | Q9: 駐車場漏水補修 | R9: 54918 | S9: 植栽他工事 | T9: 151200 | U9: 排水槽フロートスイッチ取替 | V9: 50760 | W9: 照明器具取替 | X9: 168300 | Y9: プレハブ冷蔵庫修理 | Z9: 49500 | AA9: 防犯カメラ更新 | AB9: 242000 | AC9: 消火器誘導灯改修 | AD9: 350185
A10: 設備 | E10: エヤコンドレンアップ交換 | F10: 88515 | G10: ロボットゲート修理 | H10: 23520 | I10: 廊下灯絶縁不良調査・改修 | J10: 36750 | K10: 照明器具スイッチ改修 | L10: 73224 | M10: エントランス前歩道平板補修 | N10: 677150 | O10: 地下EXPJ漏水補修 | P10: 42120 | R10: 66960 | S10: 庇補修・駐車場管理室漏水補修 | T10: 213840 | U10: 店舗ドレン改修 | V10: 68365 | W10: ポストキャップ取替 | X10: 211200 | Y10: 感知器取替 | Z10: 57200 | AA10: ガス管補修 | AB10: 275000 | AC10: 防火シャッター改修 | AD10: 36300
E11: エヤコン交換 | F11: 12600 | G11: 駐車場照明器具取替 | H11: 28770 | I11: 煙感取替 | J11: 37800 | K11: 消防設備（住宅）改修工事 | L11: 75075 | M11: ゲート修理・受信機交換 | N11: 113616 | P11: 46440 | R11: 68364 | S11: 自動ドア修理 | T11: 270000 | U11: 増圧給水ポンプ圧力タンク取替 | V11: 162800 | W11: 排煙窓修理 | X11: 220000 | Y11: タイル補修 | Z11: 60500 | AA11: 排煙窓修繕 | AB11: 319000 | AC11: 防災シャッター追加 | AD11: 164934
E12: 電波障害施設調査費 | F12: 40950 | G12: オートロックスイッチ修理 | H12: 39375 | I12: 緊急ガス遮断弁 定期整備 | J12: 46200 | K12: 不鳴調査 | L12: 86400 | N12: 13608 | O12: 自転車搬送コンベアライン取替 | P12: 50760 | Q12: 駐輪場扉補修 | R12: 109836 | S12: 天井漏水補修工事 | T12: 518400 | U12: 受水槽排水ポンプ取替 | V12: 550000 | Y12: ゲートモーター交換 | Z12: 113256 | AA12: 消防設備点検費 | AB12: 323400 | AD12: 13860
E13: 照明器具交換 | F13: 27300 | G13: 喚起ダクト廻り漏水調査 | H13: 46200 | I13: 電気錠取替 | J13: 61897 | K13: 防鳥ネット改修 | L13: 90720 | M13: オートロックスイッチ及び扉シリンダー取替 | N13: 108000 | O13: 店舗前ダウンライト取り替え | P13: 59400 | R13: 118800 | S13: 天井漏水調査 | T13: 648000 | V13: 830488 | Y13: 電子錠取替 | Z13: 113300 | AB13: 788040 | AD13: 1081520
E14: 看板等補修工事 | F14: 27300 | H14: 190050 | J14: 63000 | K14: 排水ポンプ取替 | L14: 225750 | O14: 共用散水系統漏水補修 | P14: 62640 | Q14: 誘導灯交換 | R14: 172216 | S14: 共用旧排水管調査 | T14: 961632 | U14: エントランス巾木額口補修 | V14: 1447600 | Y14: 防火戸ラッチ調査 | Z14: 113850 | AA14: 非常照明器具取替 | AB14: 847000 | AC14: シャッター修理修理 | AD14: 15180
E15: 配管ピット内防水工事 | F15: 338100 | H15: 496650 | I15: 感知器調査 | J15: 82950 | K15: スプリンクラーヘッド取替 | L15: 303480 | O15: ELV誘導灯取替 | P15: 66960 | Q15: ボイススピーカー取替 | R15: 216160 | S15: サイン工事 | T15: 1447200 | Z15: 130570 | AA15: 防犯カメラ取替 | AB15: 1056000 | AD15: 30800
F16: 15750 | J16: 122850 | K16: 送風機修理 | L16: 357000 | O16: 店舗出入口電子錠取替 | P16: 83160 | Q16: ELV前照明器具取替 | R16: 216160 | Y16: 感知器改修 | Z16: 165000 | AB16: 1419000 | AC16: 電子錠アダプター取替 | AD16: 24200
E17: スプリンクラー調査 | F17: 278250 | I17: 鳩対策工事 | J17: 262500 | K17: シャッター修理点検修理 | L17: 365040 | O17: 平板不陸調整 | P17: 95040 | Q17: 階段断線工事 | R17: 343440 | Y17: 地下排水ポンプ取替 | Z17: 178200 | AC17: 貯水槽水位制御工事 | AD17: 583000
E18: 共用部長尺シート補修 | F18: 27800 | I18: 送風機修理・ベルト交換点検修理 | J18: 399000 | K18: 植栽工事 | L18: 379728 | O18: 坪庭植栽他工事 | P18: 98280 | Q18: エントランスエヤコン取替 | R18: 829440 | Z18: 216700 | AC18: 防災盤部品交換 | AD18: 2420000
E19: 路盤補修 | F19: 44600 | K19: 消防設備（共用部）改修 | L19: 577500 | O19: 駐輪場スライダー扉開閉不良調整 | P19: 126900 | Q19: 中央監視装置MCU UPS交換工事 | R19: 950400 | Y19: 発電室防音ドア補修 | Z19: 228800 | AD19: 480150
F20: 23541 | L20: 734400 | O20: ポット用樹木支柱補修 | P20: 137916 | Y20: 駐車場出入口グレーチング補修 | Z20: 295680
O21: 防犯カメラ設置 | P21: 199800 | Y21: 駐車場ピット内漏水調査 | Z21: 317350
O22: 庇シーリング打ち替え | P22: 200880 | Y22: 消火補給水槽廻り取替 | Z22: 473000
O23: ゲート修理 | P23: 243216 | Y23: 電気温水器取替 | Z23: 473000
O24: 店舗天井漏水 | P24: 291600 | Z24: 893750
O25: CS放送改修工事 | P25: 463320 | Y25: 屋外階段シート改修 | Z25: 6435000
O26: 庇補修工事 | P26: 799200
O27: １階南軒天塗装工事 | P27: 885600
O28: １階空調ガラリ補修工事 | P28: 1976400
F30: =SUM(F5:F29) -> 1172933 | H30: =SUM(H5:H29) -> 912765 | J30: =SUM(J5:J29) -> 1188862 | L30: =SUM(L5:L29) -> 3413577 | N30: =SUM(N5:N29) -> 1451726 | P30: =SUM(P5:P29) -> 6069736 | R30: =SUM(R5:R29) -> 3279750 | T30: =SUM(T5:T29) -> 4466900 | V30: =SUM(V5:V29) -> 3241653 | X30: =SUM(X5:X29) -> 1071730 | Z30: =SUM(Z5:Z29) -> 10443466 | AB30: =SUM(AB5:AB29) -> 5751350 | AD30: =SUM(AD5:AD29) -> 6432239

Sheet 収支決算書
A1: 収支決算書
A2: 区分 | B2: 暦年 | D2: 2012 11期 | G2: 2013 12期 | J2: 2014 13期 | M2: 2015 14期 | P2: 2016 15期 | S2: 2017 16期 | V2: 2018 17期 | Y2: 2019 18期 | AB2: 2020 19期 | AE2: 2021 20期 | AH2: 2022 21期 | AK2: 2023 22期 | AN2: 2024 23期 | AQ2: 2025 24期 | AT2: 2026 25期 | AW2: 2027 26期 | AZ2: 2028 27期 | BC2: 2029 28期 | BF2: 2030 29期 | BI2: 2031 303期 | BL2: 2033 31期 | BO2: 2034 33期 | BR2: 2035 34期 | BU2: 2036 35期 | BX2: 2037 36期 | CA2: 2038 37期 | CD2: 2039 38期 | CG2: 2040 39期 | CJ2: 2041 40期
B3: 経年 | D3: 住宅 | E3: 施設 | F3: 合計 | G3: 住宅 | H3: 施設 | I3: 合計 | J3: 住宅 | K3: 施設 | L3: 合計 | M3: 住宅 | N3: 施設 | O3: 合計 | P3: 住宅 | Q3: 施設 | R3: 合計 | S3: 住宅 | T3: 施設 | U3: 合計 | V3: 住宅 | W3: 施設 | X3: 合計 | Y3: 住宅 | Z3: 施設 | AA3: 合計 | AB3: 住宅 | AC3: 施設 | AD3: 合計 | AE3: 住宅 | AF3: 施設 | AG3: 合計 | AH3: 住宅 | AI3: 施設 | AJ3: 合計 | AK3: 住宅 | AL3: 施設 | AM3: 合計 | AN3: 住宅 | AO3: 施設 | AP3: 合計 | AQ3: 住宅 | AR3: 施設 | AS3: 合計 | AT3: 住宅 | AU3: 施設 | AV3: 合計 | AW3: 住宅 | AX3: 施設 | AY3: 合計 | AZ3: 住宅 | BA3: 施設 | BB3: 合計 | BC3: 住宅 | BD3: 施設 | BE3: 合計 | BF3: 住宅 | BG3: 施設 | BH3: 合計 | BI3: 住宅 | BJ3: 施設 | BK3: 合計 | BL3: 住宅 | BM3: 施設 | BN3: 合計 | BO3: 住宅 | BP3: 施設 | BQ3: 合計 | BR3: 住宅 | BS3: 施設 | BT3: 合計 | BU3: 住宅 | BV3: 施設 | BW3: 合計 | BX3: 住宅 | BY3: 施設 | BZ3: 合計 | CA3: 住宅 | CB3: 施設 | CC3: 合計 | CD3: 住宅 | CE3: 施設 | CF3: 合計 | CG3: 住宅 | CH3: 施設 | CI3: 合計 | CJ3: 住宅 | CK3: 施設 | CL3: 合計
A4: 一般会計 | AU4: 改定増 | AV4: =タイプ別面積・管理費等額!M127 -> 555216.2788
A5: 収入 | D5: 15799134 | E5: 44283015 | F5: =SUM(D5+E5) -> 60082149 | G5: 15328412 | H5: 42341955 | I5: =SUM(G5+H5) -> 57670367 | J5: 15248626 | K5: 48506244 | L5: =SUM(J5+K5) -> 63754870 | M5: 14745969 | N5: 48717851 | O5: =SUM(M5+N5) -> 63463820 | P5: 14563712 | Q5: 51952891 | R5: =SUM(P5+Q5) -> 66516603 | S5: 20755133 | T5: 50488915 | U5: =SUM(S5+T5) -> 71244048 | V5: 20823726 | W5: 58316367 | X5: =SUM(V5+W5) -> 79140093 | Y5: 21695254 | Z5: 57643297 | AA5: =SUM(Y5+Z5) -> 79338551 | AB5: 21211585 | AC5: 58458901 | AD5: =SUM(AB5+AC5) -> 79670486 | AE5: 20770057 | AF5: 50933503 | AG5: =SUM(AE5+AF5) -> 71703560 | AH5: 20899294 | AI5: 51983211 | AJ5: =SUM(AH5:AI5) -> 72882505 | AK5: 23622055 | AL5: 64241539 | AM5: =SUM(AK5:AL5) -> 87863594 | AN5: 21529949 | AO5: 60033487 | AP5: =SUM(AN5:AO5) -> 81563436 | AQ5: 22894360 | AR5: 64254444 | AS5: =SUM(AQ5:AR5) -> 87148804 | AT5: 22894360 | AU5: 64254444 | AV5: =SUM(AT5:AU5) -> 87148804
A6: 支出 | D6: 14302646 | E6: 43284779 | F6: =SUM(D6+E6) -> 57587425 | G6: 14319846 | H6: 40868786 | I6: =SUM(G6+H6) -> 55188632 | J6: 14385198 | K6: 48294565 | L6: =SUM(J6+K6) -> 62679763 | M6: 14534040 | N6: 50687167 | O6: =SUM(M6+N6) -> 65221207 | P6: 15418353 | Q6: 52694085 | R6: =SUM(P6+Q6) -> 68112438 | S6: 21839697 | T6: 58255364 | U6: =SUM(S6+T6) -> 80095061 | V6: 20431542 | W6: 57938447 | X6: =SUM(V6+W6) -> 78369989 | Y6: 19688303 | Z6: 61188465 | AA6: =SUM(Y6+Z6) -> 80876768 | AB6: 20835160 | AC6: 58463241 | AD6: =SUM(AB6+AC6) -> 79298401 | AE6: 19528964 | AF6: 51788094 | AG6: =SUM(AE6+AF6) -> 71317058 | AH6: 27201379 | AI6: 55843143 | AJ6: =SUM(AH6:AI6) -> 83044522 | AK6: 23551500 | AL6: 69294146 | AM6: =SUM(AK6:AL6) -> 92845646 | AN6: 23137740 | AO6: 61861065 | AP6: =SUM(AN6:AO6) -> 84998805 | AQ6: 22894360 | AR6: 67254444 | AS6: =SUM(AQ6:AR6) -> 90148804
A8: ①当期余剰金 | D8: =SUM(D5,-D6) -> 1496488 | E8: =SUM(E5,-E6) -> 998236 | F8: =SUM(D8+E8) -> 2494724 | G8: =SUM(G5,-G6) -> 1008566 | H8: =SUM(H5,-H6) -> 1473169 | I8: =SUM(G8+H8) -> 2481735 | J8: =SUM(J5,-J6) -> 863428 | K8: =SUM(K5,-K6) -> 211679 | L8: =SUM(J8+K8) -> 1075107 | M8: =SUM(M5,-M6) -> 211929 | N8: =SUM(N5,-N6) -> -1969316 | O8: =SUM(M8+N8) -> -1757387 | P8: =SUM(P5,-P6) -> -854641 | Q8: =SUM(Q5,-Q6) -> -741194 | R8: =SUM(P8+Q8) -> -1595835 | S8: =SUM(S5,-S6) -> -1084564 | T8: =SUM(T5,-T6) -> -7766449 | U8: =SUM(S8+T8) -> -8851013 | V8: =SUM(V5,-V6) -> 392184 | W8: =SUM(W5,-W6) -> 377920 | X8: =SUM(V8+W8) -> 770104 | Y8: =SUM(Y5,-Y6) -> 2006951 | Z8: =SUM(Z5,-Z6) -> -3545168 | AA8: =SUM(Y8+Z8) -> -1538217 | AB8: =SUM(AB5,-AB6) -> 376425 | AC8: =SUM(AC5,-AC6) -> -4340 | AD8: =SUM(AB8+AC8) -> 372085 | AE8: =SUM(AE5,-AE6) -> 1241093 | AF8: =SUM(AF5,-AF6) -> -854591 | AG8: =SUM(AE8+AF8) -> 386502 | AH8: =SUM(AH5,-AH6) -> -6302085 | AI8: =SUM(AI5,-AI6) -> -3859932 | AJ8: =SUM(AH8+AI8) -> -10162017 | AK8: =SUM(AK5,-AK6) -> 70555 | AL8: =SUM(AL5,-AL6) -> -5052607 | AM8: =SUM(AK8+AL8) -> -4982052 | AN8: =SUM(AN5,-AN6) -> -1607791 | AO8: =SUM(AO5,-AO6) -> -1827578 | AP8: =SUM(AN8+AO8) -> -3435369 | AQ8: =SUM(AQ5,-AQ6) -> 0 | AR8: =SUM(AR5,-AR6) -> -3000000 | AS8: =SUM(AQ8+AR8) -> -3000000 | AT8: =SUM(AT5,-AT6) -> 22894360 | AU8: =SUM(AU5,-AU6) -> 64254444 | AV8: =SUM(AT8+AU8) -> 87148804 | AW8: =SUM(AW5,-AW6) -> 0 | AX8: =SUM(AX5,-AX6) -> 0 | AY8: =SUM(AW8+AX8) -> 0 | AZ8: =SUM(AZ5,-AZ6) -> 0 | BA8: =SUM(BA5,-BA6) -> 0 | BB8: =SUM(AZ8+BA8) -> 0 | BC8: =SUM(BC5,-BC6) -> 0 | BD8: =SUM(BD5,-BD6) -> 0 | BE8: =SUM(BC8+BD8) -> 0 | BF8: =SUM(BF5,-BF6) -> 0 | BG8: =SUM(BG5,-BG6) -> 0 | BH8: =SUM(BF8+BG8) -> 0 | BI8: =SUM(BI5,-BI6) -> 0 | BJ8: =SUM(BJ5,-BJ6) -> 0 | BK8: =SUM(BI8+BJ8) -> 0 | BL8: =SUM(BL5,-BL6) -> 0 | BM8: =SUM(BM5,-BM6) -> 0 | BN8: =SUM(BL8+BM8) -> 0 | BO8: =SUM(BO5,-BO6) -> 0 | BP8: =SUM(BP5,-BP6) -> 0 | BQ8: =SUM(BO8+BP8) -> 0 | BR8: =SUM(BR5,-BR6) -> 0 | BS8: =SUM(BS5,-BS6) -> 0 | BT8: =SUM(BR8+BS8) -> 0 | BU8: =SUM(BU5,-BU6) -> 0 | BV8: =SUM(BV5,-BV6) -> 0 | BW8: =SUM(BU8+BV8) -> 0 | BX8: =SUM(BX5,-BX6) -> 0 | BY8: =SUM(BY5,-BY6) -> 0 | BZ8: =SUM(BX8+BY8) -> 0 | CA8: =SUM(CA5,-CA6) -> 0 | CB8: =SUM(CB5,-CB6) -> 0 | CC8: =SUM(CA8+CB8) -> 0 | CD8: =SUM(CD5,-CD6) -> 0 | CE8: =SUM(CE5,-CE6) -> 0 | CF8: =SUM(CD8+CE8) -> 0 | CG8: =SUM(CG5,-CG6) -> 0 | CH8: =SUM(CH5,-CH6) -> 0 | CI8: =SUM(CG8+CH8) -> 0 | CJ8: =SUM(CJ5,-CJ6) -> 0 | CK8: =SUM(CK5,-CK6) -> 0 | CL8: =SUM(CJ8+CK8) -> 0 | CM8: =SUM(CM5,-CM6) -> 0 | CN8: =SUM(CN5,-CN6) -> 0 | CO8: =SUM(CM8+CN8) -> 0
A9: ➁前期繰越額 | D9: 21025741 | E9: 12061498 | F9: =SUM(D9+E9) -> 33087239 | G9: =SUM(D12) -> 22522229 | H9: =SUM(E12) -> 11831328 | I9: =SUM(G9+H9) -> 34353557 | J9: =SUM(G12) -> 23531695 | K9: =SUM(H12) -> 13237127 | L9: =SUM(J9+K9) -> 36768822 | M9: =SUM(J12) -> 24395123 | N9: =SUM(K12) -> 13448806 | O9: =SUM(M9+N9) -> 37843929 | P9: =SUM(M12) -> 24607052 | Q9: =SUM(N12) -> 11479490 | R9: =SUM(P9+Q9) -> 36086542 | S9: =SUM(P12) -> 23752411 | T9: =SUM(Q12) -> 10738296 | U9: =SUM(S9+T9) -> 34490707 | V9: =SUM(S12) -> 22667847 | W9: =SUM(T12) -> 2971847 | X9: =SUM(V9+W9) -> 25639694 | Y9: =SUM(V12) -> 22827420 | Z9: =SUM(W12) -> 1781137 | AA9: =SUM(Y9+Z9) -> 24608557 | AB9: =SUM(Y12) -> 24754689 | AC9: =SUM(Z12) -> -3136679 | AD9: =SUM(AB9+AC9) -> 21618010 | AE9: =SUM(AB12) -> 24904142 | AF9: =SUM(AC12) -> -4657466 | AG9: =SUM(AE9+AF9) -> 20246676 | AH9: =SUM(AE12) -> 25909401 | AI9: =SUM(AF12) -> -6829861 | AJ9: =SUM(AH9+AI9) -> 19079540 | AK9: =SUM(AH12) -> 19365546 | AL9: =SUM(AI12) -> -12047486 | AM9: =SUM(AK9+AL9) -> 7318060 | AN9: =SUM(AK12) -> 19117706 | AO9: =SUM(AL12) -> -18904333 | AP9: =SUM(AN9+AO9) -> 213373 | AQ9: =SUM(AN12) -> 17244202 | AR9: =SUM(AO12) -> -22357649 | AS9: =SUM(AQ9+AR9) -> -5113447 | AT9: =SUM(AQ12) -> 17244202 | AU9: =SUM(AR12) -> -25357649 | AV9: =SUM(AT9+AU9) -> -8113447 | AW9: =SUM(AT12) -> 40138562 | AX9: =SUM(AU12) -> 38896795 | AY9: =SUM(AW9+AX9) -> 79035357 | AZ9: =SUM(AW12) -> 40138562 | BA9: =SUM(AX12) -> 38896795 | BB9: =SUM(AZ9+BA9) -> 79035357 | BC9: =SUM(AZ12) -> 40138562 | BD9: =SUM(BA12) -> 38896795 | BE9: =SUM(BC9+BD9) -> 79035357 | BF9: =SUM(BC12) -> 40138562 | BG9: =SUM(BD12) -> 38896795 | BH9: =SUM(BF9+BG9) -> 79035357 | BI9: =SUM(BF12) -> 40138562 | BJ9: =SUM(BG12) -> 38896795 | BK9: =SUM(BI9+BJ9) -> 79035357 | BL9: =SUM(BI12) -> 40138562 | BM9: =SUM(BJ12) -> 38896795 | BN9: =SUM(BL9+BM9) -> 79035357 | BO9: =SUM(BL12) -> 40138562 | BP9: =SUM(BM12) -> 38896795 | BQ9: =SUM(BO9+BP9) -> 79035357 | BR9: =SUM(BO12) -> 40138562 | BS9: =SUM(BP12) -> 38896795 | BT9: =SUM(BR9+BS9) -> 79035357 | BU9: =SUM(BR12) -> 40138562 | BV9: =SUM(BS12) -> 38896795 | BW9: =SUM(BU9+BV9) -> 79035357 | BX9: =SUM(BU12) -> 40138562 | BY9: =SUM(BV12) -> 38896795 | BZ9: =SUM(BX9+BY9) -> 79035357 | CA9: =SUM(BX12) -> 40138562 | CB9: =SUM(BY12) -> 38896795 | CC9: =SUM(CA9+CB9) -> 79035357 | CD9: =SUM(CA12) -> 40138562 | CE9: =SUM(CB12) -> 38896795 | CF9: =SUM(CD9+CE9) -> 79035357 | CG9: =SUM(CD12) -> 40138562 | CH9: =SUM(CE12) -> 38896795 | CI9: =SUM(CG9+CH9) -> 79035357 | CJ9: =SUM(CG12) -> 40138562 | CK9: =SUM(CH12) -> 38896795 | CL9: =SUM(CJ9+CK9) -> 79035357 | CM9: =SUM(CJ12) -> 40138562 | CN9: =SUM(CK12) -> 38896795 | CO9: =SUM(CM9+CN9) -> 79035357
A10: ③前期余剰金取崩 | D10: 0 | E10: 1228406 | F10: =SUM(D10+E10) -> 1228406 | G10: 900 | H10: -67370 | L10: =SUM(J10+K10) -> 0 | M10: 0 | N10: 0 | O10: 0 | P10: 0 | Q10: 0 | R10: 0 | S10: 0 | T10: 0 | U10: 0 | V10: 0 | W10: 0 | X10: =SUM(V10+W10) -> 0 | Z10: 0 | AA10: =SUM(Y10+Z10) -> 0 | AB10: 0 | AC10: 0 | AD10: 0 | AE10: 0 | AF10: 0 | AG10: 0 | AH10: 0 | AI10: 0 | AJ10: =SUM(AH10+AI10) -> 0 | AK10: 0 | AL10: 0 | AM10: =SUM(AK10+AL10) -> 0 | AN10: 0 | AO10: 0 | AP10: =SUM(AN10+AO10) -> 0 | AQ10: 0 | AR10: 0 | AS10: =SUM(AQ10+AR10) -> 0 | AT10: 0 | AU10: 0 | AV10: 0 | AW10: 0 | AX10: 0 | AY10: 0 | AZ10: 0 | BA10: 0 | BB10: 0 | BC10: 0 | BD10: 0 | BE10: 0 | BF10: 0 | BG10: 0 | BH10: 0 | BI10: 0 | BJ10: 0 | BK10: 0 | BL10: 0 | BM10: 0 | BN10: 0 | BO10: 0 | BP10: 0 | BQ10: 0 | BR10: 0 | BS10: 0 | BT10: 0 | BU10: 0 | BV10: 0 | BW10: 0 | BX10: 0 | BY10: 0 | BZ10: 0 | CA10: 0 | CB10: 0 | CC10: 0 | CD10: 0 | CE10: 0 | CF10: 0 | CG10: 0 | CH10: 0 | CI10: 0 | CJ10: 0 | CK10: 0 | CL10: 0 | CM10: 0 | CN10: 0 | CO10: 0
A11: ④電気使用料振替 | S11: -271320 | T11: -1675040 | U11: =SUM(S11+T11) -> -1946360 | V11: -232611 | W11: -1568630 | X11: =SUM(V11+W11) -> -1801241 | Y11: -230431 | Z11: -1542119 | AA11: =SUM(Y11+Z11) -> -1772550 | AB11: -226972 | AC11: -1516447 | AD11: =SUM(AB11+AC11) -> -1743419 | AE11: -235834 | AF11: -1317804 | AG11: =SUM(AE11+AF11) -> -1553638 | AH11: -241770 | AI11: -1357693 | AJ11: =SUM(AH11+AI11) -> -1599463 | AK11: -318395 | AL11: -1804240 | AM11: =SUM(AK11+AL11) -> -2122635 | AN11: -265713 | AO11: -1625738 | AP11: =SUM(AN11+AO11) -> -1891451 | AS11: =SUM(AQ11+AR11) -> 0
A12: 次期繰越額 | D12: =SUM(D8+D9-D10) -> 22522229 | E12: =SUM(E8+E9-E10) -> 11831328 | F12: =SUM(D12+E12) -> 34353557 | G12: 23531695 | H12: 13237127 | I12: =SUM(G12+H12) -> 36768822 | J12: =SUM(J8+J9-J10) -> 24395123 | K12: =SUM(K8+K9-K10) -> 13448806 | L12: =SUM(J12+K12) -> 37843929 | M12: =SUM(M8+M9-M10) -> 24607052 | N12: =SUM(N8+N9-N10) -> 11479490 | O12: =SUM(M12+N12) -> 36086542 | P12: 23752411 | Q12: 10738296 | R12: =SUM(P12+Q12) -> 34490707 | S12: =SUM(S8+S9-S10) -> 22667847 | T12: =SUM(T8+T9-T10) -> 2971847 | U12: =SUM(S12+T12) -> 25639694 | V12: =SUM(V8:V11) -> 22827420 | W12: =SUM(W8:W11) -> 1781137 | X12: =SUM(V12+W12) -> 24608557 | Y12: 24754689 | Z12: -3136679 | AA12: =SUM(Y12+Z12) -> 21618010 | AB12: =SUM(AB8:AB11) -> 24904142 | AC12: -4657466 | AD12: 20246676 | AE12: 25909401 | AF12: -6829861 | AG12: 19079540 | AH12: 19365546 | AI12: -12047486 | AJ12: 7318060 | AK12: 19117706 | AL12: -18904333 | AM12: =SUM(AK12+AL12) -> 213373 | AN12: =SUM(AN8:AN11) -> 17244202 | AO12: =SUM(AO8:AO11) -> -22357649 | AP12: =SUM(AN12+AO12) -> -5113447 | AQ12: =SUM(AQ8+AQ9-AQ10) -> 17244202 | AR12: =SUM(AR8+AR9-AR10) -> -25357649 | AS12: =SUM(AQ12+AR12) -> -8113447 | AT12: =SUM(AT8+AT9-AT10) -> 40138562 | AU12: =SUM(AU8+AU9-AU10) -> 38896795 | AV12: =SUM(AT12+AU12) -> 79035357 | AW12: =SUM(AW8+AW9-AW10) -> 40138562 | AX12: =SUM(AX8+AX9-AX10) -> 38896795 | AY12: =SUM(AW12+AX12) -> 79035357 | AZ12: =SUM(AZ8+AZ9-AZ10) -> 40138562 | BA12: =SUM(BA8+BA9-BA10) -> 38896795 | BB12: =SUM(AZ12+BA12) -> 79035357 | BC12: =SUM(BC8+BC9-BC10) -> 40138562 | BD12: =SUM(BD8+BD9-BD10) -> 38896795 | BE12: =SUM(BC12+BD12) -> 79035357 | BF12: =SUM(BF8+BF9-BF10) -> 40138562 | BG12: =SUM(BG8+BG9-BG10) -> 38896795 | BH12: =SUM(BF12+BG12) -> 79035357 | BI12: =SUM(BI8+BI9-BI10) -> 40138562 | BJ12: =SUM(BJ8+BJ9-BJ10) -> 38896795 | BK12: =SUM(BI12+BJ12) -> 79035357 | BL12: =SUM(BL8+BL9-BL10) -> 40138562 | BM12: =SUM(BM8+BM9-BM10) -> 38896795 | BN12: =SUM(BL12+BM12) -> 79035357 | BO12: =SUM(BO8+BO9-BO10) -> 40138562 | BP12: =SUM(BP8+BP9-BP10) -> 38896795 | BQ12: =SUM(BO12+BP12) -> 79035357 | BR12: =SUM(BR8+BR9-BR10) -> 40138562 | BS12: =SUM(BS8+BS9-BS10) -> 38896795 | BT12: =SUM(BR12+BS12) -> 79035357 | BU12: =SUM(BU8+BU9-BU10) -> 40138562 | BV12: =SUM(BV8+BV9-BV10) -> 38896795 | BW12: =SUM(BU12+BV12) -> 79035357 | BX12: =SUM(BX8+BX9-BX10) -> 40138562 | BY12: =SUM(BY8+BY9-BY10) -> 38896795 | BZ12: =SUM(BX12+BY12) -> 79035357 | CA12: =SUM(CA8+CA9-CA10) -> 40138562 | CB12: =SUM(CB8+CB9-CB10) -> 38896795 | CC12: =SUM(CA12+CB12) -> 79035357 | CD12: =SUM(CD8+CD9-CD10) -> 40138562 | CE12: =SUM(CE8+CE9-CE10) -> 38896795 | CF12: =SUM(CD12+CE12) -> 79035357 | CG12: =SUM(CG8+CG9-CG10) -> 40138562 | CH12: =SUM(CH8+CH9-CH10) -> 38896795 | CI12: =SUM(CG12+CH12) -> 79035357 | CJ12: =SUM(CJ8+CJ9-CJ10) -> 40138562 | CK12: =SUM(CK8+CK9-CK10) -> 38896795 | CL12: =SUM(CJ12+CK12) -> 79035357 | CM12: =SUM(CM8+CM9-CM10) -> 40138562 | CN12: =SUM(CN8+CN9-CN10) -> 38896795 | CO12: =SUM(CM12+CN12) -> 79035357
A14: 特別会計
A15: 収入 | D15: 15229694 | E15: 19486706 | F15: =SUM(D15+E15) -> 34716400 | G15: 12553628 | H15: 9331488 | I15: =SUM(G15+H15) -> 21885116 | J15: 12347312 | K15: 9151488 | L15: =SUM(J15+K15) -> 21498800 | M15: 11802152 | N15: 9091488 | O15: =SUM(M15:N15) -> 20893640 | P15: 11924832 | Q15: 9479868 | R15: =SUM(P15:Q15) -> 21404700 | S15: 11491512 | T15: 8751488 | U15: =SUM(S15:T15) -> 20243000 | V15: 11541381 | W15: 8731488 | X15: =SUM(V15:W15) -> 20272869 | Y15: 11561362 | Z15: 8931488 | AA15: =SUM(Y15:Z15) -> 20492850 | AB15: 11724272 | AC15: 9336828 | AD15: =SUM(AB15:AC15) -> 21061100 | AE15: 11471344 | AF15: 13107989 | AG15: =SUM(AE15:AF15) -> 24579333 | AH15: 13240750 | AI15: 11088465 | AJ15: =SUM(AH15:AI15) -> 24329215 | AK15: 11499212 | AL15: 9211488 | AM15: =SUM(AK15:AL15) -> 20710700 | AN15: 11297802 | AO15: 9311488 | AP15: =SUM(AN15:AO15) -> 20609290 | AQ15: 11469512 | AR15: 9171488 | AS15: =SUM(AQ15:AR15) -> 20641000
A16: 支出 | D16: 1295857 | E16: 9907123 | F16: =SUM(D16+E16) -> 11202980 | G16: 108351601 | H16: 58438599 | I16: =SUM(G16+H16) -> 166790200 | J16: 267916 | K16: 1008084 | L16: =SUM(J16+K16) -> 1276000 | M16: 4154088 | N16: 5124289 | O16: =SUM(M16:N16) -> 9278377 | P16: 37010093 | Q16: 21852482 | R16: =SUM(P16:Q16) -> 58862575 | S16: 11198798 | T16: 4248712 | U16: =SUM(S16:T16) -> 15447510 | V16: 15987879 | W16: 35974701 | X16: =SUM(V16:W16) -> 51962580 | Y16: 12217450 | Z16: 2179665 | AA16: =SUM(Y16:Z16) -> 14397115 | AB16: 1275258 | AC16: 1297624 | AD16: =SUM(AB16:AC16) -> 2572882 | AE16: 4822037 | AF16: 5796363 | AG16: =SUM(AE16:AF16) -> 10618400 | AH16: 13433046 | AI16: 14458884 | AJ16: =SUM(AH16:AI16) -> 27891930 | AK16: 7172550 | AL16: 1350030 | AM16: =SUM(AK16:AL16) -> 8522580 | AN16: 6050145 | AO16: 2476305 | AP16: =SUM(AN16:AO16) -> 8526450 | AQ16: 6050145 | AR16: 5495757 | AS16: =SUM(AQ16:AR16) -> 11545902
A18: ①当期余剰金 | D18: =SUM(D15-D16) -> 13933837 | E18: =SUM(E15-E16) -> 9579583 | F18: =SUM(D18:E18) -> 23513420 | G18: =SUM(G15-G16) -> -95797973 | H18: =SUM(H15-H16) -> -49107111 | I18: =SUM(G18:H18) -> -144905084 | J18: =SUM(J15-J16) -> 12079396 | K18: =SUM(K15-K16) -> 8143404 | L18: =SUM(J18:K18) -> 20222800 | M18: =SUM(M15-M16) -> 7648064 | N18: =SUM(N15-N16) -> 3967199 | O18: =SUM(M18:N18) -> 11615263 | P18: =SUM(P15-P16) -> -25085261 | Q18: =SUM(Q15-Q16) -> -12372614 | R18: =SUM(P18:Q18) -> -37457875 | S18: =SUM(S15-S16) -> 292714 | T18: =SUM(T15-T16) -> 4502776 | U18: =SUM(S18:T18) -> 4795490 | V18: =SUM(V15-V16) -> -4446498 | W18: =SUM(W15-W16) -> -27243213 | X18: =SUM(V18:W18) -> -31689711 | Y18: =SUM(Y15-Y16) -> -656088 | Z18: =SUM(Z15-Z16) -> 6751823 | AA18: =SUM(Y18:Z18) -> 6095735 | AB18: =SUM(AB15-AB16) -> 10449014 | AC18: =SUM(AC15-AC16) -> 8039204 | AD18: =SUM(AB18:AC18) -> 18488218 | AE18: =SUM(AE15-AE16) -> 6649307 | AF18: =SUM(AF15-AF16) -> 7311626 | AG18: =SUM(AE18:AF18) -> 13960933 | AH18: =SUM(AH15-AH16) -> -192296 | AI18: =SUM(AI15-AI16) -> -3370419 | AJ18: =SUM(AH18:AI18) -> -3562715 | AK18: =SUM(AK15-AK16) -> 4326662 | AL18: =SUM(AL15-AL16) -> 7861458 | AM18: =SUM(AK18:AL18) -> 12188120 | AN18: =SUM(AN15-AN16) -> 5247657 | AO18: =SUM(AO15-AO16) -> 6835183 | AP18: =SUM(AN18:AO18) -> 12082840 | AQ18: =SUM(AQ15-AQ16) -> 5419367 | AR18: =SUM(AR15-AR16) -> 3675731 | AS18: =SUM(AQ18:AR18) -> 9095098
A19: ➁前期繰越額 | D19: 115617897 | E19: 78314753 | F19: =SUM(D19+E19) -> 193932650 | G19: 129551734 | H19: 87894336 | I19: =SUM(G19:H19) -> 217446070 | J19: =SUM(G22) -> 33753761 | K19: =SUM(H22) -> 38787225 | L19: =SUM(I22) -> 72540986 | M19: =SUM(J22) -> 45833157 | N19: =SUM(K22) -> 46930629 | O19: =SUM(M19:N19) -> 92763786 | P19: =SUM(M22) -> 53481221 | Q19: =SUM(N22) -> 50897828 | R19: =SUM(P19:Q19) -> 104379049 | S19: =SUM(P22) -> 28395960 | T19: =SUM(Q22) -> 38525214 | U19: =SUM(S19:T19) -> 66921174 | V19: =SUM(S22) -> 28959994 | W19: =SUM(T22) -> 44703030 | X19: =SUM(V19:W19) -> 73663024 | Y19: =SUM(V22) -> 24746107 | Z19: =SUM(W22) -> 19028447 | AA19: =SUM(Y19:Z19) -> 43774554 | AB19: =SUM(Y22) -> 21503897 | AC19: =SUM(Z22) -> 27879382 | AD19: =SUM(AB19:AC19) -> 49383279 | AE19: =SUM(AB22) -> 32179883 | AF19: =SUM(AC22) -> 37435015 | AG19: =SUM(AE19:AF19) -> 69614898 | AH19: =SUM(AE22) -> 39114498 | AI19: =SUM(AF22) -> 44051719 | AJ19: =SUM(AH19:AI19) -> 83166217 | AK19: =SUM(AH22) -> 39114498 | AL19: =SUM(AI22) -> 44051719 | AM19: =SUM(AK19:AL19) -> 83166217 | AN19: =SUM(AK22) -> 43759555 | AO19: =SUM(AL22) -> 53717417 | AP19: =SUM(AN19:AO19) -> 97476972 | AQ19: =SUM(AN22) -> 49272925 | AR19: =SUM(AO22) -> 62178338 | AS19: =SUM(AQ19:AR19) -> 111451263
A20: ③前期余剰金取崩 | F20: =SUM(D20+E20) -> 0 | AA20: =SUM(Y20:Z20) -> 0 | AD20: =SUM(AB20:AC20) -> 0 | AG20: =SUM(AE20:AF20) -> 0 | AJ20: =SUM(AH20:AI20) -> 0 | AK20: 0 | AL20: 0 | AM20: =SUM(AK20:AL20) -> 0 | AN20: 0 | AO20: 0 | AP20: =SUM(AN20:AO20) -> 0 | AQ20: 0 | AR20: 0 | AS20: =SUM(AQ20:AR20) -> 0
A21: ④電気使用料振替 | R21: =SUM(P21:Q21) -> 0 | S21: =SUM(S11)*-1 -> 271320 | T21: =SUM(T11)*-1 -> 1675040 | U21: =SUM(S21:T21) -> 1946360 | V21: =SUM(V11)*-1 -> 232611 | W21: =SUM(W11)*-1 -> 1568630 | X21: =SUM(V21:W21) -> 1801241 | Y21: =SUM(Y11)*-1 -> 230431 | Z21: =SUM(Z11)*-1 -> 1542119 | AA21: =SUM(Y21:Z21) -> 1772550 | AB21: =SUM(AB11)*-1 -> 226972 | AC21: =SUM(AC11)*-1 -> 1516447 | AD21: =SUM(AB21:AC21) -> 1743419 | AE21: =SUM(AE11)*-1 -> 235834 | AF21: =SUM(AF11)*-1 -> 1317804 | AG21: =SUM(AE21:AF21) -> 1553638 | AH21: =SUM(AH11)*-1 -> 241770 | AI21: =SUM(AI11)*-1 -> 1357693 | AJ21: =SUM(AH21:AI21) -> 1599463 | AK21: =SUM(AK11)*-1 -> 318395 | AL21: =SUM(AL11)*-1 -> 1804240 | AM21: =SUM(AK21:AL21) -> 2122635 | AN21: =SUM(AN11)*-1 -> 265713 | AO21: =SUM(AO11)*-1 -> 1625738 | AP21: =SUM(AN21:AO21) -> 1891451 | AQ21: =SUM(AQ11)*-1 -> 0 | AR21: =SUM(AR11)*-1 -> 0 | AS21: =SUM(AQ21:AR21) -> 0
A22: 次期繰越額 | D22: =SUM(D18:D21) -> 129551734 | E22: 87894336 | F22: 217446070 | G22: 33753761 | H22: 38787225 | I22: 72540986 | J22: 45833157 | K22: 46930629 | L22: 92763786 | M22: 53481221 | N22: 50897828 | O22: =SUM(M22:N22) -> 104379049 | P22: =SUM(P18:P21) -> 28395960 | Q22: =SUM(Q18:Q21) -> 38525214 | R22: =SUM(P22:Q22) -> 66921174 | S22: =SUM(S18:S21) -> 28959994 | T22: =SUM(T18:T21) -> 44703030 | U22: =SUM(S22:T22) -> 73663024 | V22: =SUM(V18:V21) -> 24746107 | W22: =SUM(W18:W21) -> 19028447 | X22: =SUM(V22:W22) -> 43774554 | Y22: 21503897 | Z22: 27879382 | AA22: =SUM(Y22:Z22) -> 49383279 | AB22: 32179883 | AC22: 37435015 | AD22: =SUM(AB22:AC22) -> 69614898 | AE22: 39114498 | AF22: 44051719 | AG22: =SUM(AE22:AF22) -> 83166217 | AH22: 39114498 | AI22: 44051719 | AJ22: =SUM(AH22:AI22) -> 83166217 | AK22: 43759555 | AL22: 53717417 | AM22: =SUM(AK22:AL22) -> 97476972 | AN22: =SUM(AN18:AN21) -> 49272925 | AO22: =SUM(AO18:AO21) -> 62178338 | AP22: =SUM(AN22:AO22) -> 111451263 | AQ22: =SUM(AQ18:AQ21) -> 54692292 | AR22: =SUM(AR18:AR21) -> 65854069 | AS22: =SUM(AQ22:AR22) -> 120546361
A24: 内、電気使用料積立分累計
AP25: *

Sheet 修繕周期表1
A1: （様式第3-2号） 推定修繕工事項目、修繕周期等の設定内容
A2: 推定修繕工事項目 | C2: 対象部位等 | D2: 工事区分 | E2: 修繕周期（参考） | F2: 想定している修繕方法等
A3: Ⅰ 仮設
A4: １ 仮設工事
A5: ①共通仮設 | D5: 仮設 | E5: １２～１５年 | F5: 仮設事務所、資材置き場等
A6: ②直接仮設 | F6: 枠組足場、養生シート等
A7: Ⅱ 建物
A8: ２ 屋根防水
A9: ①屋上防水（保護） | C9: 屋上、塔屋、ルーフバルコニー | D9: 補修 | F9: 伸縮目地の打替え、保護コンクリート部分補修
D10: 修繕 | E10: ２４～３０年 | F10: 下地調整の上、露出防水（ウレタン塗膜防水） ※かぶせ方式（保護層を撤去しない）
A11: ②屋上防水（露出） | C11: 屋上、塔屋 | F11: ウレタン塗膜防水の上、保護塗装（トップコート塗り） ※かぶせ方式（防水層を撤去しない）
D12: 撤去・新設 | F12: 既存防水層を全面撤去の上、下地調整、（露出ｱｽﾌｧﾙﾄ防水等）
A13: ③傾斜屋根 | C13: 屋根 | F13: 下地調整の上、保護塗装（水性ポリマー等）
D14: 撤去・葺替 | F14: 既存屋根材を全面撤去の上、下地補修、葺替え （アスファルトシングル葺、金属板葺等）
A15: ④庇・笠木等防水 | C15: 庇天端、笠木天端、パラペット天端・アゴ、架台天端等 | F15: 高圧水洗の上、下地調整、（ウレタン塗膜防水等）
A16: ３ | B16: 床防水
A17: ①バルコニー床防水 | C17: バルコニーの床 （側溝、幅木を含む） | F17: 床／高圧水洗の上、下地調整、（ウレタン塗膜防水）
F18: 側溝・幅木／高圧水洗の上、下地調整、（ウレタン塗膜防水）
A19: ②開放廊下・階段等床防水 | C19: 開放廊下・階段の床 （側溝、幅木を含む） | F19: 床部／高圧水洗の上、下地調整、（塩ビシート張り等）
F20: 側溝・幅木／高圧洗浄の上、下地調整、（ウレタン塗膜防水）
A21: ４ 外壁塗装等
A22: ①躯体コンクリート補修 | C22: 外壁、屋根、床、手すり壁、軒天（上げ裏）、庇等 （コンクリート、モルタル部分） | F22: ひび割れ・浮き・欠損・鉄筋の発錆・モルタルの浮き等の補修
A23: ②外壁塗装（雨掛かり部分） | C23: 外壁、手すり壁等 | D23: 塗替 | F23: 高圧洗浄の上、下地処理、塗装（仕上塗材）
D24: 除去・塗装 | F24: 既存全面除去の上、下地処理、塗装（仕上塗材）
A25: ③外壁塗装（非雨掛かり部分）
A27: ④軒天塗装 | C27: 開放廊下・階段、バルコニー等の軒天（上げ裏）部分 | F27: 高圧水洗の上、下地処理、塗装
F28: 既存全面除去の上、下地処理、塗装
A29: ⑤タイル張補修 | C29: 外壁・手すり壁等 | F29: 高圧洗浄、欠損・浮き・剥離・ひび割れ等の補修、一部張替え
A30: ⑥シーリング | C30: 外壁目地、建具周り、スリーブ周り、部材接合部等 | D30: 打替 | F30: 打継・伸縮・誘発目地、部材取合部等の打替え
A31: ５ 鉄部塗装等
A32: ①鉄部塗装 （雨掛かり部分） | C32: （鋼製）開放廊下・階段、バルコニーの手すり | E32: ５～７年 | F32: 下地処理の上、塗装
C33: （鋼製）屋上フェンス、設備機器、立て樋・支持金物、架台、避難ハッチ、マンホール蓋、隔て板枠、物干金物等
C34: 屋外鉄骨階段、自転車置場、遊具、フェンス | F34: 下地処理の上、塗装 （注）機械式駐車場を除く
A35: ②鉄部塗装 （非雨掛かり部分） | C35: （鋼製）住戸玄関ドア
C36: （鋼製）共用部分ドア、メーターボックス扉、手すり、照明器具、設備機器、配電盤類、屋内消火栓箱等
A37: ③非鉄部塗装 | C37: （アルミ製・ステンレス製等） サッシ、面格子、ドア、手すり、避難ハッチ、換気口等 | D37: 清掃 | F37: 洗浄の上、コーティング
C38: （ボード、樹脂、木製等） 隔て板・エアコンスリーブ・雨樋等

Sheet 修繕周期表2
A3: ６ 建具・金物等
A4: ①建具関係 | B4: 住戸玄関ドア、共用部分ドア、自動ドア | C4: 点検・調整 | E4: 動作点検、金具（丁番、ドアチェック等）の調整等
C5: 取替 | D5: ３４～３８年 | E5: かぶせ工法（既存枠の上に新規枠を取付け）
B6: 窓サッシ、面格子、網戸、シャッター | E6: 動作点検、金具（戸車、クレセント、ビート等）の調整等
A8: ②手すり | B8: 開放廊下・階段、バルコニーの手すり、防風スクリーン | E8: 全部撤去の上、アルミ製手すりに取替え
A9: ③屋外鉄骨階段 | B9: 屋外鉄骨階段 | E9: 点検、腐食部板金溶接補修、踏板取替え等
E10: 全部撤去の上、建替え
A11: ④金物類 （集合郵便受等） | B11: 集合郵便受、掲示板、宅配ロッカー等 | D11: ２４～２８年
B12: 笠木、架台、マンホール蓋、階段ノンスリップ、避難ハッチ、タ ラップ、排水金物、室名札、立て樋・支持金物、隔て板、物干金物、スリーブキャップ等
B13: 屋上フェンス等
A14: ⑤金物類 （メータボックス扉等） | B14: メーターボックスの扉、パイプスペースの扉等
A15: ７ 共用内部
A16: ①共用内部 | B16: 管理事務室、集会室、内部廊下、内部階段等の壁、床、天井 | C16: 張替・塗替 | E16: 床・壁・天井の塗替え･張替え等
B17: エントランスホール、エレベーターホールの壁、床、天井
A18: Ⅲ 設備
A19: ８ 給水設備
A20: ①給水管 | B20: 屋内共用給水管 | C20: 更生 | D20: １９～２３年
B21: 屋内共用給水管、屋外共用給水管 | C21: 取替（更新） | D21: ３０～４０年 | E21: 仕上げ材の補修を含む
E22: 塩ビライニング鋼管への取替え
A23: ②貯水槽 | B23: 受水槽 | D23: ２６～３０年 | E23: ＦＲＰ製への取替え
B24: 高置水槽
A25: ③給水ポンプ | B25: 揚水ポンプ、加圧給水ポンプ、直結増圧ポンプ、弁類等 | D25: ５～８年 | E25: ポンプのオーバーホール等
D26: １４～１８年
A27: ９ 排水設備
A28: ①排水管 | B28: 屋内共用雑排水管
B29: 屋内共用雑排水管、汚水管、雨水管 | E29: 住戸内パイプシャフトを解体撤去の上、取替え、復旧
A30: ②排水ポンプ | B30: 排水ポンプ、弁類等
A32: 10 ガス設備
A33: ①ガス管 | B33: 屋外埋設部ガス管、屋内共用ガス管 | D33: ２８～３２年 | E33: 埋設部掘削、管の敷設、埋戻し、復旧
E34: （ポリエチレン管等）
A35: 11 空調・換気設備等
A36: ①空調設備 | B36: 管理事務室、集会室等のエアコン | D36: １３～１７年
A37: ②換気設備 | B37: 管理事務室、集会室、機械室、電気室等の換気扇、ダクト類、換気口、換気ガラリ

Sheet 修繕周期表3
A3: 12 電灯設備等
A4: ①電灯設備 | B4: 共用廊下・エントランスホール等の照明器具、配線器具、非常照明、避難口・通路誘導灯、外灯等 | D4: １８～２２年
A5: ②配電盤類 | B5: 配電盤・プルボックス等
A6: ③幹線設備 | B6: 引込開閉器、幹線（電灯、動力）等 | E6: 幹線、引込開閉器等の取替え（容量増）
A7: ④避雷針設備 | B7: 避雷突針・ポール・支持金物・導線・接地極等 | D7: ３８～４２年
A8: ⑤自家発電設備 | B8: 発電設備
A9: 13 情報・通信設備
A10: ①電話設備 | B10: 電話配線盤（MDF）、中間端子盤（IDF）等
A11: ②テレビ共聴設備 | B11: アンテナ、増幅器、分配器等 ※同軸ケーブルを除く | D11: １５～２０年
A12: ③インターネット設備 | B12: 住棟内ネットワーク
A13: ④インターホン設備等 | B13: インターホン設備、オートロック設備、住宅情報盤、防犯設備、配線等
A14: 14 消防用設備
A15: ①屋内消火栓設備 | B15: 消火栓ポンプ、消火管、ホース類、屋内消火栓箱等 | D15: ２３～２７年
A16: ②自動火災報知設備 | B16: 感知器、発信器、表示灯、音響装置、中継器、受信器等 | E16: 住宅用又は共同住宅用
A17: ③連結送水管設備 | B17: 送水口、放水口、消火管、消火隊専用栓箱等
A18: 15 昇降機設備
A19: ①昇降機 | B19: カゴ内装、扉、三方枠等 | E19: 内装取替え、三方枠塗装
B20: 全構成機器 | E20: 全部撤去・新設
A21: 16 立体駐車場設備
A22: ①自走式駐車場 | B22: プレハブ造（鉄骨造＋ＡＬＣ） | D22: ８～１２年 | E22: 鉄部塗装、車止等の取替え
C23: 建替
A24: ②機械式駐車場 | B24: 二段方式、多段方式（昇降式、横行昇降式、ピット式）垂直循環方式等 | D24: ５年 | E24: 鉄部塗装、部品交換
E26: 駐車装置、制御板、昇降装置等
A27: Ⅳ 外構・その他
A28: 17 外構・附属施設
A29: ①外構 | B29: 平面駐車場、車路・歩道等の舗装、側溝、排水溝
B30: 囲障（塀、フェンス等）、サイン（案内板）、遊具、ベンチ等
B31: 埋設排水管、排水桝等 ※埋設給水管を除く
A32: ②附属施設 | B32: 自転車置場、ゴミ集積所
B33: 植樹 | C33: 整備
A34: 18 調査・診断、設計、工事監理等費用
A35: ①点検・調査・診断 | B35: 大規模修繕工事の実施前に行う点検・調査・診断 | D35: １０～１２年 | E35: 第1回目・第4回目…の大規模修繕工事に係る業務
E36: 第2回目・第5回目…の大規模修繕工事に係る業務
E37: 第3回目・第6回目…の大規模修繕工事に係る業務
A38: ②設計、コンサルタント | B38: 計画修繕工事の設計（基本設計・実施設計）・コンサルタント
A41: ③工事監理 | B41: 計画修繕工事の工事監理
A44: ④臨時点検（被災時） | B44: 建物、設備、外構 | D44: -
A45: 19 長期修繕計画作成費用
A46: ①見直し | B46: 長期修繕計画の見直しのための調査・診断長期修繕計画の見直し
A47: （注） 現場管理費及び一般管理費は、各項目ごとの工事費（単価）に含む。
A49: Ⅴ 性能向上工事項目（例）（必要に応じて、Ⅱ建物又はⅢ設備に追加する。）
A50: (1) 耐震 | B50: 耐震壁の増設、柱・梁の補強、免震、設備配管の補強、耐震ドアへの交換、エレベーターの着床装置・Ｐ波感知装置の設置等 | C50: 改修 | D50: 予定年度
A51: (2) バリアフリー | B51: スロープ、手すりの設置、自動ドアの設置、エレベーターの設置・増設
A52: (3) 省エネルギー | B52: 断熱（屋上、外壁、開口部）、昇降機、照明等の設備の制御等
A53: (4) 防犯 | B53: 照明照度の確保、オートロック、防犯カメラの設置等
A54: (5) その他 | B54: ・情報通信（インターネット接続環境の整備等）
B55: ・給水方式の変更（直結増圧給水方式への変更等）
B56: ・電気容量の増量（電灯幹線の増量等）
B57: ・利便施設の設置（宅配ボックス等）
B58: ・エレベーターの安全性向上（戸開走行防止装置の設置等）
B59: ・外部環境（外構、植栽、工作物等の整備）
A60: Ⅵ 専有部分工事項目 （専有部分配管） （例）（必要に応じて、「Ⅰ仮設」～「Ⅳ外構・その他」とは別項目として追加する。）
A61: ①専有部分配管（※） | B61: 専有部分給水管、専有部分雑排水管、専有部分汚水管 | D61: 年
A62: ※屋内共用給水管・排水管等と同時かつ一体的に行う工事に限る
A63: Ⅶ 諸経費等 （例）上記工事項目と区別して設定する場合
A64: ・現場管理費
A65: ・一般管理費
A66: ・法定福利費
A67: ・大規模修繕瑕疵保険の保険料 等

Sheet 総括表
A1: （様式第4-1号）長期修繕計画総括表 | AA1: 作成日／ 年 月 日 集会（管理組合総会）で議決された日／ 年 月 日 | AK1: （単位：千円）
A2: 区分 | B2: 推定修繕工事項目 | C2: 暦年 | D2: 2009 | E2: 2010 | F2: 2011 | G2: 2012 | H2: 2013 | I2: 2014 | J2: 2015 | K2: 2016 | L2: 2017 | M2: 2018 | N2: 2019 | O2: 2020 | P2: 2021 | Q2: 2022 | R2: 2023 | S2: 2024 | U2: 2025 | V2: 2026 | W2: 2027 | X2: 2028 | Y2: 2029 | Z2: 2030 | AA2: 2031 | AB2: 2032 | AC2: 2033 | AD2: 2034 | AE2: 2035 | AF2: 2036 | AG2: 2037 | AH2: 2038 | AI2: 2039 | AJ2: 2040 | AL2: 合計 | AN2: 複利計算
C3: 経年 | D3: 8 | E3: 9 | F3: 10 | G3: 11 | H3: 12 | I3: 13 | J3: 14 | K3: 15 | L3: 16 | M3: 17 | N3: 18 | O3: 19 | P3: 20 | Q3: 21 | R3: 22 | S3: 23 | U3: 24 | V3: 25 | W3: 26 | X3: 27 | Y3: 28 | Z3: 29 | AA3: 30 | AB3: 31 | AC3: 32 | AD3: 33 | AE3: 34 | AF3: 35 | AG3: 36 | AH3: 37 | AI3: 38 | AJ3: 39 | AN3: 利率 | AO3: 2 | AP3: ％
A4: 仮設 | B4: 0 仮設工事 | H4: =SUM(工事費内訳書!I5) -> 6940000 | V4: =V44 -> 872065 | W4: =W44 -> 2896317.95 | AJ4: =H4 * (1 + $AO$3 / 100) ^ $AO$4 -> 11845792.15 | AL4: 30.78 | AN4: 期間 | AO4: 27 | AP4: 年
B5: 1 直接工事費 | H5: =SUM(工事費内訳書!I8) -> 34294760 | V5: =V45 -> 7849060 | W5: =W45 -> 26445700 | AJ5: =H5 * (1 + $AO$3 / 100) ^ $AO$4 -> 58537262.06
A6: 建築 | B6: ２ 下地補修工事 | H6: =SUM(工事費内訳書!I18) -> 3623030 | V6: 917500 | W6: =W46 -> 2705530 | AJ6: 6184100.911 | AL6: 10.683
B7: ３ 石・タイル工事 | H7: =SUM(工事費内訳書!I28) -> 9371720 | V7: 2184810 | W7: =W47 -> 7186910 | AJ7: 15996462.13 | AL7: 11.828
B8: ４ シーリング工事 | H8: =SUM(工事費内訳書!I47) -> 9831467 | N8: 鉄部塗装 | V8: 2179707 | W8: =W48 -> 7651760 | AJ8: 16781198.07 | AL8: 45.512
B9: ５ 外壁塗装工事 | H9: =SUM(工事費内訳書!I69) -> 20062142 | N9: 前回2010 | V9: 2209848 | W9: =W49 -> 8503004 | AJ9: 34243798.87 | AL9: 12.942
B10: ７ 鉄部塗装工事 | F10: =5538750+563365 -> 6102115 | H10: =SUM(工事費内訳書!I122) -> 4339760 | N10: 9513043 | AJ10: 7407477.656
B11: ８ 防水工事 | H11: =SUM(工事費内訳書!I231) -> 21218928 | M11: 3637440 | AJ11: 36218301.25 | AL11: 78.187
B12: ９ 床工事 | H12: =SUM(工事費内訳書!I260) -> 9019455 | N12: 237600 | U12: 18248000 | AJ12: 15395185.77
B13: 12859000 | H13: =SUM(工事費内訳書!I268) -> 7533830 | V13: =V53 -> 2100375 | W13: =W53 -> 5433455 | AJ13: 12859392.54
B14: 11 その他雑工事 | H14: =SUM(工事費内訳書!I282) -> 9648800 | I14: 100000 | L14: 56160 | N14: 96120 | Q14: 846780 | U14: 2075040 | AJ14: 16469406.24
B15: 12 室内改装その他工事 | H15: =SUM(工事費内訳書!I302) -> 1070100 | L15: =1771200+55890+361260+250560 -> 2438910 | M15: 4369680 | S15: 4222900 | AJ15: 1826539.219 | AL15: 1.701
B16: 13 工事管理費 | H16: =SUM(工事費内訳書!I304:I305) -> 11046008 | V16: =SUM(V4:V15)*0.15 -> 2747004.75 | W16: =SUM(W4:W15)*0.15 -> 9123401.543 | AJ16: 18854281.68
A18: 設備 | B18: ８ 給水設備 | L18: 5292000 | S18: 1573000 | AA18: =FV(0.02,7,0,-S18) -> 1806882.555 | AH18: =FV(0.02,7,0,-AA18) -> 2075540.094 | AL18: 22.988
B19: ９ 排水設備 | J19: 136080 | K19: =185760+2793960 -> 2979720 | L19: 1933200 | S19: 2217600 | AL19: 16.839
B20: 10 ガス設備 | J20: 695736 | N20: 1181952 | U20: 920040 | AA20: =FV(0.02,6,0,-U20) -> 1036114.472 | AG20: =FV(0.02,6,0,-AA20) -> 1166833.181 | AL20: 2.171
B21: 11 空調・換気設備 | J21: 190080 | M21: 1285200 | O21: 2572900 | P21: 1615900 | Q21: 23564750 | R21: 866800 | AA21: =FV(0.02,10,0,-P21) -> 1969773.083 | AK21: =FV(0.02,10,0,-AA21) -> 2401142.397 | AL21: 2.214
B22: 12 電灯設備等 | J22: =17161+6080400 -> 6097561 | K22: =16200000+1296000+18792000+318745 -> 36606745 | P22: 462000 | Z22: =FV(0.02,15,0,-J22) -> 8206514.291 | AL22: 12.383
B23: 13 情報・通信設備 | C23: 15 | K23: =259200+270000+1004400+14040000 -> 15573600 | M23: 38988000 | N23: 3368400 | P23: 450000 | R23: 6930000 | V23: 12-24期のAV | AK23: =FV(0.02,18,0,-R23) -> 9897746.496 | AL23: 15.015
B24: 14 消防用設備 | D24: =SUM(H24:S24) -> 19117202 | H24: =971250+882000 -> 1853250 | I24: 178500 | J24: 864000 | K24: 0 | L24: =61560+2965680 -> 3027240 | M24: 0 | N24: 0 | O24: 0 | P24: 8090500 | Q24: 1843600 | R24: 240680 | S24: 3019432 | U24: 0 | V24: =AVERAGE(H24:U24) -> 1470554 | W24: =V24*1.02 -> 1499965.08 | X24: =W24*1.02 -> 1529964.382 | Y24: 1560563.669 | Z24: 1591774.943 | AA24: 1623610.441 | AB24: 1656082.65 | AC24: 1689204.303 | AD24: 1722988.389 | AE24: 1757448.157 | AF24: 1792597.12 | AG24: 1828449.063 | AH24: 1865018.044 | AI24: 1902318.405 | AJ24: 1940364.773 | AL24: 9.729
B25: 15 昇降機設備 | Q25: 1636800 | AL25: 14.799 | AN25: .
B26: 16 駐車駐輪設備 | J26: 285120 | M26: 3682260 | AL26: 0
A27: 外構 ・その他 | B27: 17 外構・附属施設 | J27: 518400 | K27: 1272510 | AL27: 4.893
B28: 18 調査・診断、 設計、工事監理等費用 | F28: 420000 | H28: =525000+2142000+670950 -> 3337950 | I28: 997500 | J28: 378000 | K28: =1890000+540000 -> 2430000 | L28: =216000+2484000 -> 2700000 | R28: 485100 | S28: 512950 | U28: 968000 | V28: =V57*0.05 -> 915668.25 | W28: =W57*0.05 -> 3041133.848 | AL28: 9.225
B29: 19 長期修繕計画作成費用 | U29: 1400000 | V29: 小修繕のAV | AL29: 2.583
B30: 20 その他 | F30: 1680000 | H30: 6199000 | J30: 113400 | V30: =T40 -> 3761283.615 | W30: =V30*1.02 -> 3836509.288 | X30: =W30*1.02 -> 3913239.473 | Y30: =X30*1.02 -> 3991504.263 | Z30: 4071334.348 | AA30: 4152761.035 | AB30: 4235816.256 | AC30: 4320532.581 | AD30: 4406943.233 | AE30: 4495082.097 | AF30: 4584983.739 | AG30: 4676683.414 | AH30: 4770217.082 | AI30: 4865621.424 | AJ30: 4962933.852 | AK30: 5062192.529 | AL30: 2.385692
A31: 工事費計 | E31: =SUM(E4:E30) -> 0 | F31: 8202115 | G31: 0 | H31: 159390200 | I31: 1276000 | J31: 9278377 | K31: 58862575 | L31: 15447510 | M31: 51962580 | N31: 14397115 | O31: 2572900 | P31: 10618400 | Q31: 27891930 | R31: 8522580 | S31: 11545882 | U31: =SUM(U4:U30) -> 23611080 | V31: =SUM(V4:V30) -> 27207875.62 | W31: 78323686.71 | X31: =SUM(X4:X30) -> 5443203.855 | Y31: =SUM(Y4:Y30) -> 5552067.932 | Z31: =SUM(Z4:Z30) -> 13869623.58 | AA31: =SUM(AA4:AA30) -> 10589141.59 | AB31: =SUM(AB4:AB30) -> 5891898.906 | AC31: =SUM(AC4:AC30) -> 6009736.884 | AD31: =SUM(AD4:AD30) -> 6129931.622 | AE31: =SUM(AE4:AE30) -> 6252530.254 | AF31: =SUM(AF4:AF30) -> 6377580.859 | AG31: =SUM(AG4:AG30) -> 7671965.657 | AH31: =SUM(AH4:AH30) -> 8710775.22 | AI31: =SUM(AI4:AI30) -> 6767939.829 | AJ31: =SUM(AJ4:AJ30) -> 259522497.2 | AK31: 17361081.42 | AL31: 1.2077654
A32: 消費税 | H32: =SUM(工事費内訳書!I307) -> 7400000 | M32: =SUM(M10*0.08) -> 0 | O32: 306.1811649 | U32: =U29*0.1 -> 140000 | V32: =V31*0.1 -> 2720787.562 | W32: =W31*0.1 -> 7832368.671 | AB32: 438.960778 | AL32: 0.0298388
A33: 支出 | B33: 年度合計 | E33: =SUM(E31:E32) -> 0 | F33: =SUM(F31:F32) -> 8202115 | G33: =SUM(G31:G32) -> 0 | H33: =SUM(H31:H32) -> 166790200 | I33: 1276000 | J33: 9278377 | K33: 58862575 | L33: 15447510 | M33: 51962580 | N33: 14397115 | O33: 2573206.181 | P33: 10618400 | Q33: 27891930 | R33: 8522580 | S33: 11545882 | U33: 23751080 | V33: 29928663.18 | W33: 86156055.38 | X33: 5443203.855 | Y33: 5552067.932 | Z33: 13869623.58 | AA33: 10589141.59 | AB33: 5892337.867 | AC33: 6009736.884 | AD33: 6129931.622 | AE33: 6252530.254 | AF33: 6377580.859 | AG33: 7671965.657 | AH33: 8710775.22 | AI33: 6767939.829 | AJ33: 259522497.2 | AK33: =SUM(AK31:AK32) -> 17361081.42 | AL33: -1.1480878
A34: 収入 | B34: 年度合計 | F34: 23148972 | G34: 22585607 | H34: =SUM(収支決算書!I15) -> 21885116 | I34: =SUM(収支決算書!L15) -> 21498800 | J34: =SUM(収支決算書!O15) -> 20893640 | K34: =SUM(収支決算書!R15) -> 21404700 | L34: =SUM(収支決算書!U15) -> 20243000 | M34: =SUM(収支決算書!X15) -> 20272869 | N34: =SUM(収支決算書!AA15) -> 20492850 | O34: =SUM(収支決算書!AD15) -> 21061100 | P34: =SUM(収支決算書!AG15) -> 24579333 | Q34: =SUM(収支決算書!AJ15) -> 24329215 | R34: =SUM(収支決算書!AM15) -> 20710700 | S34: =SUM(収支決算書!AP15) -> 20609290 | U34: 20641868 | V34: =タイプ別面積・管理費等額!L137 -> 27945715.6 | W34: =V34 -> 27945715.6 | X34: =W34 -> 27945715.6 | Y34: 27945715.6 | Z34: 27945715.6 | AA34: 27945715.6 | AB34: 27945715.6 | AC34: 27945715.6 | AD34: 27945715.6 | AE34: 27945715.6 | AF34: 27945715.6 | AG34: 27945715.6 | AH34: 27945715.6 | AI34: 27945715.6 | AJ34: 27945715.6 | AK34: 27945715.6 | AL34: -11.7494272
A35: 当期余剰金 | E35: =SUM(E34-E33) -> 0 | F35: =SUM(F34-F33) -> 14946857 | G35: =SUM(G34-G33) -> 22585607 | H35: =SUM(H34-H33) -> -144905084 | I35: 20222800 | J35: 11615263 | K35: -37457875 | L35: 4795490 | M35: -31689711 | N35: 6095735 | O35: 18487893.82 | P35: 13960933 | Q35: -3562715 | R35: 12188120 | S35: 9063408 | U35: -3109212 | V35: -1982947.577 | W35: =SUM(W34-W33) -> -58210339.78 | X35: =SUM(X34-X33) -> 22502511.74 | Y35: 22393647.67 | Z35: 14076092.02 | AA35: 17356574.01 | AB35: 22053377.73 | AC35: 21935978.72 | AD35: 21815783.98 | AE35: 21693185.35 | AF35: 21568134.74 | AG35: 20273749.94 | AH35: 19234940.38 | AI35: 21177775.77 | AJ35: -231576781.6 | AK35: =SUM(AK34-AK33) -> 10584634.18 | AL35: -14.1052804
A36: 修繕積立金 次年度繰越金 | E36: 178985793 | F36: 193932650 | G36: 217446070 | H36: =SUM(G36+H35) -> 72540986 | I36: 92763786 | J36: 104379049 | K36: 66921174 | L36: 71716664 | M36: 40026953 | N36: 46122688 | O36: 64610581.82 | P36: 78571514.82 | Q36: 75008799.82 | R36: 87196919.82 | S36: 96260327.82 | U36: =SUM(S36+U35) -> 93151115.82 | V36: 91168168.24 | W36: 32957828.46 | X36: =SUM(W36+X35) -> 55460340.21 | Y36: =SUM(X36+Y35) -> 77853987.88 | Z36: =SUM(Y36+Z35) -> 91930079.89 | AA36: =SUM(Z36+AA35) -> 109286653.9 | AB36: =SUM(AA36+AB35) -> 131340031.6 | AC36: =SUM(AB36+AC35) -> 153276010.4 | AD36: =SUM(AC36+AD35) -> 175091794.3 | AE36: =SUM(AD36+AE35) -> 196784979.7 | AF36: =SUM(AE36+AF35) -> 218353114.4 | AG36: =SUM(AF36+AG35) -> 238626864.4 | AH36: =SUM(AG36+AH35) -> 257861804.7 | AI36: =SUM(AH36+AI35) -> 279039580.5 | AJ36: =SUM(AI36+AJ35) -> 47462798.95 | AK36: 58047433.12 | AL36: -15.283207
A37: 一般会計 | F37: *
A38: 収入 | G38: =SUM(収支決算書!F5) -> 60082149 | H38: =SUM(収支決算書!I5) -> 57670367 | I38: =SUM(収支決算書!L5) -> 63754870 | J38: =SUM(収支決算書!O5) -> 63463820 | K38: =SUM(収支決算書!R5) -> 66516603 | L38: =SUM(収支決算書!U5) -> 71244048 | M38: =SUM(収支決算書!X5) -> 79140093 | N38: =SUM(収支決算書!AA5) -> 79338551 | O38: =SUM(収支決算書!AD5) -> 79670486 | P38: =SUM(収支決算書!AG5) -> 71703560 | Q38: =SUM(収支決算書!AJ5) -> 72882505 | R38: =SUM(収支決算書!AM5) -> 87863594 | S38: =SUM(収支決算書!AP5) -> 81563436 | AL38: -16.4611336
A39: 支出 | G39: =SUM(収支決算書!F6) -> 57587425 | H39: =SUM(収支決算書!I6) -> 55188632 | I39: =SUM(収支決算書!L6) -> 62679763 | J39: =SUM(収支決算書!O6) -> 65221207 | K39: =SUM(収支決算書!R6) -> 68112438 | L39: =SUM(収支決算書!U6) -> 80095061 | M39: =SUM(収支決算書!X6) -> 78369989 | N39: =SUM(収支決算書!AA6) -> 80876768 | O39: =SUM(収支決算書!AD6) -> 79298401 | P39: =SUM(収支決算書!AG6) -> 71317058 | Q39: =SUM(収支決算書!AJ6) -> 83044522 | R39: =SUM(収支決算書!AM6) -> 92845646 | S39: =SUM(収支決算書!AP6) -> 84998805 | T39: AV | AL39: -17.6390602
B40: 内、小修繕費用 | G40: =SUM(小修繕履歴!F30) -> 1172933 | H40: =SUM(小修繕履歴!H30) -> 912765 | I40: =SUM(小修繕履歴!J30) -> 1188862 | J40: =SUM(小修繕履歴!L30) -> 3413577 | K40: =SUM(小修繕履歴!N30) -> 1451726 | L40: =SUM(小修繕履歴!P30) -> 6069736 | M40: =SUM(小修繕履歴!R30) -> 3279750 | N40: =SUM(小修繕履歴!T30) -> 4466900 | O40: =SUM(小修繕履歴!V30) -> 3241653 | P40: =SUM(小修繕履歴!X30) -> 1071730 | Q40: =SUM(小修繕履歴!Z30) -> 10443466 | R40: =SUM(小修繕履歴!AB30) -> 5751350 | S40: =SUM(小修繕履歴!AD30) -> 6432239 | T40: =AVERAGE(G40:S40) -> 3761283.615
B41: 年度合計収支 | G41: =SUM(G38-G39) -> 2494724 | H41: 2481735 | I41: 1075107 | J41: -1757387 | K41: -1595835 | L41: -8851013 | M41: 770104 | N41: -1538217 | O41: 372085 | P41: 386502 | Q41: -10162017 | R41: -4982052 | S41: -3435369 | U41: 0 | V41: 0 | W41: 0 | X41: 0 | Y41: 0 | Z41: 0 | AA41: 0 | AB41: 0 | AC41: 0 | AD41: 0 | AE41: 0 | AF41: 0
B42: 次年度繰越 | G42: =SUM(収支決算書!F12) -> 34353557 | H42: =SUM(収支決算書!I12) -> 36768822 | I42: =SUM(収支決算書!L12) -> 37843929 | J42: =SUM(収支決算書!O12) -> 36086542 | K42: =SUM(収支決算書!R12) -> 34490707 | L42: =SUM(収支決算書!U12) -> 25639694 | M42: =SUM(収支決算書!X12) -> 24608557 | N42: =SUM(収支決算書!AA12) -> 21618010 | O42: =SUM(収支決算書!AD12) -> 20246676 | P42: =SUM(収支決算書!AG12) -> 19079540 | Q42: =SUM(収支決算書!AJ12) -> 7318060 | R42: =SUM(収支決算書!AM12) -> 213373 | S42: =SUM(収支決算書!AP12) -> -5113447
K43: * | L43: * | M43: * | N43: * | O43: * | P43: * | Q43: * | R43: * | S43: * | V43: 西棟 | W43: 東棟
B44: 住宅修繕積立金 | C44: 530220 | G44: 収入で特別修繕費=再開発事業の解散清算金 | R44: 共通仮設費 5％ | V44: =SUM(V45:V55)*0.05 -> 872065 | W44: =SUM(W45:W55)*0.05 -> 2896317.95
R45: 直接仮設費 | V45: =SUM(工事費内訳書!P8) -> 7849060 | W45: =SUM(工事費内訳書!M8) -> 26445700
R46: 下地処理工事 | V46: =SUM(工事費内訳書!P18) -> 917500 | W46: =SUM(工事費内訳書!M18) -> 2705530
R47: 石タイル工事 | V47: =SUM(工事費内訳書!P28) -> 2184810 | W47: =SUM(工事費内訳書!M28) -> 7186910
R48: シーリング工事 | V48: =SUM(工事費内訳書!P47) -> 2179707 | W48: =SUM(工事費内訳書!M47) -> 7651760
R49: 塗装工事 | S49: 外部 | V49: =SUM(工事費内訳書!P69)-工事費内訳書!P68 -> 2209848 | W49: =SUM(工事費内訳書!M69)-工事費内訳書!M68 -> 8503004
S50: 鉄部
R51: 防水工事
R52: 床工事
R53: 洗い工事 | V53: =SUM(工事費内訳書!P268) -> 2100375 | W53: =SUM(工事費内訳書!M268) -> 5433455
R54: その他工事
R55: 外構工事
S57: 小計 | V57: =SUM(V44:V55) -> 18313365 | W57: =SUM(W44:W55) -> 60822676.95
S58: 諸経費15％ | V58: =V57*0.15 -> 2747004.75 | W58: =W57*0.15 -> 9123401.543
S59: 合計 | V59: =V57+V58 -> 21060369.75 | W59: =W57+W58 -> 69946078.49
S60: TAX 10％ | V60: =V59*0.1 -> 2106036.975 | W60: =W59*0.1 -> 6994607.849
S61: 総額 | V61: =V59+V60 -> 23166406.73 | W61: =W59+W60 -> 76940686.34
R62: 利率 | S62: 2 | V62: 2 | W62: 2
R63: 期間 | V63: 13 | W63: 14
R64: 推定額 | V64: =V61 * (1 + V62 / 100) ^ V63 -> 29968217.34 | W64: =W61 * (1 + W62 / 100) ^ W63 -> 101521601.6

Sheet 工事費年次集計表
A1: （様式第4-3号）長期修繕計画表（推定修繕工事項目（小項目）別、年度別） | X1: 作成日／ 年 月 日 集会（管理組合総会）で議決された日／ 年 月 日 | AK1: （単位：千円）
A2: 推定修繕工事項目 | D2: 工事区分 | E2: 修繕 | F2: 暦年 | G2: 2022 | H2: 2023 | I2: 2024 | J2: 2025 | K2: 2026 | L2: 2027 | M2: 2028 | N2: 2029 | O2: 2030 | P2: 2031 | Q2: 2032 | R2: 2033 | S2: 2034 | T2: 2035 | U2: 2036 | V2: 2037 | W2: 2038 | X2: 2039 | Y2: 2040 | Z2: 2041 | AA2: 2042 | AB2: 2043 | AC2: 2044 | AD2: 2045 | AE2: 2046 | AF2: 2047 | AG2: 2048 | AH2: 2049 | AI2: 2050 | AJ2: 2051 | AK2: 小計 | AL2: 消費税 | AM2: 合計
E3: 周期 | F3: 経年 | G3: 64 | H3: 65 | I3: 66 | J3: 67 | K3: 68 | L3: 69 | M3: 70 | N3: 71 | O3: 72 | P3: 73 | Q3: 74 | R3: 75 | S3: 76 | T3: 77 | U3: 78 | V3: 79 | W3: 80 | X3: 81 | Y3: 82 | Z3: 83 | AA3: 84 | AB3: 85 | AC3: 86 | AD3: 87 | AE3: 88 | AF3: 89 | AG3: 90 | AH3: 91 | AI3: 92 | AJ3: 93
A4: Ⅰ | O4: 15.39 | AA4: 15.39 | AK4: 30.78 | AL4: 3.078 | AM4: 33.858
A5: 仮設 | B5: ①共通仮設 | E5: 12年 | O5: 5.13 | AA5: 5.13 | AK5: 10.26 | AL5: 1.026 | AM5: 11.286
B6: ②直接仮設 | O6: 10.26 | AA6: 10.26 | AK6: 20.52 | AL6: 2.052 | AM6: 22.572
A7: Ⅱ | O7: 5.935 | AA7: 4.748 | AK7: 10.683 | AL7: 1.068 | AM7: 11.751
A8: 建物 | B8: ①屋上防水（保護） | D8: 補修
B10: ②屋上防水（露出） | AA10: 4.748 | AK10: 4.748 | AL10: 475 | AM10: 5.223
D11: 撤去・新設 | E11: 24年 | O11: 5.935 | AK11: 5.935 | AL11: 593 | AM11: 6.528
B12: ③傾斜屋根
C13: シングル葺き
D14: 撤去・葺替
C15: 金属板葺き
B16: ④庇・笠木等防水 | E16: － | G16: ①から③に含む。
B17: ３ 床防水 | O17: 5.914 | AA17: 5.914 | AK17: 11.828 | AL17: 1.183 | AM17: 13.011
B18: ①バルコニー床防水 | O18: 2.394 | AA18: 2.394 | AK18: 4.788 | AL18: 479 | AM18: 5.267
B19: ②開放廊下・階段等床防水 | O19: 3.52 | AA19: 3.52 | AK19: 7.04 | AL19: 704 | AM19: 7.744
O20: 29.895 | AA20: 15.617 | AK20: 45.512 | AL20: 4.551 | AM20: 50.063
B21: ①躯体コンクリート補修 | G21: ②又は④に含む。
B22: ②外壁塗装（雨掛かり部分） | D22: 塗替 | AA22: 13.522 | AK22: 13.522 | AL22: 1.352 | AM22: 14.874
D23: 除去・塗装 | E23: 36年 | O23: 25.321 | AK23: 25.321 | AL23: 2.532 | AM23: 27.853
B24: ③外壁塗装（非雨掛かり部分） | G24: ②に含む。
B26: ④軒天塗装 | AA26: 2.095 | AK26: 2.095 | AL26: 209 | AM26: 2.304
O27: 4.574 | AK27: 4.574 | AL27: 457 | AM27: 5.032
B28: ⑤タイル張補修
B29: ⑥シーリング | D29: 打替
I30: 1.924 | O30: 1.59 | U30: 2.958 | AA30: 3.513 | AG30: 2.958 | AK30: 12.942 | AL30: 1.294 | AM30: 14.236
B31: ①鉄部塗装（雨掛かり部分）
C32: 開放廊下・階段の手すり | E32: 6年
C33: バルコニーの手すり
C34: 屋上フェンス等
C35: 屋外鉄骨階段 | O35: 944 | U35: 944 | AA35: 944 | AG35: 944 | AK35: 3.776 | AL35: 378 | AM35: 4.154
B36: ②鉄部塗装（非雨掛かり部分）
C37: 住戸玄関ドア | O37: 90 | U37: 90 | AA37: 90 | AG37: 90 | AK37: 359 | AL37: 36 | AM37: 395
C38: メーターボックスの扉等 | I38: 1.924 | U38: 1.924 | AA38: 1.924 | AG38: 1.924 | AK38: 7.695 | AL38: 770 | AM38: 8.465
B39: ③非鉄部塗装 | D39: 清掃・塗替 | O39: 556 | AA39: 556 | AK39: 1.112 | AL39: 111 | AM39: 1.223
I40: 62.027 | O40: 15.262 | U40: 898 | AK40: 78.187 | AL40: 7.819 | AM40: 86.005
B41: ①建具関係
C42: 住戸玄関ドア、窓サッシ等 | D42: 点検・調整 | I42: 898 | U42: 898 | AK42: 1.796 | AL42: 180 | AM42: 1.975
D43: 取替 | I43: 5.771 | AK43: 5.771 | AL43: 577 | AM43: 6.348
C44: 窓サッシ等 | I44: 22.487 | AK44: 22.487 | AL44: 2.249 | AM44: 24.735
B45: ②手すり
C46: 開放廊下・階段等の手すり | I46: 7.31 | AK46: 7.31 | AL46: 731 | AM46: 8.041
I47: 4.061 | AK47: 4.061 | AL47: 406 | AM47: 4.467
C48: 屋上フェンス等 | I48: 10.3 | AK48: 10.3 | AL48: 1.03 | AM48: 11.33
B49: ③屋外鉄骨階段 | G49: 計上しない
I50: 11.2 | AK50: 11.2 | AL50: 1.12 | AM50: 12.32
B51: ④金物類（集合郵便受等） | O51: 5.173 | AK51: 5.173 | AL51: 517 | AM51: 5.69
B52: ⑤金物類（ﾒｰﾀｰﾎﾞｯｸｽ扉等） | O52: 10.089 | AK52: 10.089 | AL52: 1.009 | AM52: 11.098
O53: 851 | AA53: 851 | AK53: 1.701 | AL53: 170 | AM53: 1.871
B54: ①共用内部 | D54: 張替・塗替 | O54: 851 | AA54: 851 | AK54: 1.701 | AL54: 170 | AM54: 1.871
A55: Ⅲ | I55: 2.797 | R55: 6.66 | Y55: 2.797 | AG55: 10.733 | AK55: 22.988 | AL55: 2.299 | AM55: 25.286
A56: 設備 | B56: ①給水管 | D56: 更生
E57: 30年 | AG57: 10.733 | AK57: 10.733 | AL57: 1.073 | AM57: 11.806
B58: ②貯水槽
C59: 受水槽 | E59: 25年 | R59: 6.66 | AK59: 6.66 | AL59: 666 | AM59: 7.326
C60: 高置水槽
B61: ③給水ポンプ
E62: 16年 | I62: 2.797 | Y62: 2.797 | AK62: 5.595 | AL62: 559 | AM62: 6.154
I63: 1.332 | Y63: 1.332 | AG63: 14.175 | AK63: 16.839 | AL63: 1.684 | AM63: 18.523
B64: ①排水管
AG65: 14.175 | AK65: 14.175 | AL65: 1.418 | AM65: 15.593
B66: ②排水ポンプ
I67: 1.332 | Y67: 1.332 | AK67: 2.664 | AL67: 266 | AM67: 2.931
AG68: 2.171 | AK68: 2.171 | AL68: 217 | AM68: 2.388
B69: ①ガス管 | AG69: 2.171 | AK69: 2.171 | AL69: 217 | AM69: 2.388
B70: 11 空調・換気設備 | R70: 1.107 | AG70: 1.107 | AK70: 2.214 | AL70: 221 | AM70: 2.435
B71: ①空調設備 | E71: 15年 | R71: 738 | AG71: 738 | AK71: 1.476 | AL71: 148 | AM71: 1.624
B72: ②換気設備 | R72: 369 | AG72: 369 | AK72: 738 | AL72: 74 | AM72: 812
R73: 2.754 | W73: 800 | AG73: 8.829 | AK73: 12.383 | AL73: 1.238 | AM73: 13.621
B74: ①電灯設備 | R74: 2.754 | AG74: 2.754 | AK74: 5.508 | AL74: 551 | AM74: 6.059
B75: ②配電盤類 | AG75: 3.645 | AK75: 3.645 | AL75: 365 | AM75: 4.01
B76: ③幹線設備 | AG76: 2.43 | AK76: 2.43 | AL76: 243 | AM76: 2.673
B77: ④避雷針設備 | E77: 40年 | W77: 800 | AK77: 800 | AL77: 80 | AM77: 880
B78: ⑤自家発電設備
R79: 7.165 | AG79: 7.849 | AK79: 15.015 | AL79: 1.501 | AM79: 16.516
B80: ①電話設備 | AG80: 684 | AK80: 684 | AL80: 68 | AM80: 752
B81: ②テレビ共聴設備 | R81: 1.993 | AG81: 1.993 | AK81: 3.985 | AL81: 399 | AM81: 4.384
B82: ③インターネット設備 | R82: 684 | AG82: 684 | AK82: 1.368 | AL82: 137 | AM82: 1.505
B83: ④インターホン設備等 | R83: 4.489 | AG83: 4.489 | AK83: 8.978 | AL83: 898 | AM83: 9.875
B84: 14 消防用設備 | R84: 4.059 | W84: 5.67 | AK84: 9.729 | AL84: 973 | AM84: 10.702
B85: ①屋内消火栓設備 | R85: 3.321 | AK85: 3.321 | AL85: 332 | AM85: 3.653
B86: ②自動火災報知設備 | E86: 20年 | W86: 5.67 | AK86: 5.67 | AL86: 567 | AM86: 6.237
B87: ③連結送水管設備 | R87: 738 | AK87: 738 | AL87: 74 | AM87: 812
B88: 15 昇降機設備 | R88: 813 | AG88: 13.986 | AK88: 14.799 | AL88: 1.48 | AM88: 16.278
B89: ①昇降機 | R89: 813 | AK89: 813 | AL89: 81 | AM89: 894
AG90: 13.986 | AK90: 13.986 | AL90: 1.399 | AM90: 15.385
B91: 16 立体駐車場設備
B92: ①自走式駐車場 | E92: 10年
D93: 建替
B94: ②機械式駐車場 | E94: 5年
A96: Ⅳ | B96: 17 外構・附属施設 | O96: 4.893 | AK96: 4.893 | AL96: 489 | AM96: 5.382
A97: 外構 | B97: ①外構 | D97: 補修、取替 | O97: 1.203 | AK97: 1.203 | AL97: 120 | AM97: 1.323
A98: ・そ | B98: ②附属施設 | D98: 取替、整備 | O98: 3.69 | AK98: 3.69 | AL98: 369 | AM98: 4.059
A99: の他 | B99: 18 調査・診断、設計、工事監理等費用 | M99: 3.321 | O99: 2.214 | Y99: 2.214 | AA99: 1.476 | AK99: 9.225 | AL99: 923 | AM99: 10.148
B100: ①点検・調査・診断 | M100: 3.321 | Y100: 2.214 | AK100: 5.535 | AL100: 554 | AM100: 6.089
B101: ②設計等 | G101: ①に含む。
B102: ③工事監理 | O102: 2.214 | AA102: 1.476 | AK102: 3.69 | AL102: 369 | AM102: 4.059
B103: ④臨時点検（被災時） | D103: 建物、設備、外観 | E103: 年
B104: 19 長期修繕計画作成費用 | I104: 517 | O104: 517 | U104: 517 | AA104: 517 | AG104: 517 | AK104: 2.583 | AL104: 258 | AM104: 2.841
B105: ①見直し | I105: 517 | O105: 517 | U105: 517 | AA105: 517 | AG105: 517 | AK105: 2.583 | AL105: 258 | AM105: 2.841
B106: 20 その他
B107: ①特殊施設1改修
B108: ②特殊施設2改修
B109: ③特殊施設3改修
B110: ④特殊施設4改修
A111: 小計 | I111: 68.597 | M111: 3.321 | O111: 82.459 | R111: 22.558 | U111: 4.372 | W111: 6.47 | Y111: 6.343 | AA111: 48.025 | AG111: 62.324 | AK111: 304.469 | AL111: 30.447 | AM111: 334.916
A112: 消費税 | I112: 6.86 | M112: 332 | O112: 8.246 | R112: 2.256 | U112: 437 | W112: 647 | Y112: 634 | AA112: 4.802 | AG112: 6.232
A113: 推定修繕工事費 年度合計 | G113: 0 | H113: 0 | I113: 75.457 | J113: 0 | K113: 0 | L113: 0 | M113: 3.653 | N113: 0 | O113: 90.705 | P113: 0 | Q113: 0 | R113: 24.814 | S113: 0 | T113: 0 | U113: 4.809 | V113: 0 | W113: 7.117 | X113: 0 | Y113: 6.978 | Z113: 0 | AA113: 52.827 | AB113: 0 | AC113: 0 | AD113: 0 | AE113: 0 | AF113: 0 | AG113: 68.556 | AH113: 0 | AI113: 0 | AJ113: 0
A114: 推定修繕工事費 累計 | G114: 0 | H114: 0 | I114: 75.457 | J114: 75.457 | K114: 75.457 | L114: 75.457 | M114: 79.11 | N114: 79.11 | O114: 169.815 | P114: 169.815 | Q114: 169.815 | R114: 194.629 | S114: 194.629 | T114: 194.629 | U114: 199.438 | V114: 199.438 | W114: 206.555 | X114: 206.555 | Y114: 213.533 | Z114: 213.533 | AA114: 266.36 | AB114: 266.36 | AC114: 266.36 | AD114: 266.36 | AE114: 266.36 | AF114: 266.36 | AG114: 334.916 | AH114: 334.916 | AI114: 334.916 | AJ114: 334.916
A115: （注）諸経費には「長期修繕計画作成ガイドライン」に示すとおり、現場管理費・一般管理費・法定福利費のほか、大規模修繕瑕疵保険の保険料なども見込んで修繕積立金額を検討することが重要です。

Sheet 工事費内訳書
A1: （様式4-4）推定修繕工事費内訳書 | D1: 作成日／ 年 月 日 集会（管理組合総会）で議決された日／ 年 月 日 | I1: （単位：円）
A2: 推定修繕工事項目 | C2: 対象部位等 | D2: 工事区分 | E2: 仕様等 | F2: 単位 | G2: 数量 | H2: AV単価 | I2: 金額 | J2: 修繕 | K2: 東棟集計 | N2: 西棟集計 | R2: 東棟 | AA2: 西棟 | AH2: 東棟集計 | AI2: 西棟集計
J3: 周期 | R3: 住宅 | U3: 店舗 | X3: フィットネス | AA3: 住宅 | AD3: 店舗 | AH3: =IFERROR(SUM(AH5:AH369), "") -> 16633935 | AI3: =IFERROR(SUM(AI5:AI369), "") -> 5075500 | AJ3: 工事費合計
A4: Ⅰ | B4: 1 仮設工事
A5: 仮設 | B5: ①共通仮設 | E5: 仮設事務所、資材置き場等 | I5: 6940000 | J5: 12年 | R5: 施設ごと集計
I6: =SUM(K6:P6) -> 128943892 | K6: =IFERROR(SUM(T6+W6+Z6), "") -> 99080340 | N6: =IFERROR(SUM(AC6+AF6), "") -> 29863552 | T6: =IFERROR(SUM(T8+T18+T28+T47+T69+T122+T231+T260+T268+T282), "") -> 63771623 | W6: =IFERROR(SUM(W8+W18+W28+W47+W69+W122+W231+W260+W268+W282), "") -> 12822650 | Z6: =IFERROR(SUM(Z8+Z18+Z28+Z47+Z69+Z122+Z231+Z260+Z268+Z282), "") -> 22486067 | AC6: =IFERROR(SUM(AC8+AC18+AC28+AC47+AC69+AC122+AC231+AC260+AC268+AC282), "") -> 22085439 | AF6: =IFERROR(SUM(AF8+AF18+AF28+AF47+AF69+AF122+AF231+AF260+AF268+AF282), "") -> 7778113
K7: 数量 | L7: AV単価 | M7: 金額 | N7: 数量 | O7: VA単価 | P7: 金額 | R7: 数量 | S7: 単価 | T7: 金額 | U7: 数量 | V7: 単価 | W7: 金額 | X7: 数量 | Y7: 単価 | Z7: 金額 | AA7: 数量 | AB7: 単価 | AC7: 金額 | AD7: 数量 | AE7: 単価 | AF7: 金額
A8: Ⅱ | B8: ②直接仮設 | E8: 枠組足場、養生シート等 | I8: =IFERROR(SUM(M8+P8), "") -> 34294760 | M8: =IFERROR(SUM(T8+W8+Z8), "") -> 26445700 | P8: =IFERROR(SUM(AC8+AF8), "") -> 7849060 | S8: 直接仮設計 | T8: 13056485 | W8: 3577450 | Z8: 9811765 | AC8: 5075500 | AF8: 2773560 | AH8: =IFERROR(SUM(S8:Y8), "") -> 16633935 | AI8: =IFERROR(SUM(AB8:AE8), "") -> 5075500
A9: 建築 | B9: 2 下地補修工事 | C9: マーキング調査費 | E9: 打診調査・資料作成 | F9: ｍ2 | G9: =IFERROR(SUM(K9+N9), "") -> 11853.4 | H9: =IFERROR(SUM(I9/G9), "") -> 50 | I9: =IFERROR(SUM(M9+P9), "") -> 592670 | K9: =IFERROR(SUM(R9+U9+X9), "") -> 9445.9 | L9: =IFERROR(SUM(M9/K9), "") -> 50 | M9: =IFERROR(SUM(T9+W9+Z9), "") -> 472295 | N9: =IFERROR(SUM(AA9+AD9), "") -> 2407.5 | O9: =IFERROR(SUM(P9/N9), "") -> 50 | P9: =IFERROR(SUM(AC9+AF9), "") -> 120375 | R9: 8820.1 | S9: 50 | T9: =IFERROR(SUM(R9*S9), "") -> 441005 | U9: 337 | V9: 50 | W9: =IFERROR(SUM(U9*V9), "") -> 16850 | X9: 288.8 | Y9: =IFERROR(SUM(S9), "") -> 50 | Z9: =IFERROR(SUM(X9*Y9), "") -> 14440 | AA9: 1955.6 | AB9: =IFERROR(SUM(S9), "") -> 50 | AC9: =IFERROR(SUM(AA9*AB9), "") -> 97780 | AD9: 451.9 | AE9: =IFERROR(SUM(S9), "") -> 50 | AF9: =IFERROR(SUM(AD9*AE9), "") -> 22595
Y10: 0 | AB10: 0 | AE10: 0
C11: クラック補修 | E11: 0.5ｍｍ未満 フィラー刷り込み | G11: =IFERROR(SUM(K11+N11), "") -> 1778 | H11: =IFERROR(SUM(I11/G11), "") -> 250 | I11: =IFERROR(SUM(M11+P11), "") -> 444500 | K11: =IFERROR(SUM(R11+U11+X11), "") -> 1416.9 | L11: =IFERROR(SUM(M11/K11), "") -> 250 | M11: =IFERROR(SUM(T11+W11+Z11), "") -> 354225 | N11: =IFERROR(SUM(AA11+AD11), "") -> 361.1 | O11: =IFERROR(SUM(P11/N11), "") -> 250 | P11: =IFERROR(SUM(AC11+AF11), "") -> 90275 | R11: 1323 | S11: 250 | T11: =IFERROR(SUM(R11*S11), "") -> 330750 | U11: 50.6 | V11: 250 | W11: =IFERROR(SUM(U11*V11), "") -> 12650 | X11: 43.3 | Y11: 250 | Z11: =IFERROR(SUM(X11*Y11), "") -> 10825 | AA11: 293.3 | AB11: 250 | AC11: =IFERROR(SUM(AA11*AB11), "") -> 73325 | AD11: 67.8 | AE11: 250 | AF11: =IFERROR(SUM(AD11*AE11), "") -> 16950
C12: クラック補修 | E12: 0.5ｍｍ以上低圧注入工法 | G12: 177.7 | H12: 1600 | I12: 284320 | K12: 141.6 | L12: 1600 | M12: 226560 | N12: 36.1 | O12: 1600 | P12: 57760 | R12: 132.3 | S12: 1600 | T12: 211680 | U12: 5 | V12: 1600 | W12: 8000 | X12: 4.3 | Y12: 1600 | Z12: 6880 | AA12: 29.3 | AB12: 1600 | AC12: 46880 | AD12: 6.8 | AE12: 1600 | AF12: 10880
C13: クラック補修 | E13: 0.5ｍｍ以上Ｕカットシーリング充填処理 | G13: 237 | H13: 1300 | I13: 308100 | K13: 188.9 | L13: 1300 | M13: 245570 | N13: 48.1 | O13: 1300 | P13: 62530 | R13: 176.4 | S13: 1300 | T13: 229320 | U13: 6.7 | V13: 1300 | W13: 8710 | X13: 5.8 | Y13: 1300 | Z13: 7540 | AA13: 39.1 | AB13: 1300 | AC13: 50830 | AD13: 9 | AE13: 1300 | AF13: 11700
C14: コンクリート・モルタル浮き処理 | E14: SUSピン併用樹脂注入工法 25pin | G14: 210.9 | H14: 4000 | I14: 843600 | K14: 141.6 | L14: 4000 | M14: 566400 | N14: 69.3 | O14: 4000 | P14: 277200 | R14: 132.3 | S14: 4000 | T14: 529200 | U14: 5 | V14: 4000 | W14: 20000 | X14: 4.3 | Y14: 4000 | Z14: 17200 | AA14: 29.3 | AB14: 4000 | AC14: 117200 | AD14: 40 | AE14: 4000 | AF14: 160000
C15: コンクリート・モルタル露筋・欠損処理 | E15: 撤去、錆止樹脂モルタル成形 | G15: 442 | H15: 1200 | I15: 530400 | K15: 308 | L15: 1200 | M15: 369600 | N15: 134 | O15: 1200 | P15: 160800 | R15: 248 | S15: 1200 | T15: 297600 | U15: 30 | V15: 1200 | W15: 36000 | X15: 30 | Y15: 1200 | Z15: 36000 | AA15: 124 | AB15: 1200 | AC15: 148800 | AD15: 10 | AE15: 1200 | AF15: 12000
C16: 塗膜浮き・捲れ | E16: 樹脂モルタル修正 | G16: 118.4 | H16: 1600 | I16: 189440 | K16: 94.3 | L16: 1600 | M16: 150880 | N16: 24.1 | O16: 1600 | P16: 38560 | R16: 88 | S16: 1600 | T16: 140800 | U16: 3.4 | V16: 1600 | W16: 5440 | X16: 2.9 | Y16: 1600 | Z16: 4640 | AA16: 19.6 | AB16: 1600 | AC16: 31360 | AD16: 4.5 | AE16: 1600 | AF16: 7200
C17: パターン調整 | G17: 5 | H17: 86000 | I17: 430000 | K17: 3 | L17: 106666.6667 | M17: 320000 | N17: 2 | O17: 55000 | P17: 110000 | R17: 1 | S17: 160000 | T17: 160000 | U17: 1 | V17: 100000 | W17: 100000 | X17: 1 | Y17: 60000 | Z17: 60000 | AA17: 1 | AB17: 60000 | AC17: 60000 | AD17: 1 | AE17: 50000 | AF17: 50000
I18: 3623030 | M18: 2705530 | P18: 917500 | S18: 下地補修工事計 | T18: =IFERROR(SUM(T9:T17), "") -> 2340355 | V18: 計 | W18: =IFERROR(SUM(W9:W17), "") -> 207650 | Y18: 計 | Z18: =IFERROR(SUM(Z9:Z17), "") -> 157525 | AB18: 計 | AC18: =IFERROR(SUM(AC9:AC17), "") -> 626175 | AE18: 計 | AF18: =IFERROR(SUM(AF9:AF17), "") -> 291325
Y19: =IFERROR(SUM(S19), "") -> 0 | AB19: =IFERROR(SUM(S19), "") -> 0 | AE19: =IFERROR(SUM(S19), "") -> 0
B20: 3 石・タイル工事 | C20: マーキング調査費 | E20: 打診調査・資料作成 | G20: =IFERROR(SUM(K20+N20), "") -> 10131.6 | H20: =IFERROR(SUM(I20/G20), "") -> 50 | I20: =IFERROR(SUM(M20+P20), "") -> 506580 | K20: =IFERROR(SUM(R20+U20+X20), "") -> 7643 | L20: =IFERROR(SUM(M20/K20), "") -> 50 | M20: =IFERROR(SUM(T20+W20+Z20), "") -> 382150 | N20: =IFERROR(SUM(AA20+AD20), "") -> 2488.6 | O20: =IFERROR(SUM(P20/N20), "") -> 50 | P20: =IFERROR(SUM(AC20+AF20), "") -> 124430 | R20: 4155 | S20: 50 | T20: =IFERROR(SUM(R20*S20), "") -> 207750 | U20: 1395 | V20: =IFERROR(SUM(S20), "") -> 50 | W20: =IFERROR(SUM(U20*V20), "") -> 69750 | X20: 2093 | Y20: 50 | Z20: =IFERROR(SUM(X20*Y20), "") -> 104650 | AA20: 1630 | AB20: 50 | AC20: =IFERROR(SUM(AA20*AB20), "") -> 81500 | AD20: 858.6 | AE20: 50 | AF20: =IFERROR(SUM(AD20*AE20), "") -> 42930
G21: 0 | I21: 0 | K21: 0 | M21: 0 | N21: 0 | P21: 0 | S21: 0 | Y21: 0 | AB21: 0 | AE21: 0
C22: タイル補修 | E22: 近似品 | G22: 0 | I22: 0 | K22: 0 | M22: 0 | N22: 0 | P22: 0 | S22: 0 | Y22: 0 | AB22: 0 | AE22: 0
C23: 割れ欠けぶ貼替 | E23: 材料費 | G23: 72.5 | H23: 25000 | I23: 1812500 | K23: 55.9 | L23: 25000 | M23: 1397500 | N23: 16.6 | O23: 25000 | P23: 415000 | R23: 21 | S23: 25000 | T23: =IFERROR(SUM(R23*S23), "") -> 525000 | U23: 14 | V23: =IFERROR(SUM(S23), "") -> 25000 | W23: =IFERROR(SUM(U23*V23), "") -> 350000 | X23: 20.9 | Y23: 25000 | Z23: =IFERROR(SUM(X23*Y23), "") -> 522500 | AA23: 8.1 | AB23: 25000 | AC23: =IFERROR(SUM(AA23*AB23), "") -> 202500 | AD23: 8.5 | AE23: 25000 | AF23: =IFERROR(SUM(AD23*AE23), "") -> 212500
C24: 浮き部貼替 | E24: 材料費 | G24: 72.6 | H24: 25000 | I24: 1815000 | K24: 55.9 | L24: 25000 | M24: 1397500 | N24: 16.7 | O24: 25000 | P24: 417500 | R24: 21 | S24: 25000 | T24: =IFERROR(SUM(R24*S24), "") -> 525000 | U24: 14 | V24: =IFERROR(SUM(S24), "") -> 25000 | W24: =IFERROR(SUM(U24*V24), "") -> 350000 | X24: 20.9 | Y24: 25000 | Z24: =IFERROR(SUM(X24*Y24), "") -> 522500 | AA24: 8.2 | AB24: 25000 | AC24: =IFERROR(SUM(AA24*AB24), "") -> 205000 | AD24: 8.5 | AE24: 25000 | AF24: =IFERROR(SUM(AD24*AE24), "") -> 212500
C25: 施工費 | E25: 施工費 | G25: 145.1 | H25: 25000 | I25: 3627500 | K25: 111.8 | L25: 25000 | M25: 2795000 | N25: 33.3 | O25: 25000 | P25: 832500 | R25: 42 | S25: 25000 | T25: =IFERROR(SUM(R25*S25), "") -> 1050000 | U25: 28 | V25: =IFERROR(SUM(S25), "") -> 25000 | W25: =IFERROR(SUM(U25*V25), "") -> 700000 | X25: 41.8 | Y25: 25000 | Z25: =IFERROR(SUM(X25*Y25), "") -> 1045000 | AA25: 16.3 | AB25: 25000 | AC25: =IFERROR(SUM(AA25*AB25), "") -> 407500 | AD25: 17 | AE25: 25000 | AF25: =IFERROR(SUM(AD25*AE25), "") -> 425000
G26: 0 | I26: 0 | K26: 0 | M26: 0 | N26: 0 | P26: 0 | V26: =IFERROR(SUM(S26), "") -> 0 | Y26: 0 | AB26: 0 | AE26: 0
C27: 浮き部エポキシ樹脂注入 | G27: 303.8 | H27: 5300 | I27: 1610140 | K27: 229.2 | L27: 5300 | M27: 1214760 | N27: 74.6 | O27: 5300 | P27: 395380 | R27: 124.6 | S27: 5300 | T27: =IFERROR(SUM(R27*S27), "") -> 660380 | U27: 41.8 | V27: =IFERROR(SUM(S27), "") -> 5300 | W27: =IFERROR(SUM(U27*V27), "") -> 221540 | X27: 62.8 | Y27: 5300 | Z27: =IFERROR(SUM(X27*Y27), "") -> 332840 | AA27: 48.9 | AB27: 5300 | AC27: =IFERROR(SUM(AA27*AB27), "") -> 259170 | AD27: 25.7 | AE27: 5300 | AF27: =IFERROR(SUM(AD27*AE27), "") -> 136210
I28: 9371720 | M28: 7186910 | P28: 2184810 | S28: 石・タイル工事計 | T28: =IFERROR(SUM(T20:T27), "") -> 2968130 | V28: 計 | W28: =IFERROR(SUM(W20:W27), "") -> 1691290 | Y28: 計 | Z28: =IFERROR(SUM(Z20:Z27), "") -> 2527490 | AB28: 計 | AC28: =IFERROR(SUM(AC20:AC27), "") -> 1155670 | AE28: 計 | AF28: =IFERROR(SUM(AF20:AF27), "") -> 1029140
Y29: =IFERROR(SUM(S29), "") -> 0 | AB29: =IFERROR(SUM(S29), "") -> 0 | AE29: =IFERROR(SUM(S29), "") -> 0
B30: 4 シーリング工事 | C30: 塗装面打ち継ぎ目地 | D30: 打替 | E30: 20*10ポリウレタンノンブリード | G30: =IFERROR(SUM(K30+N30), "") -> 179.2 | H30: =IFERROR(SUM(I30/G30), "") -> 700 | I30: =IFERROR(SUM(M30+P30), "") -> 125440 | K30: =IFERROR(SUM(R30+U30+X30), "") -> 115.2 | L30: =IFERROR(SUM(M30/K30), "") -> 700 | M30: =IFERROR(SUM(T30+W30+Z30), "") -> 80640 | N30: =IFERROR(SUM(AA30+AD30), "") -> 64 | O30: =IFERROR(SUM(P30/N30), "") -> 700 | P30: =IFERROR(SUM(AC30+AF30), "") -> 44800 | R30: 115.2 | S30: 700 | T30: =IFERROR(SUM(R30*S30), "") -> 80640 | AA30: 64 | AB30: =IFERROR(SUM(S30), "") -> 700 | AC30: =IFERROR(SUM(AA30*AB30), "") -> 44800 | AE30: =IFERROR(SUM(S30), "") -> 700 | AF30: =IFERROR(SUM(AD30*AE30), "") -> 0
C31: 塗装面伸縮目地 | D31: 打替 | E31: 20*10ポリウレタンノンブリード | G31: 631 | H31: 700 | I31: 441700 | K31: 594 | L31: 700 | M31: 415800 | N31: 37 | O31: 700 | P31: 25900 | R31: 594 | S31: 700 | T31: =IFERROR(SUM(R31*S31), "") -> 415800 | AA31: 37 | AB31: =IFERROR(SUM(S31), "") -> 700 | AC31: =IFERROR(SUM(AA31*AB31), "") -> 25900 | AE31: =IFERROR(SUM(S31), "") -> 700 | AF31: =IFERROR(SUM(AD31*AE31), "") -> 0
C32: カーテンウォール廻り | G32: 1492 | H32: 650 | I32: 969800 | K32: 1492 | L32: 650 | M32: 969800 | N32: 0 | P32: 0 | X32: 1492 | Y32: 650 | Z32: =IFERROR(SUM(X32*Y32), "") -> 969800
C33: アルミパネル廻り | G33: 0 | I33: 0 | K33: 0 | M33: 0 | N33: 0 | P33: 0
C34: アルミパネル目地 | E34: 20*10変性シリコン | G34: 904.2 | H34: 700 | I34: 632940 | K34: 613 | L34: 700 | M34: 429100 | N34: 291.2 | O34: 700 | P34: 203840 | U34: 227 | V34: 700 | W34: =IFERROR(SUM(U34*V34), "") -> 158900 | X34: 386 | Y34: 700 | Z34: =IFERROR(SUM(X34*Y34), "") -> 270200 | AA34: 176 | AB34: 700 | AC34: =IFERROR(SUM(AA34*AB34), "") -> 123200 | AD34: 115.2 | AE34: 700 | AF34: =IFERROR(SUM(AD34*AE34), "") -> 80640
C35: タイル面打ち継ぎ目地 | D35: 打替 | E35: 20*10変性シリコン | G35: 1760.8 | H35: 700 | I35: 1232560 | K35: 965 | L35: 700 | M35: 675500 | N35: 795.8 | O35: 700 | P35: 557060 | R35: 522 | S35: 700 | T35: =IFERROR(SUM(R35*S35), "") -> 365400 | U35: 207 | V35: =IFERROR(SUM(S35), "") -> 700 | W35: 144900 | X35: 236 | Y35: =IFERROR(SUM(S35), "") -> 700 | Z35: 165200 | AA35: 568.4 | AB35: =IFERROR(SUM(S35), "") -> 700 | AC35: 397880 | AD35: 227.4 | AE35: =IFERROR(SUM(S35), "") -> 700 | AF35: 159180
C36: タイル面伸縮目地 | D36: 打替 | E36: 20*10変性シリコン | G36: 1578.5 | H36: 700 | I36: 1104950 | K36: 1454.5 | L36: 700 | M36: 1018150 | N36: 124 | O36: 700 | P36: 86800 | R36: 944 | S36: 700 | T36: 660800 | U36: 132 | V36: 700 | W36: 92400 | X36: 378.5 | Y36: =IFERROR(SUM(S36), "") -> 700 | Z36: 264950 | AA36: 96 | AB36: 700 | AC36: 67200 | AD36: 28 | AE36: 700 | AF36: 19600
C37: タイル面取り合い部目地 | D37: 打替 | E37: 20*10ポリウレタンノンブリード | G37: 644.3 | H37: 630 | I37: 405909 | K37: 533 | L37: 630 | M37: 335790 | N37: 111.3 | O37: 630 | P37: 70119 | R37: 384 | S37: 630 | T37: 241920 | U37: 48 | V37: 630 | W37: 30240 | X37: 101 | Y37: =IFERROR(SUM(S37), "") -> 630 | Z37: 63630 | AA37: 93.3 | AB37: 630 | AC37: 58779 | AD37: 18 | AE37: 630 | AF37: 11340
C38: AL建具廻り | D38: 打替 | E38: 20*10変性シリコン | G38: 3593.5 | H38: 630 | I38: 2263905 | K38: 2789.3 | L38: 630 | M38: 1757259 | N38: 804.2 | O38: 630 | P38: 506646 | R38: 2166.4 | S38: 630 | T38: 1364832 | U38: 378 | V38: 630 | W38: 238140 | X38: 244.9 | Y38: =IFERROR(SUM(S38), "") -> 630 | Z38: 154287 | AA38: 336 | AB38: 630 | AC38: 211680 | AD38: 468.2 | AE38: 630 | AF38: 294966
C39: 鋼製建具廻り | D39: 打替 | E39: 20*10変性シリコン | G39: 1755.1 | H39: 630 | I39: 1105713 | K39: 1341.7 | L39: 630 | M39: 845271 | N39: 413.4 | O39: 630 | P39: 260442 | R39: 1184.2 | S39: 630 | T39: 746046 | U39: 123 | V39: 630 | W39: 77490 | X39: 34.5 | Y39: =IFERROR(SUM(S39), "") -> 630 | Z39: 21735 | AA39: 215.2 | AB39: 630 | AC39: 135576 | AD39: 198.2 | AE39: 630 | AF39: 124866
C40: EXP.J廻り | D40: 打替 | E40: 20*10ポリウレタンノンブリード | G40: 323 | H40: 700 | I40: 226100 | K40: 312 | L40: 700 | M40: 218400 | N40: 11 | O40: 700 | P40: 7700 | R40: 264 | S40: 700 | T40: 184800 | U40: 48 | V40: 700 | W40: 33600 | AA40: 11 | AB40: 700 | AC40: 7700 | AE40: 700 | AF40: 0
C41: 手すり根元廻り | G41: 2009 | H41: 300 | I41: 602700 | K41: 1554 | L41: 300 | M41: 466200 | N41: 455 | O41: 300 | P41: 136500 | R41: 1512 | S41: 300 | T41: 453600 | U41: 42 | V41: 300 | W41: 12600 | AA41: 425 | AB41: 300 | AC41: 127500 | AD41: 30 | AE41: 300 | AF41: 9000
C42: 喚起フード周囲 | E42: 三角シーリング | G42: 3 | H42: 15000 | I42: 45000 | K42: 2 | L42: 15000 | M42: 30000 | N42: 1 | O42: 15000 | P42: 15000 | U42: 1 | V42: 15000 | W42: 15000 | X42: 1 | Y42: 15000 | Z42: =IFERROR(SUM(X42*Y42), "") -> 15000 | AD42: 1 | AE42: 15000 | AF42: 15000
C43: ベンドキャップ周囲 | G43: 250 | H43: 450 | I43: 112500 | K43: 190 | L43: 450 | M43: 85500 | N43: 60 | O43: 450 | P43: 27000 | R43: 190 | S43: 450 | T43: =IFERROR(SUM(R43*S43), "") -> 85500 | W43: 0 | AA43: 60 | AB43: =IFERROR(SUM(S43), "") -> 450 | AC43: =IFERROR(SUM(AA43*AB43), "") -> 27000 | AE43: =IFERROR(SUM(S43), "") -> 450 | AF43: 0
C44: 避難ハッチ廻り | G44: 10 | H44: 2200 | I44: 22000 | K44: 3 | L44: 2200 | M44: 6600 | N44: 7 | O44: 2200 | P44: 15400 | R44: 3 | S44: 2200 | T44: =IFERROR(SUM(R44*S44), "") -> 6600 | AA44: 5 | AB44: =IFERROR(SUM(S44), "") -> 2200 | AC44: =IFERROR(SUM(AA44*AB44), "") -> 11000 | AD44: 2 | AE44: =IFERROR(SUM(S44), "") -> 2200 | AF44: 4400
C45: 竪樋支持金物廻り | G45: 1041 | H45: 250 | I45: 260250 | K45: 711 | L45: 250 | M45: 177750 | N45: 330 | O45: 250 | P45: 82500 | R45: 575 | S45: 250 | T45: =IFERROR(SUM(R45*S45), "") -> 143750 | U45: 82 | V45: =IFERROR(SUM(S45), "") -> 250 | W45: =IFERROR(SUM(U45*V45), "") -> 20500 | X45: 54 | Y45: =IFERROR(SUM(S45), "") -> 250 | Z45: =IFERROR(SUM(X45*Y45), "") -> 13500 | AA45: 210 | AB45: =IFERROR(SUM(S45), "") -> 250 | AC45: =IFERROR(SUM(AA45*AB45), "") -> 52500 | AD45: 120 | AE45: =IFERROR(SUM(S45), "") -> 250 | AF45: 30000
C46: その他シーリング | G46: 5 | H46: 56000 | I46: 280000 | K46: 3 | L46: 46666.66667 | M46: 140000 | N46: 2 | O46: 70000 | P46: 140000 | R46: 1 | S46: 100000 | T46: =IFERROR(SUM(R46*S46), "") -> 100000 | U46: 1 | V46: 20000 | W46: =IFERROR(SUM(U46*V46), "") -> 20000 | X46: 1 | Y46: 20000 | Z46: =IFERROR(SUM(X46*Y46), "") -> 20000 | AA46: 1 | AB46: =IFERROR(SUM(S46), "") -> 100000 | AC46: =IFERROR(SUM(AA46*AB46), "") -> 100000 | AD46: 1 | AE46: 40000 | AF46: 40000
I47: 9831467 | M47: 7651760 | P47: 2179707 | S47: シーリング工事計 | T47: =IFERROR(SUM(T30:T46), "") -> 4849688 | V47: 計 | W47: =IFERROR(SUM(W30:W46), "") -> 843770 | Y47: 計 | Z47: =IFERROR(SUM(Z30:Z46), "") -> 1958302 | AB47: 計 | AC47: =IFERROR(SUM(AC30:AC46), "") -> 1390715 | AE47: 計 | AF47: =IFERROR(SUM(AF30:AF46), "") -> 788992
V48: =IFERROR(SUM(S48), "") -> 0 | Y48: =IFERROR(SUM(S48), "") -> 0 | AB48: =IFERROR(SUM(S48), "") -> 0 | AE48: =IFERROR(SUM(S48), "") -> 0
B49: 5 塗装工事 | C49: a.外壁塗装 | I49: =IFERROR(SUM(G49*H49), "") -> 0 | M49: =IFERROR(SUM(T49+W49+Z49), "") -> 0 | V49: =IFERROR(SUM(S49), "") -> 0 | Y49: =IFERROR(SUM(S49), "") -> 0 | AB49: 0 | AE49: 0
C50: バルコニー面 | E50: 関西ペイント アキレスホルダーGⅡ コスモシリコン2回塗り | G50: =IFERROR(SUM(K50+N50), "") -> 3437 | H50: =IFERROR(SUM(I50/G50), "") -> 980 | I50: =IFERROR(SUM(M50+P50), "") -> 3368260 | K50: =IFERROR(SUM(R50+U50+X50), "") -> 3269 | L50: =IFERROR(SUM(M50/K50), "") -> 980 | M50: 3203620 | N50: =IFERROR(SUM(AA50+AD50), "") -> 168 | O50: =IFERROR(SUM(P50/N50), "") -> 980 | P50: =IFERROR(SUM(AC50+AF50), "") -> 164640 | R50: 3083 | S50: 980 | T50: =IFERROR(SUM(R50*S50), "") -> 3021340 | U50: 186 | V50: =IFERROR(SUM(S50), "") -> 980 | W50: =IFERROR(SUM(U50*V50), "") -> 182280 | AA50: 168 | AB50: 980 | AC50: =IFERROR(SUM(AA50*AB50), "") -> 164640 | AE50: 980 | AF50: =IFERROR(SUM(AD50*AE50), "") -> 0
C51: バルコニー面手摺壁 | E51: 関西ペイント アキレスホルダーGⅡ コスモシリコン2回塗り | G51: 828.4 | H51: 980 | I51: 811832 | K51: 648 | L51: 980 | M51: 635040 | N51: 180.4 | O51: 980 | P51: 176792 | R51: 648 | S51: 980 | T51: 635040 | AA51: 164.9 | AB51: 980 | AC51: 161602 | AD51: 15.5 | AE51: 980 | AF51: 15190
C52: 廊下面 | E52: 関西ペイント アキレスホルダーGⅡ コスモシリコン2回塗り | G52: 2058.8 | H52: 980 | I52: 2017624 | K52: 1247.8 | L52: 980 | M52: 1222844 | N52: 811 | O52: 980 | P52: 794780 | R52: 1247.8 | S52: 980 | T52: 1222844 | AA52: 678.5 | AB52: 980 | AC52: 664930 | AD52: 132.5 | AE52: 980 | AF52: 129850
C53: 廊下手摺壁 | E53: 関西ペイント アキレスホルダーGⅡ コスモシリコン2回塗り | G53: 879 | H53: 980 | I53: 861420 | K53: 660 | L53: 980 | M53: 646800 | N53: 219 | O53: 980 | P53: 214620 | R53: 660 | S53: 980 | T53: 646800 | AA53: 219 | AB53: 980 | AC53: 214620 | AE53: 980 | AF53: 0
C54: 階段壁・支持壁 | E54: 関西ペイント アキレスホルダーGⅡ コスモシリコン2回塗り | G54: 876.2 | H54: 980 | I54: 858676 | K54: 713 | L54: 980 | M54: 698740 | N54: 163.2 | O54: 980 | P54: 159936 | R54: 713 | S54: 980 | T54: 698740 | AB54: 980 | AC54: 0 | AD54: 163.2 | AE54: 980 | AF54: 159936
C55: 吹抜け梁型 | E55: 関西ペイント アキレスホルダーGⅡ コスモシリコン2回塗り | G55: 153.5 | H55: 980 | I55: 150430 | K55: 99 | L55: 980 | M55: 97020 | N55: 54.5 | O55: 980 | P55: 53410 | R55: 99 | S55: 980 | T55: 97020 | AA55: 54.5 | AB55: 980 | AC55: 53410 | AE55: 980 | AF55: 0
C56: 吹抜け梁天端（塗装面） | E56: 関西ペイント アキレスホルダーGⅡ コスモシリコン2回塗り | G56: 27.8 | H56: 1100 | I56: 30580 | K56: 22.5 | L56: 1100 | M56: 24750 | N56: 5.3 | O56: 1100 | P56: 5830 | R56: 22.5 | S56: 1100 | T56: 24750 | AA56: 5.3 | AB56: 1100 | AC56: 5830 | AE56: 1100 | AF56: 0
C57: 吹抜け梁天端（タイル面） | E57: RCガーデックス | G57: 63.5 | H57: 2200 | I57: 139700 | K57: 54 | L57: 2200 | M57: 118800 | N57: 9.5 | O57: 2200 | P57: 20900 | R57: 21.2 | S57: 2200 | T57: 46640 | U57: 16 | V57: =IFERROR(SUM(S57), "") -> 2200 | W57: =IFERROR(SUM(U57*V57), "") -> 35200 | X57: 16.8 | Y57: =IFERROR(SUM(S57), "") -> 2200 | Z57: =IFERROR(SUM(X57*Y57), "") -> 36960 | AA57: 9.5 | AB57: 2200 | AC57: 20900 | AE57: 2200 | AF57: 0
C58: ジョリパット面 | E58: アイカ ジョリパットシーラー他 | G58: 49 | H58: 2000 | I58: 98000 | K58: 0 | M58: 0 | N58: 49 | O58: 2000 | P58: 98000 | AA58: 49 | AB58: 2000 | AC58: 98000
C59: モルタル巾木 | E59: シリコンガード | G59: 1 | H59: 35000 | I59: 35000 | K59: 0 | M59: 0 | N59: 1 | O59: 35000 | P59: 35000 | AA59: 1 | AB59: 35000 | AC59: 35000
C60: テラス面 | D60: フィットネス | E60: 関西ペイント アキレスホルダーGⅡ コスモシリコン2回塗り | G60: 240 | H60: 980 | I60: 235200 | K60: 240 | L60: 980 | M60: 235200 | N60: 0 | P60: 0 | V60: =IFERROR(SUM(S60), "") -> 0 | X60: 240 | Y60: 980 | Z60: =IFERROR(SUM(X60*Y60), "") -> 235200 | AB60: =IFERROR(SUM(S60), "") -> 0 | AE60: =IFERROR(SUM(S60), "") -> 0 | AF60: =IFERROR(SUM(AD60*AE60), "") -> 0
G61: 0 | I61: 0 | K61: 0 | M61: 0 | N61: 0 | P61: 0
C62: 共用部廊下天井 | E62: 関西ペイント アレスセラマイルド2回塗り | G62: 1537.2 | H62: 650 | I62: 999180 | K62: 1198 | L62: 650 | M62: 778700 | N62: 339.2 | O62: 650 | P62: 220480 | R62: 1198 | S62: 650 | T62: =IFERROR(SUM(R62*S62), "") -> 778700 | AA62: 251.9 | AB62: =IFERROR(SUM(S62), "") -> 650 | AC62: =IFERROR(SUM(AA62*AB62), "") -> 163735 | AD62: 87.3 | AE62: =IFERROR(SUM(S62), "") -> 650 | AF62: =IFERROR(SUM(AD62*AE62), "") -> 56745
C63: バルコニー天井・上裏 | E63: 関西ペイント アレスセラマイルド2回塗り | G63: 1080 | H63: 650 | I63: 702000 | K63: 850 | L63: 650 | M63: 552500 | N63: 230 | O63: 650 | P63: 149500 | R63: 710 | S63: 650 | T63: =IFERROR(SUM(R63*S63), "") -> 461500 | U63: 108 | V63: =IFERROR(SUM(S63), "") -> 650 | W63: =IFERROR(SUM(U63*V63), "") -> 70200 | X63: 32 | Y63: =IFERROR(SUM(S63), "") -> 650 | Z63: =IFERROR(SUM(X63*Y63), "") -> 20800 | AA63: 210 | AB63: =IFERROR(SUM(S63), "") -> 650 | AC63: =IFERROR(SUM(AA63*AB63), "") -> 136500 | AD63: 20 | AE63: =IFERROR(SUM(S63), "") -> 650 | AF63: =IFERROR(SUM(AD63*AE63), "") -> 13000
C64: ピロティ天井 | E64: 関西ペイント アレスセラマイルド2回塗り | G64: 27 | H64: 650 | I64: 17550 | K64: 27 | L64: 650 | M64: 17550 | N64: 0 | P64: 0 | U64: 27 | V64: 650 | W64: =IFERROR(SUM(U64*V64), "") -> 17550
C65: 庇上裏 | E65: 関西ペイント アレスセラマイルド2回塗り | G65: 234.6 | H65: 650 | I65: 152490 | K65: 192.6 | L65: 650 | M65: 125190 | N65: 42 | O65: 650 | P65: 27300 | R65: 192.6 | S65: 650 | T65: =IFERROR(SUM(R65*S65), "") -> 125190 | AA65: 42 | AB65: =IFERROR(SUM(S65), "") -> 650 | AC65: =IFERROR(SUM(AA65*AB65), "") -> 27300 | AE65: =IFERROR(SUM(S65), "") -> 650 | AF65: =IFERROR(SUM(AD65*AE65), "") -> 0
C66: 階段上裏 | E66: 関西ペイント アレスセラマイルド2回塗り | G66: 361.4 | H66: 650 | I66: 234910 | K66: 225 | L66: 650 | M66: 146250 | N66: 136.4 | O66: 650 | P66: 88660 | R66: 225 | S66: 650 | T66: =IFERROR(SUM(R66*S66), "") -> 146250 | AA66: 103 | AB66: =IFERROR(SUM(S66), "") -> 650 | AC66: =IFERROR(SUM(AA66*AB66), "") -> 66950 | AD66: 33.4 | AE66: =IFERROR(SUM(S66), "") -> 650 | AF66: =IFERROR(SUM(AD66*AE66), "") -> 21710
C67: 照明器具及び各戸表札の脱着費 | G67: 0 | I67: 0 | K67: 0 | M67: 0 | N67: 0 | P67: 0 | S67: 0 | V67: =IFERROR(SUM(S67), "") -> 0 | Y67: =IFERROR(SUM(S67), "") -> 0 | AB67: =IFERROR(SUM(S67), "") -> 0 | AC67: =IFERROR(SUM(AA67*AB67), "") -> 0 | AE67: =IFERROR(SUM(S67), "") -> 0 | AF67: =IFERROR(SUM(AD67*AE67), "") -> 0
C68: 外壁タイル | E68: 艶塗装 ファイングラシィSi | G68: 10053 | H68: 930 | I68: 9349290 | K68: 7643 | L68: 930 | M68: 7107990 | N68: 2410 | O68: 930 | P68: 2241300 | R68: 4155 | S68: 930 | T68: =IFERROR(SUM(R68*S68), "") -> 3864150 | U68: 1395 | V68: =IFERROR(SUM(S68), "") -> 930 | W68: =IFERROR(SUM(U68*V68), "") -> 1297350 | X68: 2093 | Y68: =IFERROR(SUM(S68), "") -> 930 | Z68: =IFERROR(SUM(X68*Y68), "") -> 1946490 | AA68: 2410 | AB68: =IFERROR(SUM(S68), "") -> 930 | AC68: =IFERROR(SUM(AA68*AB68), "") -> 2241300 | AE68: =IFERROR(SUM(S68), "") -> 930 | AF68: =IFERROR(SUM(AD68*AE68), "") -> 0
I69: 20062142 | M69: 15610994 | P69: 4451148 | S69: 外壁塗装工事計 | T69: =IFERROR(SUM(T50:T68), "") -> 11768964 | V69: 計 | W69: =IFERROR(SUM(W50:W68), "") -> 1602580 | Y69: 計 | Z69: =IFERROR(SUM(Z50:Z68), "") -> 2239450 | AB69: 計 | AC69: =IFERROR(SUM(AC50:AC68), "") -> 4054717 | AE69: 計 | AF69: =IFERROR(SUM(AF50:AF68), "") -> 396431
V70: =IFERROR(SUM(S70), "") -> 0 | Y70: =IFERROR(SUM(S70), "") -> 0 | AB70: =IFERROR(SUM(S70), "") -> 0 | AE70: =IFERROR(SUM(S70), "") -> 0
C71: b.鉄部塗装 | K71: =IFERROR(SUM(R71+U71+X71), "") -> 0 | L71: =IFERROR(SUM(M71/K71), "") ->  | M71: =IFERROR(SUM(T71+W71+Z71), "") -> 0 | N71: =IFERROR(SUM(AA71+AD71), "") -> 0 | O71: =IFERROR(SUM(P71/N71), "") ->  | P71: =IFERROR(SUM(AC71+AF71), "") -> 0 | V71: 0 | Y71: 0 | AB71: 0 | AE71: 0
C72: 玄関ドア（枠・見え掛り部） | E72: 850*1930 | F72: ヶ所 | G72: 62 | K72: 0 | M72: 0 | N72: 0 | P72: 0 | V72: 0 | Y72: 0 | AB72: 0 | AE72: 0
C73: MB扉（両面・枠共） | E73: 750*1890 | G73: 34 | K73: 0 | M73: 0 | N73: 0 | P73: 0 | V73: 0 | Y73: 0 | AB73: 0 | AE73: 0
C74: 〃 | E74: 900*1890 | G74: 3 | K74: 0 | M74: 0 | N74: 0 | P74: 0 | V74: 0 | Y74: 0 | AB74: 0 | AE74: 0
C75: 〃 | E75: 1200*1890 観音開き | G75: 10 | K75: 0 | M75: 0 | N75: 0 | P75: 0 | V75: 0 | Y75: 0 | AB75: 0 | AE75: 0
C76: 〃 | E76: 1480*1890 観音開き | G76: 17 | K76: 0 | M76: 0 | N76: 0 | P76: 0 | V76: 0 | Y76: 0 | AB76: 0 | AE76: 0
C77: トランク扉（両面・枠共） | E77: 780*1880 | G77: 20 | K77: 0 | M77: 0 | N77: 0 | P77: 0 | V77: 0 | Y77: 0 | AB77: 0 | AE77: 0
C78: 〃 | E78: 1550*1920 観音開き | G78: 60 | K78: 0 | M78: 0 | N78: 0 | P78: 0 | V78: 0 | Y78: 0 | AB78: 0 | AE78: 0
C79: 〃 | E79: 1500*1920 観音開き | G79: 2 | K79: 0 | M79: 0 | N79: 0 | P79: 0 | V79: 0 | Y79: 0 | AB79: 0 | AE79: 0
C80: 門扉（両面） | E80: 1050*1100 | G80: 62 | K80: 0 | M80: 0 | N80: 0 | P80: 0 | V80: 0 | Y80: 0 | AB80: 0 | AE80: 0
C81: ゲート（門扉上） | G81: 62 | K81: 0 | M81: 0 | N81: 0 | P81: 0 | V81: 0 | Y81: 0 | AB81: 0 | AE81: 0
C82: ポーチ内格子（両面） | E82: 1200*1800 | G82: 48 | K82: 0 | M82: 0 | N82: 0 | P82: 0 | V82: 0 | Y82: 0 | AB82: 0 | AE82: 0
C83: 〃 | E83: 800*1800 | G83: 12 | K83: 0 | M83: 0 | N83: 0 | P83: 0 | V83: 0 | Y83: 0 | AB83: 0 | AE83: 0
C84: EPS扉（両面・枠共） | E84: 700*1900 | G84: 16 | K84: 0 | M84: 0 | N84: 0 | P84: 0 | V84: 0 | Y84: 0 | AB84: 0 | AE84: 0
C85: 放水口扉 | E85: 500*800 | G85: 10 | K85: 0 | M85: 0 | N85: 0 | P85: 0 | V85: 0 | Y85: 0 | AB85: 0 | AE85: 0
C86: 消火栓扉 | E86: 900*1400 | G86: 5 | K86: 0 | M86: 0 | N86: 0 | P86: 0 | V86: 0 | Y86: 0 | AB86: 0 | AE86: 0
C87: 集会室 MB扉 | E87: 400*300*200 150*800*100 | G87: 1 | K87: 0 | M87: 0 | N87: 0 | P87: 0 | V87: 0 | Y87: 0 | AB87: 0 | AE87: 0
C88: テラスベンチ | E88: 1500*400*400 | G88: 4 | K88: 0 | M88: 0 | N88: 0 | P88: 0 | V88: 0 | Y88: 0 | AB88: 0 | AE88: 0
C89: 4階 廊下 ポール | E89: 170Φ H2690 | G89: 4 | K89: 0 | M89: 0 | N89: 0 | P89: 0 | V89: 0 | Y89: 0 | AB89: 0 | AE89: 0
C90: 13階 階段A扉（両面・枠共） | E90: 1270*2100 | G90: 1 | K90: 0 | M90: 0 | N90: 0 | P90: 0 | V90: 0 | Y90: 0 | AB90: 0 | AE90: 0
C91: 屋上 EV機械室扉（両面・枠共） | E91: 950*2200 | G91: 1 | K91: 0 | M91: 0 | N91: 0 | P91: 0 | V91: 0 | Y91: 0 | AB91: 0 | AE91: 0
C92: 屋上 機械室扉（両面・枠共） | E92: 900*1800 | G92: 1 | K92: 0 | M92: 0 | N92: 0 | P92: 0 | V92: 0 | Y92: 0 | AB92: 0 | AE92: 0
C93: 屋上 MB | E93: 420*400*200 | G93: 1 | K93: 0 | M93: 0 | N93: 0 | P93: 0 | V93: 0 | Y93: 0 | AB93: 0 | AE93: 0
C94: エントランス メールボックス室 扉 | E94: 950*2150 | G94: 1 | K94: 0 | M94: 0 | N94: 0 | P94: 0 | V94: 0 | Y94: 0 | AB94: 0 | AE94: 0
C95: 1階駐輪場 入口扉（ガラス入り） | E95: 980*2150 | G95: 1 | K95: 0 | M95: 0 | N95: 0 | P95: 0 | V95: 0 | Y95: 0 | AB95: 0 | AE95: 0
C96: 1階駐輪場 防火扉 | E96: 2300*2150 | G96: 1 | K96: 0 | M96: 0 | N96: 0 | P96: 0 | V96: 0 | Y96: 0 | AB96: 0 | AE96: 0
C97: 1階駐輪場 EPS扉 | E97: 680*1800 | G97: 1 | K97: 0 | M97: 0 | N97: 0 | P97: 0 | V97: 0 | Y97: 0 | AB97: 0 | AE97: 0
C98: 1階駐輪場 MDF扉 | E98: 960*2150 | G98: 1 | K98: 0 | M98: 0 | N98: 0 | P98: 0 | V98: 0 | Y98: 0 | AB98: 0 | AE98: 0
C99: 1階管理人室 扉（ガラス入り） | E99: 2650*2600 | G99: 1 | K99: 0 | M99: 0 | N99: 0 | P99: 0 | V99: 0 | Y99: 0 | AB99: 0 | AE99: 0
C100: 1階A階段 ポンプ室 扉 | E100: 980*2150 | G100: 1 | K100: 0 | M100: 0 | N100: 0 | P100: 0 | V100: 0 | Y100: 0 | AB100: 0 | AE100: 0
C101: 1階EV 枠+防火扉 | E101: 1850*2150 | G101: 2 | K101: 0 | M101: 0 | N101: 0 | P101: 0 | V101: 0 | Y101: 0 | AB101: 0 | AE101: 0
C102: シャッター | K102: 0 | M102: 0 | N102: 0 | P102: 0
K103: =IFERROR(SUM(R103+U103+X103), "") -> 0 | L103: =IFERROR(SUM(M103/K103), "") ->  | M103: =IFERROR(SUM(T103+W103+Z103), "") -> 0 | N103: =IFERROR(SUM(AA103+AD103), "") -> 0 | O103: =IFERROR(SUM(P103/N103), "") ->  | P103: 0 | V103: =IFERROR(SUM(S103), "") -> 0 | Y103: =IFERROR(SUM(S103), "") -> 0 | AB103: =IFERROR(SUM(S103), "") -> 0 | AE103: =IFERROR(SUM(S103), "") -> 0
C104: 避雷針 | E104: アルミニウムペイント | G104: =IFERROR(SUM(K104+N104), "") -> 3 | H104: =IFERROR(SUM(I104/G104), "") -> 7000 | I104: =IFERROR(SUM(M104+P104), "") -> 21000 | K104: 2 | L104: 7000 | M104: 14000 | N104: 1 | O104: 7000 | P104: 7000 | R104: 2 | S104: 7000 | T104: =IFERROR(SUM(R104*S104), "") -> 14000 | AA104: 1 | AB104: 7000 | AC104: =IFERROR(SUM(AA104*AB104), "") -> 7000 | AE104: 7000
C105: ソーラーパネル架台タッチアップ塗装 | G105: 1 | H105: 100000 | I105: 100000 | K105: 1 | L105: 100000 | M105: 100000 | N105: 0 | P105: 0 | R105: 1 | S105: 100000 | T105: 100000 | AB105: 100000 | AC105: 0 | AE105: 100000
C106: 金属屋根 | E106: スーパーシリコン塗装 | G106: 1132 | H106: 1248.321555 | I106: 1413100 | K106: 844 | L106: 1230.687204 | M106: 1038700 | N106: 288 | O106: 1300 | P106: 374400 | R106: 259 | S106: 1300 | T106: 336700 | X106: 585 | Y106: 1200 | Z106: =IFERROR(SUM(X106*Y106), "") -> 702000 | AA106: 288 | AB106: 1300 | AC106: 374400 | AE106: 1300
C107: 渡り廊下パンチングメタル | G107: 230 | H107: 1100 | I107: 253000 | K107: 230 | L107: 1100 | M107: 253000 | N107: 0 | P107: 0 | R107: 230 | S107: 1100 | T107: 253000 | AB107: 1100 | AC107: 0 | AE107: 1100
C108: 渡り廊下ダウンライト | G108: 16 | H108: 600 | I108: 9600 | K108: 16 | L108: 600 | M108: 9600 | N108: 0 | P108: 0 | R108: 16 | S108: 600 | T108: 9600 | AB108: 600 | AC108: 0 | AE108: 600
C109: 室外機置場パンチングメタル | G109: 107.6 | H109: 1100 | I109: 118360 | K109: 107.6 | L109: 1100 | M109: 118360 | N109: 0 | P109: 0 | R109: 107.6 | S109: 1100 | T109: 118360 | AB109: 1100 | AC109: 0 | AE109: 1100
C110: スロープ庇 | E110: 西棟 | G110: 1 | H110: 50000 | I110: 50000 | K110: 0 | M110: 0 | N110: 1 | O110: 50000 | P110: 50000 | AA110: 1 | AB110: 50000 | AC110: 50000
C111: バルコニー隔て板 | G111: 61 | H111: 5300 | I111: 323300 | K111: 46 | L111: 5300 | M111: 243800 | N111: 15 | O111: 5300 | P111: 79500 | R111: 46 | S111: 5300 | T111: =IFERROR(SUM(R111*S111), "") -> 243800 | AA111: 15 | AB111: =IFERROR(SUM(S111), "") -> 5300 | AC111: 79500 | AE111: =IFERROR(SUM(S111), "") -> 5300
C112: 1階店舗庇 スパンドレル | E112: 洗い工事に計上 | G112: 0 | I112: 0 | K112: 0 | M112: 0 | N112: 0 | P112: 0
C113: 店舗上部 庇パネル・ガラリ格子 | E113: 洗い工事に計上 | G113: 0 | I113: 0 | K113: 0 | M113: 0 | N113: 0 | P113: 0
C114: 庇全面（オレンジ部） | E114: シリコントップ | G114: 268 | H114: 1200 | I114: 321600 | K114: 268 | L114: 1200 | M114: 321600 | N114: 0 | P114: 0 | U114: 184 | V114: 1200 | W114: =IFERROR(SUM(U114*V114), "") -> 220800 | X114: 84 | Y114: 1200 | Z114: =IFERROR(SUM(X114*Y114), "") -> 100800
C115: 「ウェルブ」看板 | E115: 洗い工事に計上 | G115: 0 | I115: 0 | K115: 0 | M115: 0 | N115: 0 | P115: 0
C116: ピロティ部分 柱及び梁の鋼製部分 | E116: 洗い工事に計上 | G116: 0 | I116: 0 | K116: 0 | M116: 0 | N116: 0 | P116: 0
C117: 樋 | G117: 1236 | H117: 550 | I117: 679800 | K117: 852 | L117: 550 | M117: 468600 | N117: 384 | O117: 550 | P117: 211200 | R117: 690 | S117: 550 | T117: =IFERROR(SUM(R117*S117), "") -> 379500 | U117: 96 | V117: =IFERROR(SUM(S117), "") -> 550 | W117: =IFERROR(SUM(U117*V117), "") -> 52800 | X117: 66 | Y117: =IFERROR(SUM(S117), "") -> 550 | Z117: =IFERROR(SUM(X117*Y117), "") -> 36300 | AA117: 240 | AB117: =IFERROR(SUM(S117), "") -> 550 | AC117: =IFERROR(SUM(AA117*AB117), "") -> 132000 | AD117: 144 | AE117: =IFERROR(SUM(S117), "") -> 550 | AF117: =IFERROR(SUM(AD117*AE117), "") -> 79200
C118: 照明器具 | G118: 1 | H118: 10000 | I118: 10000 | K118: 0 | M118: 0 | N118: 1 | O118: 10000 | P118: 10000 | AD118: 1 | AE118: 10000 | AF118: =IFERROR(SUM(AD118*AE118), "") -> 10000
C119: エントランス庇支柱 | G119: 1 | H119: 30000 | I119: 30000 | K119: 0 | M119: 0 | N119: 1 | O119: 30000 | P119: 30000 | AA119: 1 | AB119: 30000 | AC119: =IFERROR(SUM(AA119*AB119), "") -> 30000
C120: 雑塗装 | E120: 各種支持金物等 | G120: 5 | H120: 112000 | I120: 560000 | K120: 3 | L120: 120000 | M120: 360000 | N120: 2 | O120: 100000 | P120: 200000 | R120: 1 | S120: 200000 | T120: =IFERROR(SUM(R120*S120), "") -> 200000 | U120: 1 | V120: 80000 | W120: =IFERROR(SUM(U120*V120), "") -> 80000 | X120: 1 | Y120: 80000 | Z120: =IFERROR(SUM(X120*Y120), "") -> 80000 | AA120: 1 | AB120: 100000 | AC120: =IFERROR(SUM(AA120*AB120), "") -> 100000 | AD120: 1 | AE120: 100000 | AF120: =IFERROR(SUM(AD120*AE120), "") -> 100000
C121: 養生による塗膜剥がれ | E121: タッチアップ | G121: 5 | H121: 90000 | I121: 450000 | K121: 3 | L121: 100000 | M121: 300000 | N121: 2 | O121: 75000 | P121: 150000 | R121: 1 | S121: 200000 | T121: =IFERROR(SUM(R121*S121), "") -> 200000 | U121: 1 | V121: 50000 | W121: =IFERROR(SUM(U121*V121), "") -> 50000 | X121: 1 | Y121: 50000 | Z121: =IFERROR(SUM(X121*Y121), "") -> 50000 | AA121: 1 | AB121: 100000 | AC121: =IFERROR(SUM(AA121*AB121), "") -> 100000 | AD121: 1 | AE121: 50000 | AF121: =IFERROR(SUM(AD121*AE121), "") -> 50000
I122: 4339760 | M122: 3227660 | P122: 1112100 | S122: 鉄部塗装工事計 | T122: =IFERROR(SUM(T98:T121), "") -> 1854960 | V122: 計 | W122: =IFERROR(SUM(W98:W121), "") -> 403600 | Y122: 計 | Z122: =IFERROR(SUM(Z71:Z121), "") -> 969100 | AB122: 計 | AC122: =IFERROR(SUM(AC71:AC121), "") -> 872900 | AE122: 計 | AF122: =IFERROR(SUM(AF71:AF121), "") -> 239200
B123: 6 防水工事 | C123: 【塔屋】 | E123: ウレタン塗膜防水 通気緩衝工法 | G123: =IFERROR(SUM(K123+N123), "") -> 0 | H123: =IFERROR(SUM(I123/G123), "") ->  | I123: 0 | M123: 0 | N123: =IFERROR(SUM(AA123+AD123), "") -> 0 | O123: =IFERROR(SUM(P123/N123), "") ->  | P123: 0 | V123: =IFERROR(SUM(S123), "") -> 0 | Y123: =IFERROR(SUM(S123), "") -> 0 | AB123: =IFERROR(SUM(S123), "") -> 0 | AE123: =IFERROR(SUM(S123), "") -> 0
C124: 既設防水面ケレン・清掃・高圧洗浄 | G124: 15.2 | H124: 50 | I124: 760 | K124: =IFERROR(SUM(R124+U124+X124), "") -> 15.2 | L124: =IFERROR(SUM(M124/K124), "") -> 50 | M124: 760 | N124: 0 | P124: 0 | R124: 15.2 | S124: 50 | T124: =IFERROR(SUM(R124*S124), "") -> 760 | Y124: 50 | AB124: 50 | AE124: 50
C125: 既設立上り防水層撤去・仮防水 | E125: 押え金物含む | G125: 15.2 | H125: 2500 | I125: 38000 | K125: 15.2 | L125: 2500 | M125: 38000 | N125: 0 | P125: 0 | R125: 15.2 | S125: 2500 | T125: 38000 | Y125: 2500 | AB125: 2500 | AE125: 2500
C126: 下地処理 | E126: 伸縮目地含む | G126: 15.2 | H126: 500 | I126: 7600 | K126: 15.2 | L126: 500 | M126: 7600 | N126: 0 | P126: 0 | R126: 15.2 | S126: 500 | T126: 7600 | Y126: 500 | AB126: 500 | AE126: 500
C127: 平場部防水 | E127: 田島ルーフィング OSTW-3S | G127: 10.8 | H127: 4300 | I127: 46440 | K127: 10.8 | L127: 4300 | M127: 46440 | N127: 0 | P127: 0 | R127: 10.8 | S127: 4300 | T127: 46440 | Y127: 4300 | AB127: 4300 | AE127: 4300
C128: 立上り | E128: H300 | G128: 4.4 | H128: 4300 | I128: 18920 | K128: 4.4 | L128: 4300 | M128: 18920 | N128: 0 | P128: 0 | R128: 4.4 | S128: 4300 | T128: 18920 | Y128: 4300 | AB128: 4300 | AE128: 4300
C129: 立上り 押え金物 | E129: アルミ製 | G129: 14.8 | H129: 1500 | I129: 22200 | K129: 14.8 | L129: 1500 | M129: 22200 | N129: 0 | P129: 0 | R129: 14.8 | S129: 1500 | T129: 22200 | Y129: 1500 | AB129: 1500 | AE129: 1500
C130: 同上廻り シーリング | G130: 14.8 | H130: 300 | I130: 4440 | K130: 14.8 | L130: 300 | M130: 4440 | N130: 0 | P130: 0 | R130: 14.8 | S130: 300 | T130: 4440 | Y130: 300 | AB130: 300 | AE130: 300
C131: 改修用ドレン | G131: 1 | H131: 12000 | I131: 12000 | K131: 1 | L131: 12000 | M131: 12000 | N131: 0 | P131: 0 | R131: 1 | S131: 12000 | T131: 12000 | Y131: 12000 | AB131: 12000 | AE131: 12000
C132: 脱気筒 | G132: 1 | H132: 8000 | I132: 8000 | K132: 1 | L132: 8000 | M132: 8000 | N132: 0 | P132: 0 | R132: 1 | S132: 8000 | T132: 8000 | Y132: 8000 | AB132: 8000 | AE132: 8000
G133: 0 | I133: 158360 | K133: 0 | M133: 158360 | N133: 0 | P133: 0 | S133: 小計 | T133: =IFERROR(SUM(T124:T132), "") -> 158360 | V133: =IFERROR(SUM(S133), "") -> 0 | Y133: 0 | AB133: 0 | AE133: 0
C134: 【屋上】 | E134: ウレタン塗膜防水 通気緩衝工法 | G134: 0 | I134: 0 | K134: 0 | M134: 0 | N134: 0 | P134: 0 | V134: 0 | Y134: 0 | AB134: 0 | AE134: 0
C135: 既設防水面ケレン・清掃・高圧洗浄 | G135: 898.7 | H135: 50 | I135: 44935 | K135: 671.5 | L135: 50 | M135: =IFERROR(SUM(T135+W135+Z135), "") -> 33575 | N135: 227.2 | O135: 50 | P135: =IFERROR(SUM(AC135+AF135), "") -> 11360 | R135: 460.5 | S135: 50 | T135: =IFERROR(SUM(R135*S135), "") -> 23025 | U135: 49.8 | V135: 50 | W135: =IFERROR(SUM(U135*V135), "") -> 2490 | X135: 161.2 | Y135: 50 | Z135: =IFERROR(SUM(X135*Y135), "") -> 8060 | AA135: 215.1 | AB135: 50 | AC135: =IFERROR(SUM(AA135*AB135), "") -> 10755 | AD135: 12.1 | AE135: 50 | AF135: =IFERROR(SUM(AD135*AE135), "") -> 605
C136: 既設立上り防水層撤去・仮防水 | E136: 押え金物含む | G136: 731.9 | H136: 2500 | I136: =IFERROR(SUM(M136+P136), "") -> 1829750 | K136: 671.5 | L136: 2500 | M136: 1678750 | N136: 60.4 | O136: 2500 | P136: 151000 | R136: 460.5 | S136: 2500 | T136: 1151250 | U136: 49.8 | V136: 2500 | W136: 124500 | X136: 161.2 | Y136: 2500 | Z136: 403000 | AA136: 48.3 | AB136: 2500 | AC136: 120750 | AD136: 12.1 | AE136: 2500 | AF136: 30250
C137: 下地処理 | E137: 伸縮目地含む | G137: 898.7 | H137: 500 | I137: 449350 | K137: 671.5 | L137: 500 | M137: 335750 | N137: 227.2 | O137: 500 | P137: 113600 | R137: 460.5 | S137: 500 | T137: 230250 | U137: 49.8 | V137: 500 | W137: 24900 | X137: 161.2 | Y137: 500 | Z137: 80600 | AA137: 215.1 | AB137: 500 | AC137: 107550 | AD137: 12.1 | AE137: 500 | AF137: 6050
C138: 平場部防水 | E138: 田島ルーフィング OSTW-3S | G138: 734.4 | H138: 4300 | I138: 3157920 | K138: 559 | L138: 4300 | M138: 2403700 | N138: 175.4 | O138: 4300 | P138: 754220 | R138: 381 | S138: 4300 | T138: 1638300 | U138: 42 | V138: 4300 | W138: 180600 | X138: 136 | Y138: 4300 | Z138: 584800 | AA138: 166.8 | AB138: 4300 | AC138: 717240 | AD138: 8.6 | AE138: 4300 | AF138: 36980
C139: 立上り | E139: H300 | G139: 164.3 | H139: 4300 | I139: 706490 | K139: 112.5 | L139: 4300 | M139: 483750 | N139: 51.8 | O139: 4300 | P139: 222740 | R139: 79.5 | S139: 4300 | T139: 341850 | U139: 7.8 | V139: 4300 | W139: 33540 | X139: 25.2 | Y139: 4300 | Z139: 108360 | AA139: 48.3 | AB139: 4300 | AC139: 207690 | AD139: 3.5 | AE139: 4300 | AF139: 15050
C140: 立上り 押え金物 | E140: アルミ製 | G140: 549.7 | H140: 1500 | I140: 824550 | K140: 375 | L140: 1500 | M140: 562500 | N140: 174.7 | O140: 1500 | P140: 262050 | R140: 265 | S140: 1500 | T140: 397500 | U140: 26 | V140: 1500 | W140: 39000 | X140: 84 | Y140: 1500 | Z140: 126000 | AA140: 162.9 | AB140: 1500 | AC140: 244350 | AD140: 11.8 | AE140: 1500 | AF140: 17700
C141: 同上廻り シーリング | G141: 549.7 | H141: 300 | I141: 164910 | K141: 375 | L141: 300 | M141: 112500 | N141: 174.7 | O141: 300 | P141: 52410 | R141: 265 | S141: 300 | T141: 79500 | U141: 26 | V141: 300 | W141: 7800 | X141: 84 | Y141: 300 | Z141: 25200 | AA141: 162.9 | AB141: 300 | AC141: 48870 | AD141: 11.8 | AE141: 300 | AF141: 3540
C142: 改修用ドレン | G142: 23 | H142: 12000 | I142: 276000 | K142: 15 | L142: 12000 | M142: 180000 | N142: 8 | O142: 12000 | P142: 96000 | R142: 11 | S142: 12000 | T142: 132000 | U142: 1 | V142: 12000 | W142: 12000 | X142: 3 | Y142: 12000 | Z142: 36000 | AA142: 7 | AB142: 12000 | AC142: 84000 | AD142: 1 | AE142: 12000 | AF142: 12000
C143: 脱気筒 | G143: 12 | H143: 8000 | I143: 96000 | K143: 8 | L143: 8000 | M143: 64000 | N143: 4 | O143: 8000 | P143: 32000 | R143: 4 | S143: 8000 | T143: 32000 | U143: 1 | V143: 8000 | W143: 8000 | X143: 3 | Y143: 8000 | Z143: 24000 | AA143: 3 | AB143: 8000 | AC143: 24000 | AD143: 1 | AE143: 8000 | AF143: 8000
G144: 0 | I144: 7549905 | K144: 0 | M144: 5854525 | N144: 0 | P144: 1695380 | S144: 小計 | T144: =IFERROR(SUM(T135:T143), "") -> 4025675 | V144: 小計 | W144: =IFERROR(SUM(W135:W143), "") -> 432830 | Y144: 小計 | Z144: =IFERROR(SUM(Z135:Z143), "") -> 1396020 | AB144: 小計 | AC144: =IFERROR(SUM(AC135:AC143), "") -> 1565205 | AE144: 小計 | AF144: =IFERROR(SUM(AF135:AF143), "") -> 130175
C145: 【ルーフ・バルコニー・テラス】 | E145: ウレタン塗膜防水 通気緩衝工法 | G145: 0 | I145: 0 | K145: 0 | M145: 0 | N145: 0 | P145: 0 | V145: =IFERROR(SUM(S145), "") -> 0 | Y145: =IFERROR(SUM(S145), "") -> 0 | AB145: =IFERROR(SUM(S145), "") -> 0 | AE145: =IFERROR(SUM(S145), "") -> 0
C146: 既設防水面ケレン・清掃・高圧洗浄 | G146: 495.4 | H146: 50 | I146: 24770 | K146: 405.4 | L146: 50 | M146: 20270 | N146: 90 | O146: 50 | P146: 4500 | R146: 240.3 | S146: 50 | T146: =IFERROR(SUM(R146*S146), "") -> 12015 | U146: 114.9 | V146: 50 | W146: =IFERROR(SUM(U146*V146), "") -> 5745 | X146: 50.2 | Y146: 50 | Z146: =IFERROR(SUM(X146*Y146), "") -> 2510 | AB146: 50 | AC146: =IFERROR(SUM(AA146*AB146), "") -> 0 | AD146: 90 | AE146: 50 | AF146: =IFERROR(SUM(AD146*AE146), "") -> 4500
C147: 既設立上り防水層撤去・仮防水 | E147: 押え金物含む | G147: 495.4 | H147: 2500 | I147: 1238500 | K147: 405.4 | L147: 2500 | M147: 1013500 | N147: 90 | O147: 2500 | P147: 225000 | R147: 240.3 | S147: 2500 | T147: 600750 | U147: 114.9 | V147: 2500 | W147: 287250 | X147: 50.2 | Y147: 2500 | Z147: 125500 | AB147: 2500 | AC147: 0 | AD147: 90 | AE147: 2500 | AF147: 225000
C148: 下地処理 | E148: 伸縮目地含む | G148: 495.4 | H148: 500 | I148: 247700 | K148: 405.4 | L148: 500 | M148: 202700 | N148: 90 | O148: 500 | P148: 45000 | R148: 240.3 | S148: 500 | T148: 120150 | U148: 114.9 | V148: 500 | W148: 57450 | X148: 50.2 | Y148: 500 | Z148: 25100 | AB148: 500 | AC148: 0 | AD148: 90 | AE148: 500 | AF148: 45000
C149: 平場部防水 | E149: 田島ルーフィング OSTW-3S | G149: 392.2 | H149: 4300 | I149: 1686460 | K149: 318.7 | L149: 4300 | M149: 1370410 | N149: 73.5 | O149: 4300 | P149: 316050 | R149: 186 | S149: 4300 | T149: 799800 | U149: 97.5 | V149: 4300 | W149: 419250 | X149: 35.2 | Y149: 4300 | Z149: 151360 | AB149: 4300 | AC149: 0 | AD149: 73.5 | AE149: 4300 | AF149: 316050
C150: 立上り | E150: H300 | G150: 103.2 | H150: 4300 | I150: 443760 | K150: 86.7 | L150: 4300 | M150: 372810 | N150: 16.5 | O150: 4300 | P150: 70950 | R150: 54.3 | S150: 4300 | T150: 233490 | U150: 17.4 | V150: 4300 | W150: 74820 | X150: 15 | Y150: 4300 | Z150: 64500 | AB150: 4300 | AC150: 0 | AD150: 16.5 | AE150: 4300 | AF150: 70950
C151: 立上り 押え金物 | E151: アルミ製 | G151: 344 | H151: 1500 | I151: 516000 | K151: 289 | L151: 1500 | M151: 433500 | N151: 55 | O151: 1500 | P151: 82500 | R151: 181 | S151: 1500 | T151: 271500 | U151: 58 | V151: 1500 | W151: 87000 | X151: 50 | Y151: 1500 | Z151: 75000 | AB151: 1500 | AC151: 0 | AD151: 55 | AE151: 1500 | AF151: 82500
C152: 同上廻り シーリング | G152: 344 | H152: 300 | I152: 103200 | K152: 289 | L152: 300 | M152: 86700 | N152: 55 | O152: 300 | P152: 16500 | R152: 181 | S152: 300 | T152: 54300 | U152: 58 | V152: 300 | W152: 17400 | X152: 50 | Y152: 300 | Z152: 15000 | AB152: 300 | AC152: 0 | AD152: 55 | AE152: 300 | AF152: 16500
C153: 改修用ドレン | G153: 19 | H153: 12000 | I153: 228000 | K153: 16 | L153: 12000 | M153: 192000 | N153: 3 | O153: 12000 | P153: 36000 | R153: 11 | S153: 12000 | T153: 132000 | U153: 2 | V153: 12000 | W153: 24000 | X153: 3 | Y153: 12000 | Z153: 36000 | AB153: 12000 | AC153: 0 | AD153: 3 | AE153: 12000 | AF153: 36000
C154: 脱気筒 | G154: 14 | H154: 8000 | I154: 112000 | K154: 12 | L154: 8000 | M154: 96000 | N154: 2 | O154: 8000 | P154: 16000 | R154: 8 | S154: 8000 | T154: 64000 | U154: 2 | V154: 8000 | W154: 16000 | X154: 2 | Y154: 8000 | Z154: 16000 | AB154: 8000 | AC154: 0 | AD154: 2 | AE154: 8000 | AF154: 16000
C155: フェンス基礎 | E155: 西棟 | G155: =IFERROR(SUM(K155+N155), "") -> 1 | H155: =IFERROR(SUM(I155/G155), "") -> 30000 | I155: 30000 | K155: 0 | M155: 0 | N155: =IFERROR(SUM(AA155+AD155), "") -> 1 | O155: =IFERROR(SUM(P155/N155), "") -> 30000 | P155: 30000 | AD155: 1 | AE155: 30000 | AF155: 30000
G156: 0 | I156: 4630390 | K156: 0 | M156: 3787890 | N156: 0 | P156: 842500 | S156: 小計 | T156: =IFERROR(SUM(T146:T154), "") -> 2288005 | V156: 小計 | W156: =IFERROR(SUM(W146:W154), "") -> 988915 | Y156: 小計 | Z156: =IFERROR(SUM(Z146:Z154), "") -> 510970 | AB156: 小計 | AC156: =IFERROR(SUM(AC146:AC154), "") -> 0 | AE156: 小計 | AF156: =IFERROR(SUM(AF146:AF155), "") -> 842500
C157: 【パラペット天端・鳩小屋】 | E157: ウレタン塗膜防水 | G157: 0 | I157: 0 | K157: 0 | M157: 0 | N157: 0 | P157: 0 | V157: =IFERROR(SUM(S157), "") -> 0 | Y157: =IFERROR(SUM(S157), "") -> 0 | AB157: =IFERROR(SUM(S157), "") -> 0 | AE157: =IFERROR(SUM(S157), "") -> 0
C158: 既設防水面ケレン・清掃・高圧洗浄 | G158: 455.5 | H158: 50 | I158: 22775 | K158: 321.3 | L158: 50 | M158: 16065 | N158: 134.2 | O158: 50 | P158: 6710 | R158: 203 | S158: 50 | T158: =IFERROR(SUM(R158*S158), "") -> 10150 | U158: 78.3 | V158: =IFERROR(SUM(S158), "") -> 50 | W158: =IFERROR(SUM(U158*V158), "") -> 3915 | X158: 40 | Y158: =IFERROR(SUM(S158), "") -> 50 | Z158: =IFERROR(SUM(X158*Y158), "") -> 2000 | AA158: 95.2 | AB158: =IFERROR(SUM(S158), "") -> 50 | AC158: =IFERROR(SUM(AA158*AB158), "") -> 4760 | AD158: 39 | AE158: =IFERROR(SUM(S158), "") -> 50 | AF158: =IFERROR(SUM(AD158*AE158), "") -> 1950
C159: 下地処理 | G159: 455.5 | H159: 250 | I159: 113875 | K159: 321.3 | L159: 250 | M159: 80325 | N159: 134.2 | O159: 250 | P159: 33550 | R159: 203 | S159: 250 | T159: =IFERROR(SUM(R159*S159), "") -> 50750 | U159: 78.3 | V159: =IFERROR(SUM(S159), "") -> 250 | W159: =IFERROR(SUM(U159*V159), "") -> 19575 | X159: 40 | Y159: =IFERROR(SUM(S159), "") -> 250 | Z159: =IFERROR(SUM(X159*Y159), "") -> 10000 | AA159: 95.2 | AB159: =IFERROR(SUM(S159), "") -> 250 | AC159: =IFERROR(SUM(AA159*AB159), "") -> 23800 | AD159: 39 | AE159: =IFERROR(SUM(S159), "") -> 250 | AF159: =IFERROR(SUM(AD159*AE159), "") -> 9750
C160: パラペット天端 | E160: 田島ルーフィング OSTL-6VA | G160: 455.5 | H160: 2400 | I160: 1093200 | K160: 321.3 | L160: 2400 | M160: 771120 | N160: 134.2 | O160: 2400 | P160: 322080 | R160: 203 | S160: 2400 | T160: =IFERROR(SUM(R160*S160), "") -> 487200 | U160: 78.3 | V160: =IFERROR(SUM(S160), "") -> 2400 | W160: =IFERROR(SUM(U160*V160), "") -> 187920 | X160: 40 | Y160: =IFERROR(SUM(S160), "") -> 2400 | Z160: =IFERROR(SUM(X160*Y160), "") -> 96000 | AA160: 95.2 | AB160: =IFERROR(SUM(S160), "") -> 2400 | AC160: =IFERROR(SUM(AA160*AB160), "") -> 228480 | AD160: 39 | AE160: =IFERROR(SUM(S160), "") -> 2400 | AF160: =IFERROR(SUM(AD160*AE160), "") -> 93600
C161: ドレン | G161: 8 | H161: 500 | I161: 4000 | K161: 0 | M161: 0 | N161: 8 | O161: 500 | P161: 4000 | AA161: 8 | AB161: 500 | AC161: =IFERROR(SUM(AA161*AB161), "") -> 4000 | AF161: =IFERROR(SUM(AD161*AE161), "") -> 0
G162: 0 | I162: 1233850 | K162: 0 | M162: 867510 | N162: 0 | P162: 366340 | S162: 小計 | T162: =IFERROR(SUM(T158:T160), "") -> 548100 | V162: 小計 | W162: =IFERROR(SUM(W158:W160), "") -> 211410 | Y162: 小計 | Z162: =IFERROR(SUM(Z158:Z161), "") -> 108000 | AB162: 小計 | AC162: =IFERROR(SUM(AC158:AC161), "") -> 261040 | AE162: 小計 | AF162: =IFERROR(SUM(AF158:AF161), "") -> 105300
G163: 0 | I163: 0 | K163: 0 | M163: 0 | N163: 0 | P163: 0
C164: 【大庇】 | G164: 0 | I164: 0 | K164: 0 | M164: 0 | N164: 0 | P164: 0 | V164: =IFERROR(SUM(S164), "") -> 0 | Y164: =IFERROR(SUM(S164), "") -> 0 | AB164: =IFERROR(SUM(S164), "") -> 0 | AE164: =IFERROR(SUM(S164), "") -> 0
C165: 既設防水面ケレン・清掃・高圧洗浄 | G165: 298.4 | H165: 50 | I165: 14920 | K165: 201 | L165: 50 | M165: 10050 | N165: 97.4 | O165: 50 | P165: 4870 | R165: 178 | S165: 50 | T165: =IFERROR(SUM(R165*S165), "") -> 8900 | X165: 23 | Y165: =IFERROR(SUM(S165), "") -> 50 | Z165: =IFERROR(SUM(X165*Y165), "") -> 1150 | AA165: 97.4 | AB165: =IFERROR(SUM(S165), "") -> 50 | AC165: =IFERROR(SUM(AA165*AB165), "") -> 4870 | AE165: =IFERROR(SUM(S165), "") -> 50 | AF165: =IFERROR(SUM(AD165*AE165), "") -> 0
C166: 下地処理 | G166: 298.4 | H166: 250 | I166: 74600 | K166: 201 | L166: 250 | M166: 50250 | N166: 97.4 | O166: 250 | P166: 24350 | R166: 178 | S166: 250 | T166: =IFERROR(SUM(R166*S166), "") -> 44500 | X166: 23 | Y166: =IFERROR(SUM(S166), "") -> 250 | Z166: =IFERROR(SUM(X166*Y166), "") -> 5750 | AA166: 97.4 | AB166: =IFERROR(SUM(S166), "") -> 250 | AC166: =IFERROR(SUM(AA166*AB166), "") -> 24350 | AE166: =IFERROR(SUM(S166), "") -> 250 | AF166: =IFERROR(SUM(AD166*AE166), "") -> 0
C167: 平場・立上り | E167: 田島ルーフィング OSTL-6VA | G167: 298.4 | H167: 2400 | I167: 716160 | K167: 201 | L167: 2400 | M167: 482400 | N167: 97.4 | O167: 2400 | P167: 233760 | R167: 178 | S167: 2400 | T167: =IFERROR(SUM(R167*S167), "") -> 427200 | X167: 23 | Y167: =IFERROR(SUM(S167), "") -> 2400 | Z167: =IFERROR(SUM(X167*Y167), "") -> 55200 | AA167: 97.4 | AB167: =IFERROR(SUM(S167), "") -> 2400 | AC167: =IFERROR(SUM(AA167*AB167), "") -> 233760 | AE167: =IFERROR(SUM(S167), "") -> 2400 | AF167: =IFERROR(SUM(AD167*AE167), "") -> 0
C168: ドレン | G168: 28 | H168: 500 | I168: =IFERROR(SUM(M168+P168), "") -> 14000 | K168: 17 | L168: 500 | M168: 8500 | N168: 11 | O168: 500 | P168: 5500 | R168: 15 | S168: 500 | T168: =IFERROR(SUM(R168*S168), "") -> 7500 | X168: 2 | Y168: =IFERROR(SUM(S168), "") -> 500 | Z168: =IFERROR(SUM(X168*Y168), "") -> 1000 | AA168: 11 | AB168: =IFERROR(SUM(S168), "") -> 500 | AC168: =IFERROR(SUM(AA168*AB168), "") -> 5500 | AE168: =IFERROR(SUM(S168), "") -> 500 | AF168: =IFERROR(SUM(AD168*AE168), "") -> 0
G169: 0 | I169: 268480 | N169: 0 | P169: 268480 | S169: 小計 | T169: =IFERROR(SUM(T165:T168), "") -> 488100 | W169: =IFERROR(SUM(W165:W168), "") -> 0 | Y169: 小計 | Z169: =IFERROR(SUM(Z165:Z168), "") -> 63100 | AB169: 小計 | AC169: =IFERROR(SUM(AC165:AC168), "") -> 268480 | AE169: 小計 | AF169: =IFERROR(SUM(AF165:AF168), "") -> 0
C170: 【小庇】 | E170: ウレタン塗膜防水 | G170: 0 | I170: 0 | K170: =IFERROR(SUM(R170+U170+X170), "") -> 0 | L170: =IFERROR(SUM(M170/K170), "") ->  | M170: =IFERROR(SUM(T170+W170+Z170), "") -> 0 | N170: 0 | P170: 0 | V170: =IFERROR(SUM(S170), "") -> 0 | Y170: =IFERROR(SUM(S170), "") -> 0 | AB170: =IFERROR(SUM(S170), "") -> 0 | AE170: =IFERROR(SUM(S170), "") -> 0
C171: 既設防水面ケレン・清掃・高圧洗浄 | G171: 36 | H171: 50 | I171: 1800 | K171: 36 | L171: 50 | M171: 1800 | N171: 0 | P171: 0 | R171: 36 | S171: 50 | T171: =IFERROR(SUM(R171*S171), "") -> 1800 | Y171: 50 | AB171: 50 | AE171: 50
C172: 下地処理 | G172: 36 | H172: 250 | I172: 9000 | K172: 36 | L172: 250 | M172: 9000 | N172: 0 | P172: 0 | R172: 36 | S172: 250 | T172: =IFERROR(SUM(R172*S172), "") -> 9000 | Y172: 250 | AB172: 250 | AE172: 250
C173: 平場・立上り | E173: 田島ルーフィング OSTL-6VA | G173: 36 | H173: 2400 | I173: 86400 | K173: 36 | L173: 2400 | M173: 86400 | N173: 0 | P173: 0 | R173: 36 | S173: 2400 | T173: =IFERROR(SUM(R173*S173), "") -> 86400 | Y173: 2400 | AB173: 2400 | AE173: 2400
G174: 0 | I174: 97200 | K174: 0 | M174: 97200 | N174: 0 | P174: 0 | S174: 計 | T174: =IFERROR(SUM(T170:T173), "") -> 97200 | Y174: 0 | AB174: 0 | AE174: 0
C175: 【バルコニー】 | E175: ウレタン塗膜防水 | G175: 0 | I175: 0 | K175: 0 | M175: 0 | N175: 0 | P175: 0 | Y175: 0 | AB175: 0 | AE175: 0
C176: ケレン・清掃 | G176: 2375 | H176: 20.13894737 | I176: 47830 | K176: 1817.6 | L176: 20 | M176: 36352 | N176: 557.4 | O176: 20.59203445 | P176: 11478 | R176: 1817.6 | S176: 20 | T176: =IFERROR(SUM(R176*S176), "") -> 36352 | Y176: 20 | AA176: 546.4 | AB176: 20 | AC176: =IFERROR(SUM(AA176*AB176), "") -> 10928 | AD176: 11 | AE176: 50 | AF176: =IFERROR(SUM(AD176*AE176), "") -> 550
C177: 下地処理 | G177: 2375 | H177: 31.01894737 | I177: 73670 | K177: 1817.6 | L177: 30 | M177: 54528 | N177: 557.4 | O177: 34.34158593 | P177: 19142 | R177: 1817.6 | S177: 30 | T177: =IFERROR(SUM(R177*S177), "") -> 54528 | Y177: 30 | AA177: 546.4 | AB177: 30 | AC177: =IFERROR(SUM(AA177*AB177), "") -> 16392 | AD177: 11 | AE177: 250 | AF177: 2750
C178: 平場 | E178: 西棟避難バルコニー | G178: 8.4 | H178: 2400 | I178: 20160 | K178: 0 | M178: 0 | N178: 8.4 | O178: 2400 | P178: 20160 | AD178: 8.4 | AE178: 2400 | AF178: 20160
C179: 溝 | E179: 田島ルーフィングOSTL-6VA | G179: 767.4 | H179: 830 | I179: 636942 | K179: 568 | L179: 830 | M179: 471440 | N179: 199.4 | O179: 830 | P179: 165502 | R179: 568 | S179: 830 | T179: =IFERROR(SUM(R179*S179), "") -> 471440 | Y179: =IFERROR(SUM(S179), "") -> 830 | AA179: 190.9 | AB179: =IFERROR(SUM(S179), "") -> 830 | AC179: =IFERROR(SUM(AA179*AB179), "") -> 158447 | AD179: 8.5 | AE179: =IFERROR(SUM(S179), "") -> 830 | AF179: 7055
C180: 立上り | E180: 田島ルーフィングOSTL-6VA | G180: 1622.1 | H180: 830 | I180: 1346343 | K180: 1249.6 | L180: 830 | M180: 1037168 | N180: 372.5 | O180: 830 | P180: 309175 | R180: 1249.6 | S180: 830 | T180: =IFERROR(SUM(R180*S180), "") -> 1037168 | Y180: =IFERROR(SUM(S180), "") -> 830 | AA180: 355.5 | AB180: =IFERROR(SUM(S180), "") -> 830 | AC180: =IFERROR(SUM(AA180*AB180), "") -> 295065 | AD180: 17 | AE180: =IFERROR(SUM(S180), "") -> 830 | AF180: 14110
C181: ドレン | E181: タールエポ塗装 | G181: 135 | H181: 500 | I181: 67500 | K181: 98 | L181: 500 | M181: 49000 | N181: 37 | O181: 500 | P181: 18500 | R181: 98 | S181: 500 | T181: =IFERROR(SUM(R181*S181), "") -> 49000 | Y181: =IFERROR(SUM(S181), "") -> 500 | AA181: 35 | AB181: =IFERROR(SUM(S181), "") -> 500 | AC181: =IFERROR(SUM(AA181*AB181), "") -> 17500 | AD181: 2 | AE181: =IFERROR(SUM(S181), "") -> 500 | AF181: 1000
G182: 0 | I182: 2192445 | K182: 0 | M182: 1648488 | N182: 0 | P182: 543957 | S182: 小計 | T182: =IFERROR(SUM(T176:T181), "") -> 1648488 | V182: 小計 | W182: =IFERROR(SUM(W176:W181), "") -> 0 | Y182: 小計 | Z182: =IFERROR(SUM(Z176:Z181), "") -> 0 | AB182: 小計 | AC182: =IFERROR(SUM(AC176:AC181), "") -> 498332 | AE182: 小計 | AF182: =IFERROR(SUM(AF176:AF181), "") -> 45625
G183: 0 | I183: 0 | K183: 0 | M183: 0 | N183: 0 | P183: 0 | V183: =IFERROR(SUM(S183), "") -> 0 | Y183: =IFERROR(SUM(S183), "") -> 0 | AB183: =IFERROR(SUM(S183), "") -> 0 | AE183: =IFERROR(SUM(S183), "") -> 0
C184: 【植え込み】 | G184: 0 | I184: 0 | K184: 0 | M184: 0 | N184: 0 | P184: 0 | V184: =IFERROR(SUM(S184), "") -> 0 | Y184: =IFERROR(SUM(S184), "") -> 0 | AB184: =IFERROR(SUM(S184), "") -> 0 | AE184: =IFERROR(SUM(S184), "") -> 0
G185: 0 | I185: 0 | K185: 0 | M185: 0 | N185: 0 | P185: 0
C186: 【非常用侵入バルコニー】 | E186: ウレタン塗膜防水 通気緩衝工法 | G186: 0 | I186: 0 | K186: 0 | M186: 0 | N186: 0 | P186: 0
C187: 既設防水面ケレン・清掃・高圧洗浄 | G187: =IFERROR(SUM(K187+N187), "") -> 129.9 | H187: =IFERROR(SUM(I187/G187), "") -> 50 | I187: 6495 | K187: 129.9 | L187: 50 | M187: 6495 | N187: =IFERROR(SUM(AA187+AD187), "") -> 0 | O187: =IFERROR(SUM(P187/N187), "") ->  | P187: 0 | U187: 104.4 | V187: 50 | W187: =IFERROR(SUM(U187*V187), "") -> 5220 | X187: 25.5 | Y187: 50 | Z187: =IFERROR(SUM(X187*Y187), "") -> 1275
C188: 既設立上り防水層撤去・仮防水 | E188: 押え金物含む | G188: 129.9 | H188: 2500 | I188: 324750 | K188: 129.9 | L188: 2500 | M188: 324750 | N188: 0 | P188: 0 | U188: 104.4 | V188: 2500 | W188: 261000 | X188: 25.5 | Y188: 2500 | Z188: 63750
C189: 下地処理 | E189: 伸縮目地含む | G189: 129.9 | H189: 500 | I189: 64950 | K189: 129.9 | L189: 500 | M189: 64950 | N189: 0 | P189: 0 | U189: 104.4 | V189: 500 | W189: 52200 | X189: 25.5 | Y189: 500 | Z189: 12750
C190: 平場部防水 | E190: 田島ルーフィング OSTW-3S | G190: 97 | H190: 4300 | I190: 417100 | K190: 97 | L190: 4300 | M190: 417100 | N190: 0 | P190: 0 | U190: 77.4 | V190: 4300 | W190: 332820 | X190: 19.6 | Y190: 4300 | Z190: 84280
C191: 立上り | E191: H300 | G191: 32.9 | H191: 4300 | I191: 141470 | K191: 32.9 | L191: 4300 | M191: 141470 | N191: 0 | P191: 0 | U191: 27 | V191: 4300 | W191: 116100 | X191: 5.9 | Y191: 4300 | Z191: 25370
C192: 立上り 押え金物 | E192: アルミ製 | G192: 109.6 | H192: 1500 | I192: 164400 | K192: 109.6 | L192: 1500 | M192: 164400 | N192: 0 | P192: 0 | U192: 90 | V192: 1500 | W192: 135000 | X192: 19.6 | Y192: 1500 | Z192: 29400
C193: 同上廻り シーリング | G193: 28.6 | H193: 300 | I193: 8580 | K193: 28.6 | L193: 300 | M193: 8580 | N193: 0 | P193: 0 | U193: 9 | V193: 300 | W193: 2700 | X193: 19.6 | Y193: 300 | Z193: 5880
C194: 改修用ドレン | G194: 6 | H194: 12000 | I194: 72000 | K194: 6 | L194: 12000 | M194: 72000 | N194: 0 | P194: 0 | U194: 5 | V194: 12000 | W194: 60000 | X194: 1 | Y194: 12000 | Z194: 12000
C195: 脱気筒 | G195: 3 | H195: 8000 | I195: 24000 | K195: 3 | L195: 8000 | M195: 24000 | N195: 0 | P195: 0 | U195: 2 | V195: 8000 | W195: 16000 | X195: 1 | Y195: 8000 | Z195: 8000
G196: 0 | I196: 1223745 | K196: 0 | M196: 1223745 | N196: 0 | P196: 0 | V196: 小計 | W196: =IFERROR(SUM(W187:W195), "") -> 981040 | Y196: 小計 | Z196: =IFERROR(SUM(Z187:Z195), "") -> 242705 | AB196: =IFERROR(SUM(S196), "") -> 0 | AE196: =IFERROR(SUM(S196), "") -> 0
C197: 【室外機置場】 | E197: ウレタン塗膜防水 | G197: 0 | I197: 0 | K197: 0 | M197: 0 | N197: 0 | P197: 0 | V197: =IFERROR(SUM(S197), "") -> 0 | Y197: =IFERROR(SUM(S197), "") -> 0 | AB197: =IFERROR(SUM(S197), "") -> 0 | AE197: =IFERROR(SUM(S197), "") -> 0
C198: ケレン・清掃 | G198: 421.8 | H198: 23.00853485 | I198: 9705 | K198: 164.5 | L198: 22.37082067 | M198: 3680 | N198: 257.3 | O198: 23.41624563 | P198: 6025 | R198: 151.5 | S198: 20 | T198: =IFERROR(SUM(R198*S198), "") -> 3030 | U198: 13 | V198: 50 | W198: =IFERROR(SUM(U198*V198), "") -> 650 | Y198: =IFERROR(SUM(S198), "") -> 20 | AA198: 228 | AB198: =IFERROR(SUM(S198), "") -> 20 | AC198: =IFERROR(SUM(AA198*AB198), "") -> 4560 | AD198: 29.3 | AE198: 50 | AF198: =IFERROR(SUM(AD198*AE198), "") -> 1465
C199: 下地処理 | G199: 421.8 | H199: 52.0625889 | I199: 21960 | K199: 164.5 | L199: 47.38601824 | M199: 7795 | N199: 257.3 | O199: 55.05246794 | P199: =IFERROR(SUM(AC199+AF199), "") -> 14165 | R199: 151.5 | S199: 30 | T199: =IFERROR(SUM(R199*S199), "") -> 4545 | U199: 13 | V199: 250 | W199: 3250 | Y199: =IFERROR(SUM(S199), "") -> 30 | AA199: 228 | AB199: =IFERROR(SUM(S199), "") -> 30 | AC199: 6840 | AD199: 29.3 | AE199: 250 | AF199: 7325
C200: 平場 | G200: 33 | H200: 2400 | I200: =IFERROR(SUM(M200+P200), "") -> 79200 | K200: 10.5 | L200: 2400 | M200: 25200 | N200: 22.5 | O200: 2400 | P200: 54000 | U200: 10.5 | V200: 2400 | W200: 25200 | AC200: 0 | AD200: 22.5 | AE200: 2400 | AF200: 54000
... 162 more rows

Sheet 鉄部塗装見積
A1: 2010施工
A2: 2018施工
B3: 仮設工事
B4: 仮設足場
B5: 養生費
B6: 運搬費
B8: 東棟住宅 | H8: 東棟店舗 | L8: 西棟住宅 | P8: 西棟店舗
B9: b.鉄部塗装 | D9: ヶ所 | E9: ｍ換算 | F9: 単価 | G9: 金額 | H9: ヶ所 | I9: ｍ換算 | J9: 単価 | K9: 金額 | L9: ヶ所 | M9: ｍ換算 | N9: 単価 | O9: 金額 | P9: ヶ所 | Q9: ｍ換算 | R9: 単価 | S9: 金額
B10: SD1 | C10: 1500*2115 | D10: 6 | E10: 292 | F10: 850 | G10: =SUM(E10*F10) -> 248200 | L10: 20 | M10: 111.2 | N10: 850
B11: MB扉（両面・枠共） | C11: 750*1890 | D11: 34 | E11: 124.6 | F11: 2450 | G11: 305270 | L11: 20 | M11: 73.3 | N11: 2450
B12: 〃 | C12: 900*1890 | D12: 3 | E12: 13 | F12: 2540 | G12: 33020
B13: 〃 | C13: 1200*1890 観音開き | D13: 10 | E13: 58.2 | F13: 2540 | G13: 147828
B14: 〃 | C14: 1480*1890 観音開き | D14: 17 | E14: 119.6 | F14: 2540 | G14: 303784
B15: トランク扉（両面・枠共） | C15: 780*1880 | D15: 20 | E15: 75.5 | F15: 2540 | G15: 191770 | L15: 20 | M15: 75.5 | N15: 2540
B16: 〃 | C16: 1550*1920 観音開き | D16: 60 | E16: 447.3 | F16: 2540 | G16: 1136142
B17: 〃 | C17: 1500*1920 観音開き | D17: 2 | E17: 14.5 | F17: 2540 | G17: 36830
B18: 門扉（両面） | C18: 1050*1100 | D18: 62 | E18: 155.3 | F18: 2700 | G18: 419310 | L18: 20 | M18: 50.1 | N18: 2700
B19: ゲート（門扉上） | D19: 62 | E19: 62 | F19: 1950 | G19: 120900 | L19: 20 | M19: 20 | N19: 1950
B20: ポーチ内格子（両面） | C20: 1200*1800 | D20: 48 | E20: 2380.8 | F20: 850 | G20: 2023680
B21: 〃 | C21: 800*1800 | D21: 12 | E21: 408 | F21: 850 | G21: 346800
B22: EPS扉（両面・枠共） | C22: 700*1900 | D22: 16 | E22: 75.5 | F22: 2540 | G22: 191770
B23: 放水口扉 | C23: 500*800 | D23: 10 | E23: 8.8 | F23: 2540 | G23: 22352
B24: 消火栓扉 | C24: 900*1400 | D24: 5 | E24: 6.9 | F24: 2700 | G24: 18630
B25: 集会室 ＭＢ扉 | C25: 400*300*200 150*800*100 | D25: 1 | E25: 0.38 | F25: 30000 | G25: 11400
B26: テラスベンチ | C26: 1500*400*400 | D26: 4 | E26: 8 | F26: 2700 | G26: 21600
B27: 4階 廊下 ポール | C27: 170Φ H2690 | D27: 4 | E27: 6.3 | F27: 2700 | G27: 17010
B28: 13階 階段Ａ扉（両面・枠共） | C28: 1270*2100 | D28: 1 | E28: 6.5 | F28: 2540 | G28: 16510
B29: 屋上 EV機械室扉（両面・枠共） | C29: 950*2200 | D29: 1 | E29: 5.2 | F29: 2540 | G29: 13208
B30: 屋上 機械室扉（両面・枠共） | C30: 900*1800 | D30: 1 | E30: 4.1 | F30: 2540 | G30: 10414
B31: 屋上 MB | C31: 420*400*200 | D31: 1 | E31: 0.5 | F31: 30000 | G31: 15000
B32: エントランス メールボックス室 扉 | C32: 950*2150 | D32: 1 | E32: 2.2 | F32: 2540 | G32: 5588
B33: 1階駐輪場 入口扉（ガラス入り） | C33: 980*2150 | D33: 1 | E33: 1.3 | F33: 2540 | G33: 3302
B34: 1階駐輪場 防火扉 | C34: 2300*2150 | D34: 1 | E34: 5.4 | F34: 2540 | G34: 13716
B35: 1階駐輪場 EPS扉 | C35: 680*1800 | D35: 1 | E35: 1.3 | F35: 2540 | G35: 3302
B36: 1階駐輪場 MDF扉 | C36: 960*2150 | D36: 1 | E36: 2.2 | F36: 2540 | G36: 5588
B37: 1階管理人室 扉（ガラス入り） | C37: 2650*2600 | D37: 1 | E37: 2.5 | F37: 2540 | G37: 6350
B38: 1階A階段 ポンプ室 扉 | C38: 980*2150 | D38: 1 | E38: 2.3 | F38: 2540 | G38: 5842
B39: 1階EV 枠+防火扉 | C39: 1850*2150 | D39: 2 | E39: 10.4 | F39: 2540 | G39: 26416
G40: =SUM(G10:G39) -> 5721532
B41: 東棟店舗
B42: １階店舗用メールＢＯＸ室ＥＰＳ扉 | C42: 970*1950 | D42: 1 | E42: 2.2 | F42: 2540 | G42: =SUM(E42*F42) -> 5588
B43: １階さんど亭ＥＶホール ＥＶ防火扉 | C43: 2300*2170 | D43: 1 | E43: 5.4 | F43: 2540 | G43: 13716
B44: １階さんど亭ＥＶホールＤＳ扉 | C44: 680*1470 | D44: 1 | E44: 1.2 | F44: 2540 | G44: 3048
B45: １階さんど亭横 ＳＤ扉 枠共 | C45: 830*2200 | D45: 1 | E45: 2.9 | F45: 2540 | G45: 7366
B46: 店舗間化粧鋼板 | C46: 200*3000 | D46: 6 | E46: 3.6 | F46: 2800 | G46: 10080
B47: 店舗E106・113シャッター（片面） | C47: 5100*2690 | D47: 2 | E47: 27.4 | F47: 2800 | G47: 76720
B48: 店舗E107・E104・E105・E110・E111シャッター | C48: 5020*2690 | D48: 3 | E48: 40.5 | F48: 2800 | G48: 113400
B49: 店舗E102・103シャッター（片面） | C49: 5200*2690 | D49: 1 | E49: 14 | F49: 2800 | G49: 39200
B50: 店舗E108・109シャッター（片面） | C50: 4620*2690 | D50: 1 | E50: 12.4 | F50: 2800 | G50: 34720
B51: 店舗E112シャッター（片面） | C51: 5630*2690 | D51: 1 | E51: 15.2 | F51: 2800 | G51: 42560
B52: 店舗E1113シャッター（片面） | C52: 1560*2690 | D52: 1 | E52: 4.2 | F52: 2800 | G52: 11760
B53: 店舗E1014シャッター（片面） | C53: 2330*2690 | D53: 1 | E53: 6.3 | F53: 2800 | G53: 17640
B54: 店舗E115シャッター（片面） | C54: 4350*2690 | D54: 1 | E54: 11.7 | F54: 2800 | G54: 32760
G55: =SUM(G42:G54) -> 408558
B56: 西棟住宅
B57: 玄関ドア（枠・見え掛り部） | C57: 850*1930 | D57: 20 | E57: 111.2 | F57: 850 | G57: =SUM(E57*F57) -> 94520
B58: MB扉（両面・枠共） | C58: 750*1890 | D58: 20 | E58: 73.3 | F58: 2540 | G58: 186182
B59: トランク扉（両面・枠共） | C59: 780*1880 | D59: 20 | E59: 75.5 | F59: 2540 | G59: 191770
B60: 門扉（両面） | C60: 1050*1100 | D60: 20 | E60: 50.1 | F60: 2700 | G60: 135270
B61: ゲート（門扉上） | D61: 20 | E61: 20 | F61: 1950 | G61: 39000
B62: ７階 階段Ｈ扉（両面・枠共） | C62: 1250*2050 | D62: 1 | E62: 7.1 | F62: 2540 | G62: 18034
B63: １階 三方枠 | C63: 710*2150 | D63: 1 | E63: 5 | F63: 850 | G63: 4250
B64: 階段室Ｊ扉（両面枠共） | C64: 1020*2380 | D64: 1 | E64: 5.9 | F64: 2540 | G64: 14986
B65: ２階 階段Ｈ扉（両面枠共） | C65: 1400*2990 | D65: 1 | E65: 10.1 | F65: 2540 | G65: 25654
B66: ２階 ＰＳ・ＥＰＳ扉（両面枠共） | C66: 700*1900 | D66: 2 | E66: 7.3 | F66: 2540 | G66: 18542
B67: ２階 消火栓扉 | C67: 950*1100 | D67: 1 | E67: 1.1 | F67: 2540 | G67: 2794
B68: ＥＶ機械室扉（両面枠共） | C68: 950*2200 | D68: 1 | E68: 5.5 | F68: 2540 | G68: 13970
B69: ＥＶ機械室前扉（両面枠共） | C69: 950*2200 | D69: 1 | E69: 5.5 | F69: 2540 | G69: 13970
G70: =SUM(G57:G69) -> 758942
B71: 西棟店舗

Sheet 積立金設定
A1: （様式第５号） 修繕積立金の額の設定 | G1: 作成日／ 年 月 日 集会（管理組合総会）で議決された日／ 年 月 日
C2: （単位：特記がない場合は円）
B3: 現行 | D3: 年額 | F3: 面積 | G3: 単価 | L3: 現行 | M3: 面積 | N3: 単価 | O3: 年額
B4: 住宅 | C4: 530220 | D4: =C4*12 -> 6362640 | F4: 6313.18 | G4: 84 | H4: =SUM(F4*G4) -> 530307.12 | I4: 12 | J4: =H4*I4 -> 6363685.44 | L4: 住宅 | M4: 6313.18 | N4: 84 | O4: =M4*N4*12 -> 6363685.44
B5: 駐車場 | C5: 129610 | D5: =C5*12 -> 1555320 | F5: 603.4 | G5: 78 | H5: =SUM(F5*G5) -> 47065.2 | L5: セントラル | M5: 4648.46 | N5: 78 | O5: =M5*N5*12 -> 4350958.56
B6: フィットネス | C6: 362580 | D6: 4350960 | F6: 4271.87 | G6: 78 | H6: 333205.86 | L6: 施設 | N6: 78
B7: さんど亭 | F7: 376.5 | G7: 78 | H7: 29367
B8: 施設 | C8: 94520 | D8: 1134240 | F8: 6528.23 | G8: 78 | H8: 509201.94 | I8: 12 | J8: =H8*I8 -> 6110423.28 | L8: 住宅駐車場使用料 | O8: 4400000
L9: 施設駐車場使用料 | O9: 1400000
L10: 駐車場特別修繕費 | O10: 1555320
L11: 看板使用料 | O11: 730968
A15: 【均等積立方式の場合】（既存のマンション）
A16: 項 目 | C16: 摘 要
A17: Ａ | B17: 計画期間の 推定修繕工事費の累計額（円） | C17: 334,916,159 | E17: ① | F17: 計画期間当初における修繕積立金の残高 （①＝(D／（J×12）)／Ｎ) （㎡当たり月当たり） | I17: 0 | N17: 管理費（ｍ2） | O17: 修繕積立金（ｍ2）
A18: Ｂ | B18: 計画期間の借入金の償還金（元本・利息） | E18: ② | F18: 計画期間全体における専用使用料収入等からの繰入額の総額 （②＝(（E＋F）／（J×12）)／Ｎ） （㎡当たり月当たり） | I18: 0 | M18: 住宅 | N18: 139 | O18: 84
A19: Ｃ | B19: 支出 累計 （Ｃ＝Ａ） | E19: ③ | F19: 計画期間全体における修繕積立金の平均額（機械式駐車場分を含む） (③＝①＋②＋Ｏ) ※残高・基金、その他会計からの振替等含む （㎡当たり月当たり） | I19: 276 | M19: 店舗 | N19: 184 | O19: 78
A20: Ｄ | B20: 修繕積立金の残高 | C20: 0 | M20: さんど亭 | N20: 196 | O20: 78
A21: Ｅ | B21: 計画期間の専用使用料、駐車場等の使用料からの繰入金 | C21: 0 | D21: 表 住戸タイプ別修繕積立金の額 | M21: セントラル | N21: 196 | O21: 78
A22: Ｆ | B22: 計画期間の修繕積立金の運用益 | C22: 0 | E22: 住戸タイプ | G22: 負担割合 | H22: 修繕積立金の額 （円／月・戸）
A23: Ｇ | B23: 計画期間に予定する一時金の合計額 | E23: Ａ | G23: 0.020741 | H23: 19.296
E24: Ｂ | G24: 0.022222 | H24: 20.674
A25: Ｈ | B25: 収入 累計 （Ｈ＝Ｄ＋Ｅ＋Ｆ） | C25: 0 | E25: Ｃ | G25: 0.023704 | H25: 22.052
A28: Ｉ | B28: 差額（円） （Ｉ＝Ｃ－Ｈ）
A32: Ｊ | B32: 計画期間(年） | C32: 30
A35: Ｋ | B35: 月当たりの負担額 （Ｉ／（Ｊ×12）） | C35: 930.323
A38: Ｌ | B38: 戸当たりの負担割合 | C38: 管理規約による
A41: Ｍ | B41: 修繕積立金の額（Ｍ＝Ｋ×Ｌ） （戸当たり月当たり） | C41: 表 住戸タイプ別修繕積立金の額
A46: Ｎ | B46: 専有面積の合計（㎡） | C46: 3375.00
A49: Ｏ | B49: 修繕積立金の額（Ｏ＝Ｋ／Ｎ） （㎡当たり月当たり） | C49: 276
A52: Ｐ | B52: 住戸数（戸） | C52: 45
A55: Ｑ | B55: 修繕積立金の額（Ｑ＝Ｋ／Ｐ）平均（戸当たり月当たり） | C55: 20.674

Sheet タイプ別面積・管理費等額
A1: タイプ別面積表 | D1: 184 | E1: 139 | F1: 196 | H1: 78 | I1: 84 | J1: 78
A2: 区画番号 | B2: 用途 | C2: 専有面積 | D2: 施設管理費 | E2: 住宅管理費 | F2: セントラル管理費 | H2: 施設特別修繕 | I2: 住宅特別修繕 | J2: セントラル特別修繕 | M2: 合計
A3: 101 | B3: 施設 | C3: 39.6 | D3: =C3*D1 -> 7286.4 | H3: =C3*H1 -> 3088.8 | M3: =SUM(D3:K3) -> 10375.2
A4: 102 | B4: 施設 | C4: 33.66 | D4: =C4*D1 -> 6193.44 | H4: =C4*H1 -> 2625.48 | M4: =SUM(D4:K4) -> 8818.92
A5: 103 | B5: 施設 | C5: 23.58 | D5: 4339 | H5: 1840 | M5: 6179
A6: 104 | B6: 施設 | C6: 25.85 | D6: 4756 | H6: 2020 | M6: 6776
A7: 105 | B7: 施設 | C7: 29.88 | D7: 5498 | H7: 2330 | M7: 7828
A8: 106 | B8: 施設 | C8: 29.16 | D8: 5365 | H8: 2270 | M8: 7635
A9: 107 | B9: 施設 | C9: 29.68 | D9: 5641 | H9: 2320 | M9: 7961
A10: 108 | B10: 施設 | C10: 26.12 | D10: 4806 | H10: 2040 | M10: 6846 | O10: =H10/C10 -> 78.10107198
A11: 109 | B11: 施設 | C11: 58.75 | D11: =C11*D1 -> 10810 | H11: =C11*H1 -> 4582.5 | M11: 15392.5
A12: 110 | B12: 施設 | C12: 60.5 | D12: =C12*D1 -> 11132 | H12: =C12*H1 -> 4719 | M12: 15851
A13: 111 | B13: 施設 | C13: 4271.87 | F13: =C13*F1 -> 837286.52 | J13: =C13*J1 -> 333205.86 | M13: 1170492.38
A14: 112 | B14: 施設 | C14: 24.01 | D14: =C14*D1 -> 4417.84 | H14: =C14*H1 -> 1872.78 | M14: 6290.62
A15: 113 | B15: 施設 | C15: 66.32 | D15: =C15*D1 -> 12202.88 | H15: =C15*H1 -> 5172.96 | M15: =SUM(D15:K15) -> 17375.84
A16: 114 | B16: 施設 | C16: 48.27 | D16: =C16*D1 -> 8881.68 | H16: =C16*H1 -> 3765.06 | M16: 12646.74
A17: 115 | B17: 施設 | C17: 66.92 | D17: =C17*D1 -> 12313.28 | H17: =C17*H1 -> 5219.76 | M17: 17533.04
A18: 116 | B18: 施設 | C18: 64.08 | D18: =C18*D1 -> 11790.72 | H18: =C18*H1 -> 4998.24 | M18: 16788.96
A19: 117 | B19: 施設 | C19: 66.59 | D19: =C19*D1 -> 12252.56 | H19: =C19*H1 -> 5194.02 | M19: 17446.58
A20: 118 | B20: 施設 | C20: 67.64 | D20: =C20*D1 -> 12445.76 | H20: =C20*H1 -> 5275.92 | M20: 17721.68
A21: 119 | B21: 施設 | C21: 43.26 | D21: =C21*D1 -> 7959.84 | H21: =C21*H1 -> 3374.28 | M21: 11334.12
A22: 120 | B22: 施設 | C22: 42.24 | D22: =C22*D1 -> 7772.16 | H22: =C22*H1 -> 3294.72 | M22: 11066.88
A23: 121 | B23: 施設 | C23: 45.47 | D23: =C23*D1 -> 8366.48 | H23: =C23*H1 -> 3546.66 | M23: 11913.14
A24: 122 | B24: 施設 | C24: 14.96 | D24: =C24*D1 -> 2752.64 | H24: =C24*H1 -> 1166.88 | M24: 3919.52
A25: 123 | B25: 施設 | C25: 30.52 | D25: =C25*D1 -> 5615.68 | H25: =C25*H1 -> 2380.56 | M25: 7996.24
A26: 124 | B26: 施設 | C26: 27.84 | D26: =C26*D13 -> 0 | H26: =C26*H1 -> 2171.52 | M26: 2171.52
A27: 125 | B27: 施設 | C27: 33.48 | D27: =C27*D1 -> 6160.32 | H27: =C27*H1 -> 2611.44 | M27: 8771.76
A28: 126 | B28: 施設 | C28: 29.5 | D28: =C28*D1 -> 5428 | H28: =C28*H1 -> 2301 | M28: 7729
A29: 201 | B29: 施設 | C29: 34.96 | D29: =C29*D1 -> 6432.64 | H29: =C29*H1 -> 2726.88 | M29: 9159.52
A30: 202 | B30: 施設 | C30: 23.4 | D30: =C30*D1 -> 4305.6 | H30: =C30*H1 -> 1825.2 | M30: 6130.8
A31: 203 | B31: 施設 | C31: 33 | D31: =C31*D1 -> 6072 | H31: =C31*H1 -> 2574 | M31: 8646
A32: 204 | B32: 施設 | C32: 22.8 | D32: =C32*D1 -> 4195.2 | H32: =C32*H1 -> 1778.4 | M32: 5973.6
A33: 205 | B33: 施設 | C33: 43.2 | D33: =C33*D1 -> 7948.8 | H33: =C33*H1 -> 3369.6 | M33: 11318.4
A34: 206 | B34: 施設 | C34: 26.4 | D34: =C34*D1 -> 4857.6 | H34: =C34*H1 -> 2059.2 | M34: 6916.8
A35: 207 | B35: 施設 | D35: =C35*184 -> 0 | J35: =C35*78 -> 0 | M35: 0
A36: 208 | B36: 施設 | C36: 376.5 | F36: =C36*F1 -> 73794 | J36: =C36*J1 -> 29367 | M36: 103161
A37: 合計 | C37: =SUM(C3:C36) -> 5860.01 | D37: =SUM(D3:D36) -> 217998.52 | F37: =SUM(F3:F36) -> 911080.52 | H37: =SUM(H3:H36) -> 94514.86 | J37: =SUM(J3:J36) -> 362572.86 | M37: =SUM(M3:M36) -> 1586166.76
A40: 301 | B40: 住宅 | C40: 79.46 | E40: =C40*E1 -> 11044.94 | I40: =C40*I1 -> 6674.64 | M40: =SUM(D40:K40) -> 17719.58
A41: 302 | B41: 住宅 | C41: 62.31 | E41: =C41*E1 -> 8661.09 | I41: =C41*I1 -> 5234.04 | M41: =SUM(D41:K41) -> 13895.13
A42: 303 | B42: 住宅 | C42: 62.31 | E42: =C42*E1 -> 8661.09 | I42: =C42*I1 -> 5234.04 | M42: 13895.13
A43: 304 | B43: 住宅 | C43: 64.45 | E43: =C43*E1 -> 8958.55 | I43: =C43*I1 -> 5413.8 | M43: 14372.35
A44: 401 | B44: 住宅 | C44: 79.46 | E44: =C44*E1 -> 11044.94 | I44: =C44*I1 -> 6674.64 | M44: 17719.58
A45: 402 | B45: 住宅 | C45: 62.31 | E45: =C45*E1 -> 8661.09 | I45: =C45*I1 -> 5234.04 | M45: 13895.13
A46: 403 | B46: 住宅 | C46: 62.31 | E46: =C46*E1 -> 8661.09 | I46: =C46*I1 -> 5234.04 | M46: 13895.13
A47: 404 | B47: 住宅 | C47: 64.45 | E47: =C47*E1 -> 8958.55 | I47: =C47*I1 -> 5413.8 | M47: 14372.35
A48: 405 | B48: 集会室 | E48: =C48*E1 -> 0 | I48: =C48*I1 -> 0 | M48: 0
A49: 406 | B49: 住宅 | C49: 78 | E49: =C49*E1 -> 10842 | I49: =C49*I1 -> 6552 | M49: 17394
A50: 407 | B50: 住宅 | C50: 66.98 | E50: =C50*E1 -> 9310.22 | I50: =C50*I1 -> 5626.32 | M50: 14936.54
A51: 408 | B51: 住宅 | C51: 73.7 | E51: =C51*E1 -> 10244.3 | I51: =C51*I1 -> 6190.8 | M51: 16435.1
A52: 409 | B52: 住宅 | C52: 76.8 | E52: =C52*E1 -> 10675.2 | I52: =C52*I1 -> 6451.2 | M52: 17126.4
A53: 410 | B53: 住宅 | C53: 87.84 | E53: =C53*E1 -> 12209.76 | I53: =C53*I1 -> 7378.56 | M53: 19588.32
A54: 501 | B54: 住宅 | C54: 79.46 | E54: =C54*E1 -> 11044.94 | I54: =C54*I1 -> 6674.64 | M54: 17719.58
A55: 502 | B55: 住宅 | C55: 62.31 | E55: =C55*E1 -> 8661.09 | I55: =C55*I1 -> 5234.04 | M55: 13895.13
A56: 503 | B56: 住宅 | C56: 62.31 | E56: =C56*E1 -> 8661.09 | I56: =C56*I1 -> 5234.04 | M56: 13895.13
A57: 504 | B57: 住宅 | C57: 64.45 | E57: =C57*E1 -> 8958.55 | I57: =C57*I1 -> 5413.8 | M57: 14372.35
A58: 505 | B58: 住宅 | C58: 83.06 | E58: =C58*E1 -> 11545.34 | I58: =C58*I1 -> 6977.04 | M58: 18522.38
A59: 506 | B59: 住宅 | C59: 77.41 | E59: =C59*E1 -> 10759.99 | I59: =C59*I1 -> 6502.44 | M59: 17262.43
A60: 507 | B60: 住宅 | C60: 78 | E60: =C60*E1 -> 10842 | I60: =C60*I1 -> 6552 | M60: 17394
A61: 508 | B61: 住宅 | C61: 66.98 | E61: =C61*E1 -> 9310.22 | I61: =C61*I1 -> 5626.32 | M61: 14936.54
A62: 509 | B62: 住宅 | C62: 73.7 | E62: =C62*E1 -> 10244.3 | I62: =C62*I1 -> 6190.8 | M62: 16435.1
A63: 510 | B63: 住宅 | C63: 76.8 | E63: =C63*E1 -> 10675.2 | I63: =C63*I1 -> 6451.2 | M63: 17126.4
A64: 511 | B64: 住宅 | C64: 87.84 | E64: =C64*E1 -> 12209.76 | I64: =C64*I1 -> 7378.56 | M64: 19588.32
A65: 601 | B65: 住宅 | C65: 79.46 | E65: =C65*E1 -> 11044.94 | I65: =C65*I1 -> 6674.64 | M65: 17719.58
A66: 602 | B66: 住宅 | C66: 62.31 | E66: =C66*E1 -> 8661.09 | I66: =C66*I1 -> 5234.04 | M66: 13895.13
A67: 603 | B67: 住宅 | C67: 62.31 | E67: =C67*E1 -> 8661.09 | I67: =C67*I1 -> 5234.04 | M67: 13895.13
A68: 604 | B68: 住宅 | C68: 64.45 | E68: =C68*E1 -> 8958.55 | I68: =C68*I1 -> 5413.8 | M68: 14372.35
A69: 605 | B69: 住宅 | C69: 83.06 | E69: =C69*E1 -> 11545.34 | I69: =C69*I1 -> 6977.04 | M69: 18522.38
A70: 606 | B70: 住宅 | C70: 77.41 | E70: =C70*E1 -> 10759.99 | I70: =C70*I1 -> 6502.44 | M70: 17262.43
A71: 607 | B71: 住宅 | C71: 78 | E71: =C71*E1 -> 10842 | I71: =C71*I1 -> 6552 | M71: 17394
A72: 608 | B72: 住宅 | C72: 66.98 | E72: =C72*E1 -> 9310.22 | I72: =C72*I1 -> 5626.32 | M72: 14936.54
A73: 609 | B73: 住宅 | C73: 73.7 | E73: =C73*E1 -> 10244.3 | I73: =C73*I1 -> 6190.8 | M73: 16435.1
A74: 610 | B74: 住宅 | C74: 76.8 | E74: =C74*E1 -> 10675.2 | I74: =C74*I1 -> 6451.2 | M74: 17126.4
A75: 611 | B75: 住宅 | C75: 87.84 | E75: =C75*E1 -> 12209.76 | I75: =C75*I1 -> 7378.56 | M75: 19588.32
A76: 612 | B76: 住宅 | C76: 85.22 | E76: =C76*E1 -> 11845.58 | I76: =C76*I1 -> 7158.48 | M76: 19004.06
A77: 701 | B77: 住宅 | C77: 79.46 | E77: =C77*E1 -> 11044.94 | I77: =C77*I1 -> 6674.64 | M77: 17719.58
A78: 702 | B78: 住宅 | C78: 62.31 | E78: =C78*E1 -> 8661.09 | I78: =C78*I1 -> 5234.04 | M78: 13895.13
A79: 703 | B79: 住宅 | C79: 62.31 | E79: =C79*E1 -> 8661.09 | I79: =C79*I1 -> 5234.04 | M79: 13895.13
A80: 704 | B80: 住宅 | C80: 64.45 | E80: =C80*E1 -> 8958.55 | I80: =C80*I1 -> 5413.8 | M80: 14372.35
A81: 705 | B81: 住宅 | C81: 83.06 | E81: =C81*E1 -> 11545.34 | I81: =C81*I1 -> 6977.04 | M81: 18522.38
A82: 706 | B82: 住宅 | C82: 77.41 | E82: =C82*E1 -> 10759.99 | I82: =C82*I1 -> 6502.44 | M82: 17262.43
A83: 707 | B83: 住宅 | C83: 78 | E83: =C83*E1 -> 10842 | I83: =C83*I1 -> 6552 | M83: 17394
A84: 708 | B84: 住宅 | C84: 66.98 | E84: =C84*E1 -> 9310.22 | I84: =C84*I1 -> 5626.32 | M84: 14936.54
A85: 709 | B85: 住宅 | C85: 73.7 | E85: =C85*E1 -> 10244.3 | I85: =C85*I1 -> 6190.8 | M85: 16435.1
A86: 710 | B86: 住宅 | C86: 76.8 | E86: =C86*E1 -> 10675.2 | I86: =C86*I1 -> 6451.2 | M86: 17126.4
A87: 711 | B87: 住宅 | C87: 87.84 | E87: =C87*E1 -> 12209.76 | I87: =C87*I1 -> 7378.56 | M87: 19588.32
A88: 712 | B88: 住宅 | C88: 85.22 | E88: =C88*E1 -> 11845.58 | I88: =C88*I1 -> 7158.48 | M88: 19004.06
A89: 801 | B89: 住宅 | C89: 83 | E89: =C89*E1 -> 11537 | I89: =C89*I1 -> 6972 | M89: 18509
A90: 802 | B90: 住宅 | C90: 77.41 | E90: =C90*E1 -> 10759.99 | I90: =C90*I1 -> 6502.44 | M90: 17262.43
A91: 803 | B91: 住宅 | C91: 78 | E91: =C91*E1 -> 10842 | I91: =C91*I1 -> 6552 | M91: 17394
A92: 804 | B92: 住宅 | C92: 66.98 | E92: =C92*E1 -> 9310.22 | I92: =C92*I1 -> 5626.32 | M92: 14936.54
A93: 805 | B93: 住宅 | C93: 73.7 | E93: =C93*E1 -> 10244.3 | I93: =C93*I1 -> 6190.8 | M93: 16435.1
A94: 806 | B94: 住宅 | C94: 76.8 | E94: =C94*E1 -> 10675.2 | I94: =C94*I1 -> 6451.2 | M94: 17126.4
A95: 807 | B95: 住宅 | C95: 87.84 | E95: =C95*E1 -> 12209.76 | I95: =C95*I1 -> 7378.56 | M95: 19588.32
A96: 901 | B96: 住宅 | C96: 83.06 | E96: =C96*E1 -> 11545.34 | I96: =C96*I1 -> 6977.04 | M96: 18522.38
A97: 902 | B97: 住宅 | C97: 77.41 | E97: =C97*E1 -> 10759.99 | I97: =C97*I1 -> 6502.44 | M97: 17262.43
A98: 903 | B98: 住宅 | C98: 78 | E98: =C98*E1 -> 10842 | I98: =C98*I1 -> 6552 | M98: 17394
A99: 904 | B99: 住宅 | C99: 56.71 | E99: =C99*E1 -> 7882.69 | I99: =C99*I1 -> 4763.64 | M99: 12646.33
A100: 905 | B100: 住宅 | C100: 60.05 | E100: =C100*E1 -> 8346.95 | I100: =C100*I1 -> 5044.2 | M100: 13391.15
A101: 906 | B101: 住宅 | C101: 76.8 | E101: =C101*E1 -> 10675.2 | I101: =C101*I1 -> 6451.2 | M101: 17126.4
A102: 907 | B102: 住宅 | C102: 87.84 | E102: =C102*E1 -> 12209.76 | I102: =C102*I1 -> 7378.56 | M102: 19588.32
A103: 1001 | B103: 住宅 | C103: 83.06 | E103: =C103*E1 -> 11545.34 | I103: =C103*I1 -> 6977.04 | M103: 18522.38
A104: 1002 | B104: 住宅 | C104: 77.41 | E104: =C104*E1 -> 10759.99 | I104: =C104*I1 -> 6502.44 | M104: 17262.43
A105: 1003 | B105: 住宅 | C105: 99.72 | E105: =C105*E1 -> 13861.08 | I105: =C105*I1 -> 8376.48 | M105: =SUM(D105:K105) -> 22237.56
A106: 1004 | B106: 住宅 | C106: 98.56 | E106: =C106*E1 -> 13699.84 | I106: =C106*I1 -> 8279.04 | M106: 21978.88
A107: 1005 | B107: 住宅 | C107: 87.84 | E107: =C107*E1 -> 12209.76 | I107: =C107*I1 -> 7378.56 | M107: 19588.32
A108: 1101 | B108: 住宅 | C108: 83.06 | E108: =C108*E1 -> 11545.34 | I108: =C108*I1 -> 6977.04 | M108: 18522.38
A109: 1102 | B109: 住宅 | C109: 77.41 | E109: =C109*E1 -> 10759.99 | I109: =C109*I1 -> 6502.44 | M109: 17262.43
A110: 1103 | B110: 住宅 | C110: 79.8 | E110: =C110*E1 -> 11092.2 | I110: =C110*I1 -> 6703.2 | M110: 17795.4
A111: 1104 | B111: 住宅 | C111: 96.94 | E111: =C111*E1 -> 13474.66 | I111: =C111*I1 -> 8142.96 | M111: 21617.62
A112: 1105 | B112: 住宅 | C112: 87.84 | E112: =C112*E1 -> 12209.76 | I112: =C112*I1 -> 7378.56 | M112: 19588.32
A113: 1201 | B113: 住宅 | C113: 83.06 | E113: =C113*E1 -> 11545.34 | I113: =C113*I1 -> 6977.04 | M113: 18522.38
A114: 1202 | B114: 住宅 | C114: 77.41 | E114: =C114*E1 -> 10759.99 | I114: =C114*I1 -> 6502.44 | M114: 17262.43
A115: 1203 | B115: 住宅 | C115: 79.8 | E115: =C115*E1 -> 11092.2 | I115: =C115*I1 -> 6703.2 | M115: 17795.4
A116: 1204 | B116: 住宅 | C116: 96.94 | E116: =C116*E1 -> 13474.66 | I116: =C116*I1 -> 8142.96 | M116: 21617.62
A117: 1205 | B117: 住宅 | C117: 87.84 | E117: =C117*E1 -> 12209.76 | I117: =C117*I1 -> 7378.56 | M117: 19588.32
A118: 1301 | B118: 住宅 | C118: 83.06 | E118: =C118*E1 -> 11545.34 | I118: =C118*I1 -> 6977.04 | M118: 18522.38
A119: 1302 | B119: 住宅 | C119: 77.41 | E119: =C119*E1 -> 10759.99 | I119: =C119*I1 -> 6502.44 | M119: 17262.43
A120: 1303 | B120: 住宅 | C120: 79.8 | E120: =C120*E1 -> 11092.2 | I120: =C120*I1 -> 6703.2 | M120: 17795.4
A121: 1304 | B121: 住宅 | C121: 96.94 | E121: =C121*E1 -> 13474.66 | I121: =C121*I1 -> 8142.96 | M121: 21617.62
A122: 1305 | B122: 住宅 | C122: 87.84 | E122: =C122*E1 -> 12209.76 | I122: =C122*I1 -> 7378.56 | M122: 19588.32
A123: 合計 | C123: =SUM(C40:C122) -> 6313.12 | E123: =SUM(E40:E122) -> 877523.68 | I123: =SUM(I40:I122) -> 530302.08 | M123: =SUM(M39:M122) -> 1407825.76
A125: 積立金等の設定 | D125: 現行月額 | E125: 年度額 | F125: 年合計額 | Q125: 参考 | R125: ｍ2 | S125: 現行単価 | T125: 現行管理費 | U125: 改定単価 | V125: 改定管理費 | W125: 増額
A126: 一般会計収入 | B126: 住宅 | D126: =E123 -> 877523.68 | E126: =D126*12 -> 10530284.16 | H126: 管理費 | I126: 利率 | J126: 想定期間 | K126: 期間合計 | L126: 費用差額合計 | M126: 単年度当たりの増額 | N126: 専有面積 | O126: 単価/m2/年 | P126: 月額単価/m2 | Q126: 店舗 | R126: 50 | S126: 184 | T126: =R126*S126 -> 9200 | U126: =P127+S126 -> 187.8008321 | V126: =R126*U126 -> 9390.041605 | W126: =V126-T126 -> 190.0416049
B127: 施設 | D127: =D37 -> 217998.52 | E127: =D127*12 -> 2615982.24 | I127: 2 | J127: 15 | K127: =F128 * (1+ I127 / 100) ^ J127 -> 32407476.82 | L127: =K127-F128 -> 8328244.181 | M127: =L127/J127 -> 555216.2788 | N127: =C37+C123 -> 12173.13 | O127: =M127/N127 -> 45.60998517 | P127: =O127/12 -> 3.800832097 | Q127: 住宅 | R127: 70 | S127: 139 | T127: =R127*S127 -> 9730 | U127: =P127+S127 -> 142.8008321 | V127: =R127*U127 -> 9996.058247 | W127: =V127-T127 -> 266.0582468
B128: セントラル | D128: =F37 -> 911080.52 | E128: 10932966.24 | F128: =SUM(E126:E128) -> 24079232.64 | Q128: セントラル | R128: =C13 -> 4271.87 | S128: 196 | T128: =R128*S128 -> 837286.52 | U128: =P127+S128 -> 199.8008321 | V128: =R128*U128 -> 853523.1806 | W128: =V128-T128 -> 16236.66061
A130: 特別会計収入 | B130: 住宅 | D130: =I123 -> 530302.08 | E130: 6363624.96 | H130: 修繕積立金 | J130: 面積 | K130: 面積合計 | L130: 増額金額/m2/月 | M130: 期間（年・ヶ月） | N130: 増額合計額 | Q130: 参考 | R130: ｍ2 | S130: 現行単価 | T130: 現行管理費 | U130: 改定単価 | V130: 改定管理費 | W130: 増額
B131: 施設 | D131: =H37 -> 94514.86 | E131: 1134178.32 | F131: ①小計 | H131: 対象 | I131: 住宅 | J131: =C123 -> 6313.12 | M131: 15 | Q131: 店舗 | R131: 50 | S131: 78 | T131: =R131*S131 -> 3900 | U131: =S131+L132 -> 128 | V131: =R131*U131 -> 6400 | W131: =V131-T131 -> 2500
B132: セントラル | D132: =J37 -> 362572.86 | E132: 4350874.32 | F132: =SUM(E130:E132) -> 11848677.6 | I132: 施設 | J132: =C37 -> 5860.01 | K132: =J131+J132 -> 12173.13 | L132: 50 | M132: =M131*12 -> 180 | N132: =K132*L132*M132 -> 109558170 | Q132: 住宅 | R132: 70 | S132: 84 | T132: =R132*S132 -> 5880 | U132: =S132+L132 -> 134 | V132: =R132*U132 -> 9380 | W132: =V132-T132 -> 3500
I133: セントラル | Q133: セントラル | R133: =C13 -> 4271.87 | S133: 78 | T133: =R133*S133 -> 333205.86 | U133: =S133+L132 -> 128 | V133: 546799.36 | W133: 213593.5
B134: 住宅駐車場使用料 | D134: 4400000 | K134: 月額合計 | L134: =K132*L132 -> 608656.5
B135: 施設駐車場使用料 | D135: 1400000 | K135: 年額合計 | L135: =L134*12 -> 7303878
B136: 駐車場特別修繕費 | D136: 1555320 | E136: ➁小計 | F136: ①+➁年合計額
B137: 看板使用料 | D137: 1437840 | E137: =SUM(D134:D137) -> 8793160 | F137: =F132+E137 -> 20641837.6 | L137: =F137+L135 -> 27945715.6
